Ref No,Fund Type,Dept,Cost Centre Description    ,Description    ,Creditor Name    ,GL Code Net Amount,Payment date        
2,Revenue,CCHD,Learning Difficulties Development Fund,Other Supplies & Services,Coniston Community Association,1250, 14-Jul-2015
3,Revenue,CCHD,Learning Difficulties Development Fund,Other Supplies & Services,FACE,2500, 15-Jul-2015
4,Revenue,CCHD,Learning Difficulties Development Fund,Other Supplies & Services,Forest of Avon Trust,2070, 14-Jul-2015
5,Revenue,CCHD,Learning Difficulties Development Fund,Other Supplies & Services,L D Awareness,1335, 14-Jul-2015
6,Revenue,CCHD,Learning Difficulties Development Fund,Other Supplies & Services,Natureworks Training Community Interest,1542.5, 14-Jul-2015
7,Revenue,CCHD,Learning Difficulties Development Fund,Other Supplies & Services,The Conservation Volunteers,2330, 13-Jul-2015
8,Revenue,CCHD,Learning Difficulties Development Fund,Other Supplies & Services,The Hive Avon Ltd,1502, 14-Jul-2015
9,Revenue,CCHD,Learning Difficulties Development Fund,Other Supplies & Services,The Willow Tree Centre,862.5, 14-Jul-2015
10,Revenue,CCHD,S28a Day Care,Respite Planned - Residential,Milestones Trust,129242.25, 23-Jul-2015
11,Revenue,CCHD,Turnberries,Agency Staff (Operational)/PCT Pay,Prestige Nursing,579.6, 27-Jul-2015
12,Revenue,CCHD,Turnberries,Agency Staff (Operational)/PCT Pay,Prestige Nursing,609.6, 27-Jul-2015
13,Revenue,CCHD,Turnberries,Agency Staff (Operational)/PCT Pay,Prestige Nursing,668.15, 27-Jul-2015
14,Revenue,CCHD,Turnberries,Agency Staff (Operational)/PCT Pay,Prestige Nursing,668.12, 30-Jul-2015
15,Revenue,CCHD,Turnberries,Agency Staff (Operational)/PCT Pay,Prestige Nursing,1159.2, 23-Jul-2015
16,Revenue,CCHD,Turnberries,Agency Staff (Operational)/PCT Pay,Prestige Nursing,797.8, 27-Jul-2015
17,Revenue,CCHD,Turnberries,Agency Staff (Operational)/PCT Pay,Prestige Nursing,894.4, 27-Jul-2015
18,Revenue,CCHD,Turnberries,Agency Staff (Operational)/PCT Pay,Prestige Nursing,869.4, 30-Jul-2015
19,Revenue,CCHD,Turnberries,Agency Staff (Operational)/PCT Pay,Prestige Nursing,894.4, 27-Jul-2015
20,Revenue,CCHD,Purchase of Non-Res Care - South,Day Care / Social Activities,Bristol Houses UK Limited,1179.52, 15-Jul-2015
21,Revenue,CCHD,Purchase of Non-Res Care - South,Day Care / Social Activities,Milestones Trust,1319.66, 08-Jul-2015
22,Revenue,CCHD,Purchase of Non-Res Care - South,Day Care / Social Activities,The Camphill Village Trust,735, 21-Jul-2015
23,Revenue,CCHD,Purchase of Non-Res Care - North,Day Care / Social Activities,Care Horizons Limited,1675.8, 30-Jul-2015
24,Revenue,CCHD,Purchase of Non-Res Care - North,Day Care / Social Activities,Care Horizons Limited,1657.63, 30-Jul-2015
25,Revenue,CCHD,Purchase of Non-Res Care - North,Day Care / Social Activities,Design 4 Life Ltd,1193.94, 13-Jul-2015
26,Revenue,CCHD,Purchase of Non-Res Care - North,Day Care / Social Activities,Design 4 Life Ltd,1326.6, 10-Jul-2015
27,Revenue,CCHD,Purchase of Non-Res Care - North,Day Care / Social Activities,Design 4 Life Ltd,2798.15, 10-Jul-2015
28,Revenue,CCHD,Purchase of Non-Res Care - North,Day Care / Social Activities,Freeways Trust Limited,1093.4, 23-Jul-2015
29,Revenue,CCHD,Purchase of Non-Res Care - North,Day Care / Social Activities,Freeways Trust Limited,1015.3, 30-Jul-2015
30,Revenue,CCHD,Purchase of Non-Res Care - North,Day Care / Social Activities,NAS Services Limited,619.84, 17-Jul-2015
31,Revenue,CCHD,Purchase of Non-Res Care - North,Day Care / Social Activities,Selborne Care Ltd,1598, 10-Jul-2015
32,Revenue,CCHD,Purchase of Non-Res Care - North,Day Care / Social Activities,Selborne Care Ltd,714, 10-Jul-2015
33,Revenue,CCHD,Purchase of Non-Res Care - North,Day Care / Social Activities,Selborne Care Ltd,816, 10-Jul-2015
34,Revenue,CCHD,Purchase of Non-Res Care - North,Day Care / Social Activities,Selborne Care Ltd,748, 10-Jul-2015
35,Revenue,CCHD,Purchase of Non-Res Care - North,Day Care / Social Activities,Silva Care Limited,5359.36, 06-Jul-2015
36,Revenue,CCHD,Purchase of Non-Res Care - North,Day Care / Social Activities,Sports 1st Limited,900, 31-Jul-2015
37,Revenue,CCHD,Purchase of RAC places,Other L.A.'s - General,Bath & North East Somerset Dist Council,6959.14, 24-Jul-2015
38,Revenue,CCHD,Purchase of RAC places,Other L.A.'s - General,Bath & North East Somerset Dist Council,6055.76, 24-Jul-2015
39,Revenue,CCHD,Purchase of RAC places,Other L.A.'s - General,Bath & North East Somerset Dist Council,7569.7, 24-Jul-2015
40,Revenue,CCHD,Purchase of RAC places,Other L.A.'s - General,Bath & North East Somerset Dist Council,1902.4, 03-Jul-2015
41,Revenue,CCHD,Purchase of RAC places,Other L.A.'s - General,Bath & North East Somerset Dist Council,6959.14, 03-Jul-2015
42,Revenue,CCHD,Bed Purchasing - S28A - Over 65- North,Permanent Residential,Brandon Trust,3126.48, 07-Jul-2015
43,Revenue,CCHD,Bed Purchasing - S28A - Over 65- North,Permanent Residential,Cream Ii Ltd  Longrun House,8102.76, 07-Jul-2015
44,Revenue,CCHD,Bed Purchasing - S28A - Over 65- North,Permanent Residential,Creedy Court,7806.28, 07-Jul-2015
45,Revenue,CCHD,Bed Purchasing - S28A - Over 65- North,Permanent Residential,Milestones - Unit 10,6670, 07-Jul-2015
46,Revenue,CCHD,Bed Purchasing - S28A - Over 65- North,Permanent Residential,Milestones - Unit 10,2902.08, 07-Jul-2015
47,Revenue,CCHD,Bed Purchasing - S28A - Over 65- North,Permanent Residential,Milestones - Unit 10,3633.92, 07-Jul-2015
48,Revenue,CCHD,Bed Purchasing - S28A - Over 65- North,Permanent Residential,Milestones - Unit 10,3245.24, 07-Jul-2015
49,Revenue,CCHD,Bed Purchasing - S28A - Over 65- North,Permanent Residential,Milestones - Unit 10,4797.64, 07-Jul-2015
50,Revenue,CCHD,Bed Purchasing - S28A - Over 65- North,Permanent Residential,Milestones - Unit 10,4634.04, 07-Jul-2015
51,Revenue,CCHD,Bed Purchasing - S28A - Over 65- North,Permanent Residential,Milestones - Unit 10,4806.64, 07-Jul-2015
52,Revenue,CCHD,Bed Purchasing - S28A - Over 65- North,Permanent Residential,Milestones - Unit 10,4547.76, 07-Jul-2015
53,Revenue,CCHD,Bed Purchasing - S28A - Over 65- North,Permanent Residential,Milestones - Unit 10,3464.24, 07-Jul-2015
54,Revenue,CCHD,Bed Purchasing - S28A - Over 65- North,Permanent Nursing,Milestones - Unit 10,3670.84, 07-Jul-2015
55,Revenue,CCHD,Bed Purchasing - S28A - Over 65- North,Permanent Nursing,Milestones - Unit 10,3666.84, 07-Jul-2015
56,Revenue,CCHD,Bed Purchasing - S28A - Over 65- North,Permanent Residential,Shaw Healthcare Ltd,4325.44, 07-Jul-2015
57,Revenue,CCHD,Bed Purchasing - S28A - Over 65- North,Permanent Residential,Shaw Healthcare Ltd,4336.92, 07-Jul-2015
58,Revenue,CCHD,Bed Purchasing - S28A - Over 65- North,Permanent Residential,Shaw Healthcare Ltd,6895.88, 07-Jul-2015
59,Revenue,CCHD,Bed Purchasing - LD S28A- Over 65- South,Permanent Nursing,Brandon Trust,14274.26, 07-Jul-2015
60,Revenue,CCHD,Bed Purchasing - LD S28A- Over 65- South,Permanent Nursing,Brandon Trust,5190.64, 07-Jul-2015
61,Revenue,CCHD,Bed Purchasing - LD S28A- Over 65- South,Permanent Nursing,Brandon Trust,4904.8, 07-Jul-2015
62,Revenue,CCHD,Bed Purchasing - LD S28A- Over 65- South,Permanent Residential,Brandon Trust,4795.44, 07-Jul-2015
63,Revenue,CCHD,Bed Purchasing - LD S28A- Over 65- South,Permanent Residential,Milestones - Unit 10,4134.48, 07-Jul-2015
64,Revenue,CCHD,Bed Purchasing - LD S28A- Over 65- South,Permanent Residential,Milestones - Unit 10,5142.04, 07-Jul-2015
65,Revenue,CCHD,Bed Purchasing - LD S28A- Over 65- South,Permanent Residential,Milestones - Unit 10,4968.4, 07-Jul-2015
66,Revenue,CCHD,Bed Purchasing - LD S28A- Over 65- South,Permanent Residential,Milestones - Unit 10,5126.08, 07-Jul-2015
67,Revenue,CCHD,Bed Purchasing - LD S28A- Over 65- South,Permanent Residential,Milestones - Unit 10,4396.24, 07-Jul-2015
68,Revenue,CCHD,Bed Purchasing - LD S28A- Over 65- South,Permanent Residential,Milestones - Unit 10,5222, 07-Jul-2015
69,Revenue,CCHD,Bed Purchasing - LD S28A- Over 65- South,Permanent Residential,Milestones - Unit 10,3919.96, 07-Jul-2015
70,Revenue,CCHD,Bed Purchasing - LD S28A- Over 65- South,Permanent Nursing,Milestones - Unit 10,5277.92, 07-Jul-2015
71,Revenue,CCHD,Bed Purchasing - LD S28A- Over 65- South,Permanent Residential,Milestones - Unit 10,4800.72, 07-Jul-2015
72,Revenue,CCHD,Bed Purchasing - LD S28A- Over 65- South,Permanent Residential,Milestones - Unit 10,4645.48, 07-Jul-2015
73,Revenue,CCHD,Bed Purchasing - LD S28A- Over 65- South,Permanent Residential,Milestones - Unit 10,4713.52, 07-Jul-2015
74,Revenue,CCHD,Bed Purchasing - LD S28A- Over 65- South,Permanent Residential,Milestones - Unit 10,3115.32, 07-Jul-2015
75,Revenue,CCHD,Bed Purchasing - LD S28A- Over 65- South,Permanent Residential,Milestones - Unit 10,4396.24, 07-Jul-2015
76,Revenue,CCHD,Bed Purchasing - LD S28A- Over 65- South,Permanent Nursing,Milestones - Unit 10,4573.36, 07-Jul-2015
77,Revenue,CCHD,Bed Purchasing - LD S28A- Over 65- South,Permanent Nursing,Milestones - Unit 10,5277.92, 07-Jul-2015
78,Revenue,CCHD,Bed Purchasing - LD S28A- Over 65- South,Permanent Residential,Milestones - Unit 10,3575.16, 07-Jul-2015
79,Revenue,CCHD,Bed Purchasing - LD S28A- Over 65- South,Permanent Residential,Milestones - Unit 10,4386.24, 07-Jul-2015
80,Revenue,CCHD,Bed Purchasing - LD S28A- Over 65- South,Permanent Nursing,Milestones - Unit 10,3017.84, 07-Jul-2015
81,Revenue,CCHD,Bed Purchasing - LD S28A- Over 65- South,Permanent Nursing,Milestones - Unit 10,2793.28, 07-Jul-2015
82,Revenue,CCHD,Bed Purchasing - LD S28A- Over 65- South,Permanent Residential,Rockleaze,2100.48, 07-Jul-2015
83,Revenue,CCHD,Bed Purchasing - LD S28A- Over 65- South,Permanent Residential,Shaw Healthcare Ltd,4879.2, 07-Jul-2015
84,Revenue,CCHD,Bed Purchasing - LD S28A- Over 65- South,Permanent Residential,Shaw Healthcare Ltd,4513.04, 07-Jul-2015
85,Revenue,CCHD,Bed purchasing -S28A  Under 65 - North,Permanent Nursing,Brandon Trust,4835.88, 07-Jul-2015
86,Revenue,CCHD,Bed purchasing -S28A  Under 65 - North,Permanent Residential,Chescombe Lodge,8791.96, 07-Jul-2015
87,Revenue,CCHD,Bed purchasing -S28A  Under 65 - North,Permanent Residential,Creedy Court,9392.72, 07-Jul-2015
88,Revenue,CCHD,Bed purchasing -S28A  Under 65 - North,Permanent Residential,Julia Simone- Supp. Ind.,3533.32, 07-Jul-2015
89,Revenue,CCHD,Bed purchasing -S28A  Under 65 - North,Permanent Residential,Milestones - Unit 10,5387.68, 07-Jul-2015
90,Revenue,CCHD,Bed purchasing -S28A  Under 65 - North,Permanent Residential,Milestones - Unit 10,5316.8, 07-Jul-2015
91,Revenue,CCHD,Bed purchasing -S28A  Under 65 - North,Permanent Residential,Milestones - Unit 10,7136, 07-Jul-2015
92,Revenue,CCHD,Bed purchasing -S28A  Under 65 - North,Permanent Nursing,Milestones - Unit 10,5865.04, 07-Jul-2015
93,Revenue,CCHD,Bed purchasing -S28A  Under 65 - North,Permanent Residential,Milestones - Unit 10,6829.12, 07-Jul-2015
94,Revenue,CCHD,Bed purchasing -S28A  Under 65 - North,Permanent Residential,Milestones - Unit 10,7089.2, 07-Jul-2015
95,Revenue,CCHD,Bed purchasing -S28A  Under 65 - North,Permanent Residential,Milestones - Unit 10,7136.2, 07-Jul-2015
96,Revenue,CCHD,Bed purchasing -S28A  Under 65 - North,Permanent Residential,Milestones - Unit 10,5737.92, 07-Jul-2015
97,Revenue,CCHD,Bed purchasing -S28A  Under 65 - North,Permanent Residential,Milestones - Unit 10,7136.2, 07-Jul-2015
98,Revenue,CCHD,Bed purchasing -S28A  Under 65 - North,Permanent Residential,Milestones - Unit 10,3340.76, 07-Jul-2015
99,Revenue,CCHD,Bed purchasing -S28A  Under 65 - North,Permanent Nursing,Milestones - Unit 10,21166.97, 07-Jul-2015
100,Revenue,CCHD,Bed purchasing -S28A  Under 65 - North,Permanent Nursing,Milestones - Unit 10,7697.08, 07-Jul-2015
101,Revenue,CCHD,Bed purchasing -S28A  Under 65 - North,Permanent Residential,Orchard End Limited,7645.6, 07-Jul-2015
102,Revenue,CCHD,Bed purchasing -S28A  Under 65 - North,Permanent Residential,Park Hall,5996.24, 07-Jul-2015
103,Revenue,CCHD,Bed purchasing - S28A Under 65 - South,Permanent Residential,5Th Floor Harlech Court,29318.63, 07-Jul-2015
104,Revenue,CCHD,Bed purchasing - S28A Under 65 - South,Permanent Residential,5Th Floor Harlech Court,10661.32, 07-Jul-2015
105,Revenue,CCHD,Bed purchasing - S28A Under 65 - South,Permanent Residential,5Th Floor Harlech Court,10834.28, 07-Jul-2015
106,Revenue,CCHD,Bed purchasing - S28A Under 65 - South,Permanent Nursing,Brandon Trust,5418.04, 07-Jul-2015
107,Revenue,CCHD,Bed purchasing - S28A Under 65 - South,Permanent Residential,Brandon Trust,4956.6, 07-Jul-2015
108,Revenue,CCHD,Bed purchasing - S28A Under 65 - South,Permanent Residential,Brandon Trust,5260, 07-Jul-2015
109,Revenue,CCHD,Bed purchasing - S28A Under 65 - South,Permanent Residential,Brandon Trust,5316.28, 07-Jul-2015
110,Revenue,CCHD,Bed purchasing - S28A Under 65 - South,Permanent Nursing,Brandon Trust,5418.04, 07-Jul-2015
111,Revenue,CCHD,Bed purchasing - S28A Under 65 - South,Permanent Residential,Brandon Trust,5316.28, 07-Jul-2015
112,Revenue,CCHD,Bed purchasing - S28A Under 65 - South,Permanent Residential,Freeways Trust Ltd,2959.48, 07-Jul-2015
113,Revenue,CCHD,Bed purchasing - S28A Under 65 - South,Permanent Residential,Gordena Care Limited,4161.28, 07-Jul-2015
114,Revenue,CCHD,Bed purchasing - S28A Under 65 - South,Permanent Residential,Milestones - Unit 10,5588.64, 07-Jul-2015
115,Revenue,CCHD,Bed purchasing - S28A Under 65 - South,Permanent Nursing,Milestones - Unit 10,20264.86, 07-Jul-2015
116,Revenue,CCHD,Bed purchasing - S28A Under 65 - South,Permanent Nursing,Milestones - Unit 10,7369.04, 07-Jul-2015
117,Revenue,CCHD,Bed purchasing - S28A Under 65 - South,Permanent Residential,Milestones - Unit 10,4575.8, 07-Jul-2015
118,Revenue,CCHD,Bed purchasing - S28A Under 65 - South,Permanent Residential,Milestones - Unit 10,4527.72, 07-Jul-2015
119,Revenue,CCHD,Bed purchasing - S28A Under 65 - South,Permanent Residential,Milestones - Unit 10,3704.6, 07-Jul-2015
120,Revenue,CCHD,Bed purchasing - S28A Under 65 - South,Permanent Residential,Milestones - Unit 10,13719.31, 07-Jul-2015
121,Revenue,CCHD,Bed purchasing - S28A Under 65 - South,Permanent Residential,Milestones - Unit 10,4988.84, 07-Jul-2015
122,Revenue,CCHD,Bed purchasing - S28A Under 65 - South,Permanent Residential,Milestones - Unit 10,5228.28, 07-Jul-2015
123,Revenue,CCHD,Bed purchasing - S28A Under 65 - South,Permanent Nursing,Milestones - Unit 10,5239.84, 07-Jul-2015
124,Revenue,CCHD,Bed purchasing - S28A Under 65 - South,Permanent Residential,Milestones - Unit 10,6089.82, 07-Jul-2015
125,Revenue,CCHD,Bed purchasing - S28A Under 65 - South,Permanent Residential,Milestones - Unit 10,4808.68, 07-Jul-2015
126,Revenue,CCHD,Bed purchasing - S28A Under 65 - South,Permanent Residential,Milestones - Unit 10,5984.08, 07-Jul-2015
127,Revenue,CCHD,Bed purchasing - S28A Under 65 - South,Permanent Residential,Milestones - Unit 10,6071.04, 07-Jul-2015
128,Revenue,CCHD,Bed purchasing - S28A Under 65 - South,Permanent Residential,Osprey Court,4370.6, 07-Jul-2015
129,Revenue,CCHD,Bed purchasing - S28A Under 65 - South,Permanent Residential,Osprey Court,6461.08, 07-Jul-2015
130,Revenue,CCHD,Bed purchasing - S28A Under 65 - South,Permanent Residential,Park Hall,4734.56, 07-Jul-2015
131,Revenue,CCHD,Bed purchasing - S28A Under 65 - South,Permanent Residential,Park Hall,5733.8, 07-Jul-2015
132,Revenue,CCHD,Bed purchasing - S28A Under 65 - South,Permanent Residential,Penleigh House Care Home,5558.12, 07-Jul-2015
133,Revenue,CCHD,Bed purchasing - S28A Under 65 - South,Permanent Residential,Shaw Healthcare Ltd,9998.32, 07-Jul-2015
134,Revenue,CCHD,Bed purchasing - S28A Under 65 - South,Permanent Residential,Shaw Healthcare Ltd,9865.72, 07-Jul-2015
135,Revenue,CCHD,Bed purchasing - S28A Under 65 - South,Permanent Residential,The Manor House,4884.04, 07-Jul-2015
136,Revenue,CCHD,S117 Placements PCT,Permanent Residential,Ash View House,7052.76, 07-Jul-2015
137,Revenue,CCHD,S117 Placements PCT,Permanent Residential,Hesley Hall,18406.2, 07-Jul-2015
138,Revenue,CCHD,Supported Living - North,Private & Voluntary Home Care,Bristol Houses UK Limited,558.72, 15-Jul-2015
139,Revenue,CCHD,Supported Living - North,Private & Voluntary Home Care,Care Horizons Limited,5559.65, 30-Jul-2015
140,Revenue,CCHD,Supported Living - North,Private & Voluntary Home Care,Care Horizons Limited,5453.31, 31-Jul-2015
141,Revenue,CCHD,Supported Living - North,Private & Voluntary Home Care,Lifeways Community Care (Gloucester) Ltd,11758.56, 23-Jul-2015
142,Revenue,CCHD,Supported Living - North,Private & Voluntary Home Care,Lloyds TSB Commercial Finance Limited,2257.8, 20-Jul-2015
143,Revenue,CCHD,Supported Living - North,Private & Voluntary Home Care,Milestones Trust,577.61, 09-Jul-2015
144,Revenue,CCHD,Supported Living - North,Permanent Residential,Mrs I M Bowerman,1291.44, 08-Jul-2015
145,Revenue,CCHD,Supported Living - North,Private & Voluntary Home Care,Silva Care Limited,4415.44, 08-Jul-2015
146,Revenue,CCHD,Supported Living - North,Private & Voluntary Home Care,Willowbank Care Limited,5686.64, 20-Jul-2015
147,Revenue,CCHD,Supported Living - North,Private & Voluntary Home Care,Willowbank Care Limited,5686.64, 31-Jul-2015
148,Revenue,CCHD,Supported Living - North,Private & Voluntary Home Care,Willowbank Care Limited,633, 31-Jul-2015
149,Revenue,CCHD,Supported Living - North,Private & Voluntary Home Care,Willowbank Care Limited,649.04, 09-Jul-2015
150,Revenue,CCHD,Supported Living - North,Private & Voluntary Home Care,Willowbank Care Limited,649.04, 20-Jul-2015
151,Revenue,CCHD,Supported Living - North,Private & Voluntary Home Care,Willowbank Care Limited,1229.76, 20-Jul-2015
152,Revenue,CCHD,Supported Living - North,Private & Voluntary Home Care,Willowbank Care Limited,1229.76, 31-Jul-2015
153,Revenue,CCHD,Supported Living - North,Private & Voluntary Home Care,Willowbank Care Limited,4080.72, 20-Jul-2015
154,Revenue,CCHD,Supported Living - North,Private & Voluntary Home Care,Willowbank Care Limited,4080.72, 31-Jul-2015
155,Revenue,CCHD,Supported Living - North,Private & Voluntary Home Care,Willowbank Care Limited,4251.52, 30-Jul-2015
156,Revenue,CCHD,Supported Living - North,Private & Voluntary Home Care,Willowbank Care Limited,4251.52, 31-Jul-2015
157,Revenue,CCHD,Supported Living - North,Private & Voluntary Home Care,Willowbank Care Limited,2391.2, 20-Jul-2015
158,Revenue,CCHD,Supported Living - North,Private & Voluntary Home Care,Willowbank Care Limited,2391.2, 31-Jul-2015
159,Revenue,CCHD,Supported Living - North,Private & Voluntary Home Care,Willowbank Care Limited,3490.6, 31-Jul-2015
160,Revenue,CCHD,Supported Living - North,Private & Voluntary Home Care,Willowbank Care Limited,1400.45, 09-Jul-2015
161,Revenue,CCHD,Supported Living - North,Private & Voluntary Home Care,Willowbank Care Limited,1400.45, 30-Jul-2015
162,Revenue,CCHD,Supported Living - North,Private & Voluntary Home Care,Willowbank Care Limited,3586.8, 30-Jul-2015
163,Revenue,CCHD,Supported Living - North,Private & Voluntary Home Care,Willowbank Care Limited,753.48, 31-Jul-2015
164,Revenue,CCHD,Supported Living - North,Private & Voluntary Home Care,Willowbank Care Limited,3586.8, 31-Jul-2015
165,Revenue,CCHD,Supported Living - North,Private & Voluntary Home Care,Willowbank Care Limited,699.72, 31-Jul-2015
166,Revenue,CCHD,Supported Living - North,Private & Voluntary Home Care,Willowbank Care Limited,717.36, 09-Jul-2015
167,Revenue,CCHD,Supported Living - North,Private & Voluntary Home Care,Willowbank Care Limited,717.36, 30-Jul-2015
168,Revenue,CCHD,Supported Living - North,Private & Voluntary Home Care,Willowbank Care Limited,717.36, 31-Jul-2015
169,Revenue,CCHD,Supported Living - North,Private & Voluntary Home Care,Willowbank Care Limited,1967.7, 31-Jul-2015
170,Revenue,CCHD,Supported Living - North,Private & Voluntary Home Care,Willowbank Care Limited,4853.22, 30-Jul-2015
171,Revenue,CCHD,Supported Living - North,Private & Voluntary Home Care,Willowbank Care Limited,4853.22, 31-Jul-2015
172,Revenue,CCHD,Supported Living - North,Private & Voluntary Home Care,Willowbank Care Limited,1967.7, 23-Jul-2015
173,Revenue,CCHD,Supported Living - North,Private & Voluntary Home Care,Willowbank Care Limited,1967.7, 31-Jul-2015
174,Revenue,CCHD,Supported Living - North,Private & Voluntary Home Care,Willowbank Care Limited,1912.26, 30-Jul-2015
175,Revenue,CCHD,Supported Living - North,Private & Voluntary Home Care,Willowbank Care Limited,1912.26, 31-Jul-2015
176,Revenue,CCHD,Supported Living - North,Private & Voluntary Home Care,Willowbank Care Limited,2391.2, 30-Jul-2015
177,Revenue,CCHD,Supported Living - North,Private & Voluntary Home Care,Willowbank Care Limited,2391.2, 31-Jul-2015
178,Revenue,CCHD,Supported Living - North,Private & Voluntary Home Care,Willowbank Care Limited,2544.62, 23-Jul-2015
179,Revenue,CCHD,Supported Living - North,Private & Voluntary Home Care,Willowbank Care Limited,2630.32, 30-Jul-2015
180,Revenue,CCHD,Supported Living - North,Private & Voluntary Home Care,Willowbank Care Limited,2630.32, 31-Jul-2015
181,Revenue,CCHD,Supported Living - North,Private & Voluntary Home Care,Willowbank Care Limited,2457.86, 20-Jul-2015
182,Revenue,CCHD,Supported Living - North,Private & Voluntary Home Care,Willowbank Care Limited,2457.86, 31-Jul-2015
183,Revenue,CCHD,Supported Living (S28a) South,Private & Voluntary Home Care,Mencap - PS Central & Cymru,3841.88, 10-Jul-2015
184,Revenue,CCHD,Supported Living (S28a) South,Private & Voluntary Home Care,Mencap - PS Central & Cymru,3841.88, 13-Jul-2015
185,Revenue,CCHD,Supported Living (S28a) South,Private & Voluntary Home Care,Mencap - PS Central & Cymru,3841.88, 21-Jul-2015
186,Revenue,CCHD,Supported Living (S28a) South,Supported Living,Milestones - Unit 10,3881.32, 07-Jul-2015
187,Revenue,CCHD,Supported Living (S28a) South,Supported Living,Milestones - Unit 10,5505.8, 07-Jul-2015
188,Revenue,CCHD,Supported Living (S28a) South,Supported Living,Milestones - Unit 10,2232.52, 07-Jul-2015
189,Revenue,CCHD,Supported Living (S28a) South,Supported Living,Milestones - Unit 10,2232.52, 07-Jul-2015
190,Revenue,CCHD,Supported Living (S28a) South,Supported Living,Milestones - Unit 10,2232.52, 07-Jul-2015
191,Revenue,CCHD,Supported Living (S28a) South,Supported Living,Milestones - Unit 10,2981.76, 07-Jul-2015
192,Revenue,CCHD,Supported Living (S28a) South,Private & Voluntary Home Care,Selborne Care Ltd,3661.36, 10-Jul-2015
193,Revenue,CCHD,Supported Living (S28a) South,Private & Voluntary Home Care,Selborne Care Ltd,3661.36, 10-Jul-2015
194,Revenue,CCHD,Supported Living (S28a) North,Private & Voluntary Home Care,Milestones - Unit 10,4076.32, 07-Jul-2015
195,Revenue,CCHD,Supported Living (S28a) North,Private & Voluntary Home Care,Milestones - Unit 10,4045.64, 07-Jul-2015
196,Revenue,CCHD,Supported Living (S28a) North,Private & Voluntary Home Care,Milestones - Unit 10,4045.64, 07-Jul-2015
197,Revenue,CCHD,Supported Living (S28a) North,Private & Voluntary Home Care,Milestones - Unit 10,4076.32, 07-Jul-2015
198,Revenue,CCHD,Supported Living (S28a) North,Private & Voluntary Home Care,Milestones - Unit 10,3603.08, 07-Jul-2015
199,Revenue,CCHD,Supported Living (S28a) North,Private & Voluntary Home Care,Milestones - Unit 10,3603.08, 07-Jul-2015
200,Revenue,CCHD,Supported Living (S28a) North,Private & Voluntary Home Care,Milestones - Unit 10,4350.2, 07-Jul-2015
201,Revenue,CCHD,Supported Living (S28a) North,Private & Voluntary Home Care,Milestones - Unit 10,3615.2, 07-Jul-2015
202,Revenue,CCHD,Supported Living (S28a) North,Private & Voluntary Home Care,United Response,15184.73, 31-Jul-2015
203,Revenue,CCHD,Supported Living (S28a) North,Private & Voluntary Home Care,Willowbank Care Limited,4251.52, 10-Jul-2015
204,Revenue,CCHD,Supported Living (S28a) North,Private & Voluntary Home Care,Willowbank Care Limited,2869.96, 10-Jul-2015
205,Revenue,CCHD,Supported Living - South,Private & Voluntary Home Care,Alexandra Homes (Bristol) Limited,2461, 20-Jul-2015
206,Revenue,CCHD,Supported Living - South,Private & Voluntary Home Care,Dimensions (UK) Ltd,8006.68, 29-Jul-2015
207,Revenue,CCHD,Supported Living - South,Private & Voluntary Home Care,Freeways Trust Limited,1025.78, 13-Jul-2015
208,Revenue,CCHD,Supported Living - South,Private & Voluntary Home Care,Freeways Trust Limited,1237.68, 21-Jul-2015
209,Revenue,CCHD,Supported Living - South,Private & Voluntary Home Care,Freeways Trust Limited,1301.62, 20-Jul-2015
210,Revenue,CCHD,Supported Living - South,Private & Voluntary Home Care,Lloyds TSB Commercial Finance Limited,1951.65, 10-Jul-2015
211,Revenue,CCHD,Supported Living - South,Private & Voluntary Home Care,Lloyds TSB Commercial Finance Limited,2319.2, 20-Jul-2015
212,Revenue,CCHD,Supported Living - South,Private & Voluntary Home Care,Lloyds TSB Commercial Finance Limited,1711.47, 17-Jul-2015
213,Revenue,CCHD,Supported Living - South,Private & Voluntary Home Care,Lloyds TSB Commercial Finance Limited,1948.81, 17-Jul-2015
214,Revenue,CCHD,Supported Living - South,Private & Voluntary Home Care,Lloyds TSB Commercial Finance Limited,3201.6, 20-Jul-2015
215,Revenue,CCHD,Supported Living - South,Private & Voluntary Home Care,Lloyds TSB Commercial Finance Limited,2671.93, 20-Jul-2015
216,Revenue,CCHD,Supported Living - South,Private & Voluntary Home Care,Lloyds TSB Commercial Finance Limited,2257.8, 20-Jul-2015
217,Revenue,CCHD,Supported Living - South,Private & Voluntary Home Care,Lloyds TSB Commercial Finance Limited,2503.71, 20-Jul-2015
218,Revenue,CCHD,Supported Living - South,Private & Voluntary Home Care,Lloyds TSB Commercial Finance Limited,1963.86, 10-Jul-2015
219,Revenue,CCHD,Supported Living - South,Private & Voluntary Home Care,Lloyds TSB Commercial Finance Limited,1971.99, 10-Jul-2015
220,Revenue,CCHD,Supported Living - South,Private & Voluntary Home Care,Loga Care Ltd (T/A Logacare),3795.33, 01-Jul-2015
221,Revenue,CCHD,Supported Living - South,Private & Voluntary Home Care,Moving On,3439.95, 08-Jul-2015
222,Revenue,CCHD,Supported Living - South,Private & Voluntary Home Care,Moving On,5576.41, 08-Jul-2015
223,Revenue,CCHD,Supported Living - South,Private & Voluntary Home Care,Moving On,1229.96, 08-Jul-2015
224,Revenue,CCHD,Supported Living - South,Private & Voluntary Home Care,Selborne Care Ltd,2992, 10-Jul-2015
225,Revenue,CCHD,Supported Living - South,Private & Voluntary Home Care,Selborne Care Ltd,816, 10-Jul-2015
226,Revenue,CCHD,Supported Living - South,Private & Voluntary Home Care,Selborne Care Ltd,5635.76, 10-Jul-2015
227,Revenue,CCHD,Supported Living - South,Private & Voluntary Home Care,Selborne Care Ltd,1190, 10-Jul-2015
228,Revenue,CCHD,Supported Living - South,Private & Voluntary Home Care,Selborne Care Ltd,5123.36, 10-Jul-2015
229,Revenue,CCHD,Supported Living - South,Private & Voluntary Home Care,Selborne Care Ltd,584.72, 10-Jul-2015
230,Revenue,CCHD,Supported Living - South,Private & Voluntary Home Care,Selborne Care Ltd,1972, 10-Jul-2015
231,Revenue,CCHD,Supported Living - South,Private & Voluntary Home Care,Supported Independent Living Schemes,642.96, 15-Jul-2015
232,Revenue,CCHD,Supported Living - South,Private & Voluntary Home Care,Supported Independent Living Schemes,642.96, 15-Jul-2015
233,Revenue,CCHD,Supported Living - South,Private & Voluntary Home Care,United Response,851.7, 29-Jul-2015
234,Revenue,CCHD,Supported Living - South,Private & Voluntary Home Care,United Response,2311.13, 30-Jul-2015
235,Revenue,CCHD,Freeways,Permanent Residential,Freeways Trust Limited,3651.28, 03-Jul-2015
236,Revenue,CCHD,Freeways,Permanent Residential,Freeways Trust Limited,2294.48, 03-Jul-2015
237,Revenue,CCHD,Freeways,Permanent Residential,Freeways Trust Limited,2372.68, 03-Jul-2015
238,Revenue,CCHD,Freeways,Permanent Residential,Freeways Trust Limited,3026.48, 03-Jul-2015
239,Revenue,CCHD,Freeways,Permanent Residential,Freeways Trust Limited,2372.68, 03-Jul-2015
240,Revenue,CCHD,Freeways,Permanent Residential,Freeways Trust Limited,3400.92, 03-Jul-2015
241,Revenue,CCHD,Freeways,Permanent Residential,Freeways Trust Limited,3278.08, 03-Jul-2015
242,Revenue,CCHD,Freeways,Permanent Residential,Freeways Trust Limited,3560.84, 03-Jul-2015
243,Revenue,CCHD,Freeways,Permanent Residential,Freeways Trust Limited,2189.88, 03-Jul-2015
244,Revenue,CCHD,Freeways,Permanent Residential,Freeways Trust Limited,2711.48, 03-Jul-2015
245,Revenue,CCHD,Freeways,Permanent Residential,Freeways Trust Limited,3246.6, 03-Jul-2015
246,Revenue,CCHD,Freeways,Permanent Residential,Freeways Trust Limited,3111.04, 03-Jul-2015
247,Revenue,CCHD,Freeways,Permanent Residential,Freeways Trust Limited,3608.28, 03-Jul-2015
248,Revenue,CCHD,Freeways,Permanent Residential,Freeways Trust Limited,2451.72, 03-Jul-2015
249,Revenue,CCHD,Freeways,Permanent Residential,Freeways Trust Limited,2451.72, 03-Jul-2015
250,Revenue,CCHD,Freeways,Permanent Residential,Freeways Trust Limited,2451.72, 03-Jul-2015
251,Revenue,CCHD,ICES / NRS Contract,Daily Living Equipment,Medequip Assistive Technology Ltd,15532.8, 14-Jul-2015
252,Revenue,CCHD,ICES / NRS Contract,Daily Living Equipment,Medequip Assistive Technology Ltd,90821.49, 14-Jul-2015
253,Revenue,CCHD,Minor Adaptations Service,Prop.Serv. General Repairs,Dobbins Industrial Cleaning Limited,600, 16-Jul-2015
254,Revenue,CCHD,Minor Adaptations Service,Prop.Serv. General Repairs,KCC Cleaning Services Limited,1876.5, 03-Jul-2015
255,Revenue,CCHD,Minor Adaptations Service,Prop.Serv. General Repairs,KCC Cleaning Services Limited,1800, 10-Jul-2015
256,Revenue,CCHD,Minor Adaptations Service,Operational Equipment,Patterson Medical Limited,1242.75, 23-Jul-2015
257,Revenue,CCHD,Minor Adaptations Service,Premises Maintenance by Contractor,SSE Contracting Limited,75.48, 08-Jul-2015
258,Revenue,CCHD,Minor Adaptations Service,Premises Maintenance by Contractor,SSE Contracting Limited,113.19, 24-Jul-2015
259,Revenue,CCHD,Minor Adaptations Service,Premises Maintenance by Contractor,TVM Cheltenham Limited,1485, 23-Jul-2015
260,Revenue,CCHD,Minor Adaptations Service,Premises Maintenance by Contractor,TVM Cheltenham Limited,1037.94, 23-Jul-2015
261,Revenue,CCHD,Minor Adaptations Service,Daily Living Equipment,TVM Cheltenham Limited,2165, 24-Jul-2015
262,Revenue,CCHD,Minor Adaptations Service,Daily Living Equipment,TVM Cheltenham Limited,3000, 30-Jul-2015
263,Revenue,CCHD,Minor Adaptations Service,Daily Living Equipment,TVM Cheltenham Limited,1530, 30-Jul-2015
264,Revenue,CCHD,Minor Adaptations Service,Daily Living Equipment,TVM Cheltenham Limited,1707, 30-Jul-2015
265,Revenue,CCHD,Minor Adaptations Service,Daily Living Equipment,TVM Cheltenham Limited,974, 30-Jul-2015
266,Revenue,CCHD,Minor Adaptations Service,Premises Maintenance by Contractor,TVM Cheltenham Limited,2430, 30-Jul-2015
267,Revenue,CCHD,Housing Needs,Agency Staff (Admin/Support Staff) Pay,Venn Group Limited,738.07, 01-Jul-2015
268,Revenue,CCHD,Housing Needs,Agency Staff (Admin/Support Staff) Pay,Venn Group Limited,794.11, 08-Jul-2015
269,Revenue,CCHD,Housing Needs,Agency Staff (Admin/Support Staff) Pay,Venn Group Limited,751.74, 15-Jul-2015
270,Revenue,CCHD,Housing Needs,Agency Staff (Admin/Support Staff) Pay,Venn Group Limited,802.24, 23-Jul-2015
271,Revenue,CCHD,Housing Needs,Agency Staff (Admin/Support Staff) Pay,Venn Group Limited,577.25, 22-Jul-2015
272,Revenue,CCHD,Housing Needs,Agency Staff (Admin/Support Staff) Pay,Venn Group Limited,766.58, 28-Jul-2015
273,Revenue,CCHD,Housing Needs,Agency Staff (Admin/Support Staff) Pay,Venn Group Limited,495.24, 29-Jul-2015
274,Revenue,CCHD,Housing Needs,Agency Staff (Admin/Support Staff) Pay,Venn Group Limited,879.49, 29-Jul-2015
275,Revenue,CCHD,Tenancy Start Up Scheme,Other Supplies & Services,Individual,500, 21-Jul-2015
276,Revenue,CCHD,Tenancy Start Up Scheme,Other Supplies & Services,Individual,2000, 03-Jul-2015
277,Revenue,CCHD,Homeless - Private Sector Leasing,Bed & Breakfast,Connolly & Callaghan Limited,441, 30-Jul-2015
278,Revenue,CCHD,Homeless - Private Sector Leasing,Bed & Breakfast,Connolly & Callaghan Limited,546, 30-Jul-2015
279,Revenue,CCHD,Homeless - Private Sector Leasing,Bed & Breakfast,Connolly & Callaghan Limited,686, 30-Jul-2015
280,Revenue,CCHD,Homeless - Private Sector Leasing,Other Supplies & Services,Jill Collins,594, 15-Jul-2015
281,Revenue,CCHD,Homeless - Private Sector Leasing,Other Supplies & Services,Mr D G & Mrs L K Jenkins,565, 23-Jul-2015
282,Revenue,CCHD,Learning Difficulties PSL,Other Supplies & Services,Individual,2105.5, 22-Jul-2015
283,Revenue,CCHD,Learning Difficulties PSL,Rent,Individual,1650, 01-Jul-2015
284,Revenue,CCHD,Learning Difficulties PSL,Rent,Individual,1650, 31-Jul-2015
285,Revenue,CCHD,Learning Difficulties PSL,Rent,Individual,784.95, 22-Jul-2015
286,Revenue,CCHD,Learning Difficulties PSL,Rent,Individual,905.71, 22-Jul-2015
287,Revenue,CCHD,Learning Difficulties PSL,Rent,Individual,488, 22-Jul-2015
288,Revenue,CCHD,Social Lettings Agency,Fees - General,Individual,10.53, 01-Jul-2015
289,Revenue,CCHD,Social Lettings Agency,Fees & Charges Income - General,Individual,595.11, 01-Jul-2015
290,Revenue,CCHD,Social Lettings Agency,Fees - General,Individual,10.53, 31-Jul-2015
291,Revenue,CCHD,Social Lettings Agency,Fees & Charges Income - General,Individual,595.11, 31-Jul-2015
292,Revenue,CCHD,Social Lettings Agency,Other Supplies & Services,Individual,605.64, 24-Jul-2015
293,Revenue,CCHD,Social Lettings Agency,Fees - General,Individual,16.46, 27-Jul-2015
294,Revenue,CCHD,Social Lettings Agency,Other Supplies & Services,Individual,559.6, 27-Jul-2015
295,Revenue,CCHD,Social Lettings Agency,Fees - General,Individual,12.22, 10-Jul-2015
296,Revenue,CCHD,Social Lettings Agency,Other Supplies & Services,Individual,690.32, 10-Jul-2015
297,Revenue,CCHD,Social Lettings Agency,Fees - General,Individual,10.53, 31-Jul-2015
298,Revenue,CCHD,Social Lettings Agency,Other Supplies & Services,Individual,595.11, 31-Jul-2015
299,Revenue,CCHD,Social Lettings Agency,Fees - General,Individual,10, 01-Jul-2015
300,Revenue,CCHD,Social Lettings Agency,Other Supplies & Services,Individual,565, 01-Jul-2015
301,Revenue,CCHD,Social Lettings Agency,Fees - General,Individual,10, 31-Jul-2015
302,Revenue,CCHD,Social Lettings Agency,Other Supplies & Services,Individual,565, 31-Jul-2015
303,Revenue,CCHD,Social Lettings Agency,Fees - General,Individual,12.22, 20-Jul-2015
304,Revenue,CCHD,Social Lettings Agency,Other Supplies & Services,Individual,690.32, 20-Jul-2015
305,Revenue,CCHD,Social Lettings Agency,Fees - General,Individual,10.53, 07-Jul-2015
306,Revenue,CCHD,Social Lettings Agency,Other Supplies & Services,Individual,595.11, 07-Jul-2015
307,Revenue,CCHD,Social Lettings Agency,Fees - General,Individual,10, 10-Jul-2015
308,Revenue,CCHD,Social Lettings Agency,Other Supplies & Services,Individual,595.11, 10-Jul-2015
309,Revenue,CCHD,Social Lettings Agency,Fees - General,Individual,10.53, 06-Jul-2015
310,Revenue,CCHD,Social Lettings Agency,Other Supplies & Services,Individual,595.11, 06-Jul-2015
311,Revenue,CCHD,Social Lettings Agency,Fees - General,Individual,10.53, 07-Jul-2015
312,Revenue,CCHD,Social Lettings Agency,Other Supplies & Services,Individual,595.11, 07-Jul-2015
313,Revenue,CCHD,Social Lettings Agency,Fees - General,Individual,10, 22-Jul-2015
314,Revenue,CCHD,Social Lettings Agency,Other Supplies & Services,Individual,565, 22-Jul-2015
315,Revenue,CCHD,Social Lettings Agency,Fees - General,Individual,8.6, 22-Jul-2015
316,Revenue,CCHD,Social Lettings Agency,Other Supplies & Services,Individual,582, 22-Jul-2015
317,Revenue,CCHD,Social Lettings Agency,Fees - General,Individual,11.6, 01-Jul-2015
318,Revenue,CCHD,Social Lettings Agency,Other Supplies & Services,Individual,655.41, 01-Jul-2015
319,Revenue,CCHD,Social Lettings Agency,Fees - General,Individual,10.53, 08-Jul-2015
320,Revenue,CCHD,Social Lettings Agency,Other Supplies & Services,Individual,595.11, 08-Jul-2015
321,Revenue,CCHD,Social Lettings Agency,Fees - General,Individual,12.22, 10-Jul-2015
322,Revenue,CCHD,Social Lettings Agency,Other Supplies & Services,Individual,690.32, 10-Jul-2015
323,Revenue,CCHD,Social Lettings Agency,Fees - General,Individual,12.22, 02-Jul-2015
324,Revenue,CCHD,Social Lettings Agency,Other Supplies & Services,Individual,690.32, 02-Jul-2015
325,Revenue,CCHD,Social Lettings Agency,Fees - General,Individual,12.22, 31-Jul-2015
326,Revenue,CCHD,Social Lettings Agency,Other Supplies & Services,Individual,690.32, 31-Jul-2015
327,Revenue,CCHD,Social Lettings Agency,Fees - General,Individual,10.53, 22-Jul-2015
328,Revenue,CCHD,Social Lettings Agency,Other Supplies & Services,Individual,595.11, 22-Jul-2015
329,Revenue,CCHD,Social Lettings Agency,Fees - General,Individual,10.53, 01-Jul-2015
330,Revenue,CCHD,Social Lettings Agency,Other Supplies & Services,Individual,595.11, 01-Jul-2015
331,Revenue,CCHD,Social Lettings Agency,Fees - General,Individual,10.53, 31-Jul-2015
332,Revenue,CCHD,Social Lettings Agency,Other Supplies & Services,Individual,595.11, 31-Jul-2015
333,Revenue,CCHD,Social Lettings Agency,Fees - General,Individual,16.85, 21-Jul-2015
334,Revenue,CCHD,Social Lettings Agency,Other Supplies & Services,Individual,581.84, 21-Jul-2015
335,Revenue,CCHD,Social Lettings Agency,Fees - General,Individual,12.22, 20-Jul-2015
336,Revenue,CCHD,Social Lettings Agency,Other Supplies & Services,Individual,680.32, 20-Jul-2015
337,Revenue,CCHD,Social Lettings Agency,Fees - General,Individual,10.53, 30-Jul-2015
338,Revenue,CCHD,Social Lettings Agency,Other Supplies & Services,Individual,595.11, 30-Jul-2015
339,Revenue,CCHD,Social Lettings Agency,Fees - General,Individual,7.5, 03-Jul-2015
340,Revenue,CCHD,Social Lettings Agency,Other Supplies & Services,Individual,580, 03-Jul-2015
341,Revenue,CCHD,Social Lettings Agency,Other Supplies & Services,Individual,678, 08-Jul-2015
342,Revenue,CCHD,Social Lettings Agency,Fees - General,Individual,10.53, 14-Jul-2015
343,Revenue,CCHD,Social Lettings Agency,Other Supplies & Services,Individual,595.11, 14-Jul-2015
344,Revenue,CCHD,Social Lettings Agency,Fees - General,Individual,10, 24-Jul-2015
345,Revenue,CCHD,Social Lettings Agency,Other Supplies & Services,Individual,565, 24-Jul-2015
346,Revenue,CCHD,Social Lettings Agency,Fees - General,Individual,10, 01-Jul-2015
347,Revenue,CCHD,Social Lettings Agency,Other Supplies & Services,Individual,565, 01-Jul-2015
348,Revenue,CCHD,Social Lettings Agency,Fees - General,Individual,10, 31-Jul-2015
349,Revenue,CCHD,Social Lettings Agency,Other Supplies & Services,Individual,565, 31-Jul-2015
350,Revenue,CCHD,Social Lettings Agency,Fees - General,Individual,10.53, 14-Jul-2015
351,Revenue,CCHD,Social Lettings Agency,Other Supplies & Services,Individual,595.11, 14-Jul-2015
352,Revenue,CCHD,Social Lettings Agency,Fees - General,Individual,10.53, 10-Jul-2015
353,Revenue,CCHD,Social Lettings Agency,Other Supplies & Services,Individual,595.11, 10-Jul-2015
354,Revenue,CCHD,Social Lettings Agency,Fees - General,Individual,10.53, 08-Jul-2015
355,Revenue,CCHD,Social Lettings Agency,Other Supplies & Services,Individual,595.11, 08-Jul-2015
356,Revenue,CCHD,Social Lettings Agency,Fees - General,Individual,17.13, 10-Jul-2015
357,Revenue,CCHD,Social Lettings Agency,Other Supplies & Services,Individual,977.68, 10-Jul-2015
358,Revenue,CCHD,Social Lettings Agency,Fees - General,Individual,10, 03-Jul-2015
359,Revenue,CCHD,Social Lettings Agency,Other Supplies & Services,Individual,565, 03-Jul-2015
360,Revenue,CCHD,Social Lettings Agency,Fees - General,Individual,10, 27-Jul-2015
361,Revenue,CCHD,Social Lettings Agency,Other Supplies & Services,Individual,565, 27-Jul-2015
362,Revenue,CCHD,Social Lettings Agency,Other Supplies & Services,Individual,640.72, 01-Jul-2015
363,Revenue,CCHD,Social Lettings Agency,Other Supplies & Services,Individual,640.72, 02-Jul-2015
364,Revenue,CCHD,Social Lettings Agency,Other Supplies & Services,Individual,640.72, 31-Jul-2015
365,Revenue,CCHD,Social Lettings Agency,Fees - General,Individual,11.6, 16-Jul-2015
366,Revenue,CCHD,Social Lettings Agency,Other Supplies & Services,Individual,655.11, 16-Jul-2015
367,Revenue,CCHD,Social Lettings Agency,Fees - General,Individual,11.71, 13-Jul-2015
368,Revenue,CCHD,Social Lettings Agency,Other Supplies & Services,Individual,661.96, 13-Jul-2015
369,Revenue,CCHD,Social Lettings Agency,Fees - General,Individual,12.22, 21-Jul-2015
370,Revenue,CCHD,Social Lettings Agency,Other Supplies & Services,Individual,690.32, 21-Jul-2015
371,Revenue,CCHD,Social Lettings Agency,Fees - General,Individual,12.22, 17-Jul-2015
372,Revenue,CCHD,Social Lettings Agency,Other Supplies & Services,Individual,690.32, 17-Jul-2015
373,Revenue,CCHD,Bed and Breakfast,Bed & Breakfast,Ashley Guest Houses Limited,560, 10-Jul-2015
374,Revenue,CCHD,Bed and Breakfast,Bed & Breakfast,Ashley Guest Houses Limited,1060, 10-Jul-2015
375,Revenue,CCHD,Bed and Breakfast,Bed & Breakfast,Bristol Housing & Support Limited,2730, 10-Jul-2015
376,Revenue,CCHD,Bed and Breakfast,Bed & Breakfast,Bristol Housing & Support Limited,490, 22-Jul-2015
377,Revenue,CCHD,Bed and Breakfast,Bed & Breakfast,Bristol Housing & Support Limited,490, 27-Jul-2015
378,Revenue,CCHD,Bed and Breakfast,Bed & Breakfast,Connolly & Callaghan Limited,686, 20-Jul-2015
379,Revenue,CCHD,Bed and Breakfast,Bed & Breakfast,Connolly & Callaghan Limited,700, 20-Jul-2015
380,Revenue,CCHD,Bed and Breakfast,Bed & Breakfast,Connolly & Callaghan Limited,441, 17-Jul-2015
381,Revenue,CCHD,Bed and Breakfast,Bed & Breakfast,Connolly & Callaghan Limited,700, 20-Jul-2015
382,Revenue,CCHD,Bed and Breakfast,Bed & Breakfast,Connolly & Callaghan Limited,686, 01-Jul-2015
383,Revenue,CCHD,Bed and Breakfast,Bed & Breakfast,Connolly & Callaghan Limited,700, 07-Jul-2015
384,Revenue,CCHD,Bed and Breakfast,Bed & Breakfast,Connolly & Callaghan Limited,476, 01-Jul-2015
385,Revenue,CCHD,Bed and Breakfast,Bed & Breakfast,Connolly & Callaghan Limited,686, 01-Jul-2015
386,Revenue,CCHD,Bed and Breakfast,Bed & Breakfast,Connolly & Callaghan Limited,630, 08-Jul-2015
387,Revenue,CCHD,Bed and Breakfast,Bed & Breakfast,Connolly & Callaghan Limited,441, 01-Jul-2015
388,Revenue,CCHD,Bed and Breakfast,Bed & Breakfast,Connolly & Callaghan Limited,441, 03-Jul-2015
389,Revenue,CCHD,Bed and Breakfast,Bed & Breakfast,Connolly & Callaghan Limited,686, 02-Jul-2015
390,Revenue,CCHD,Bed and Breakfast,Bed & Breakfast,Connolly & Callaghan Limited,700, 02-Jul-2015
391,Revenue,CCHD,Bed and Breakfast,Bed & Breakfast,Connolly & Callaghan Limited,476, 02-Jul-2015
392,Revenue,CCHD,Bed and Breakfast,Bed & Breakfast,Connolly & Callaghan Limited,686, 02-Jul-2015
393,Revenue,CCHD,Bed and Breakfast,Bed & Breakfast,Connolly & Callaghan Limited,630, 02-Jul-2015
394,Revenue,CCHD,Bed and Breakfast,Bed & Breakfast,Connolly & Callaghan Limited,441, 02-Jul-2015
395,Revenue,CCHD,Bed and Breakfast,Bed & Breakfast,Connolly & Callaghan Limited,441, 02-Jul-2015
396,Revenue,CCHD,Bed and Breakfast,Bed & Breakfast,Connolly & Callaghan Limited,498, 01-Jul-2015
397,Revenue,CCHD,Bed and Breakfast,Bed & Breakfast,Connolly & Callaghan Limited,686, 09-Jul-2015
398,Revenue,CCHD,Bed and Breakfast,Bed & Breakfast,Connolly & Callaghan Limited,700, 09-Jul-2015
399,Revenue,CCHD,Bed and Breakfast,Bed & Breakfast,Connolly & Callaghan Limited,476, 10-Jul-2015
400,Revenue,CCHD,Bed and Breakfast,Bed & Breakfast,Connolly & Callaghan Limited,498, 10-Jul-2015
401,Revenue,CCHD,Bed and Breakfast,Bed & Breakfast,Connolly & Callaghan Limited,432, 14-Jul-2015
402,Revenue,CCHD,Bed and Breakfast,Bed & Breakfast,Connolly & Callaghan Limited,686, 10-Jul-2015
403,Revenue,CCHD,Bed and Breakfast,Bed & Breakfast,Connolly & Callaghan Limited,630, 09-Jul-2015
404,Revenue,CCHD,Bed and Breakfast,Bed & Breakfast,Connolly & Callaghan Limited,441, 09-Jul-2015
405,Revenue,CCHD,Bed and Breakfast,Bed & Breakfast,Connolly & Callaghan Limited,441, 10-Jul-2015
406,Revenue,CCHD,Bed and Breakfast,Bed & Breakfast,Connolly & Callaghan Limited,581, 10-Jul-2015
407,Revenue,CCHD,Bed and Breakfast,Bed & Breakfast,Connolly & Callaghan Limited,686, 14-Jul-2015
408,Revenue,CCHD,Bed and Breakfast,Bed & Breakfast,Connolly & Callaghan Limited,700, 15-Jul-2015
409,Revenue,CCHD,Bed and Breakfast,Bed & Breakfast,Connolly & Callaghan Limited,476, 15-Jul-2015
410,Revenue,CCHD,Bed and Breakfast,Bed & Breakfast,Connolly & Callaghan Limited,581, 15-Jul-2015
411,Revenue,CCHD,Bed and Breakfast,Bed & Breakfast,Connolly & Callaghan Limited,686, 20-Jul-2015
412,Revenue,CCHD,Bed and Breakfast,Bed & Breakfast,Connolly & Callaghan Limited,686, 14-Jul-2015
413,Revenue,CCHD,Bed and Breakfast,Bed & Breakfast,Connolly & Callaghan Limited,630, 15-Jul-2015
414,Revenue,CCHD,Bed and Breakfast,Bed & Breakfast,Connolly & Callaghan Limited,441, 15-Jul-2015
415,Revenue,CCHD,Bed and Breakfast,Bed & Breakfast,Connolly & Callaghan Limited,441, 14-Jul-2015
416,Revenue,CCHD,Bed and Breakfast,Bed & Breakfast,Connolly & Callaghan Limited,581, 15-Jul-2015
417,Revenue,CCHD,Bed and Breakfast,Bed & Breakfast,Connolly & Callaghan Limited,700, 24-Jul-2015
418,Revenue,CCHD,Bed and Breakfast,Bed & Breakfast,Connolly & Callaghan Limited,476, 24-Jul-2015
419,Revenue,CCHD,Bed and Breakfast,Bed & Breakfast,Connolly & Callaghan Limited,581, 24-Jul-2015
420,Revenue,CCHD,Bed and Breakfast,Bed & Breakfast,Connolly & Callaghan Limited,686, 24-Jul-2015
421,Revenue,CCHD,Bed and Breakfast,Bed & Breakfast,Connolly & Callaghan Limited,630, 24-Jul-2015
422,Revenue,CCHD,Bed and Breakfast,Bed & Breakfast,Connolly & Callaghan Limited,581, 24-Jul-2015
423,Revenue,CCHD,Bed and Breakfast,Bed & Breakfast,Connolly & Callaghan Limited,700, 29-Jul-2015
424,Revenue,CCHD,Bed and Breakfast,Bed & Breakfast,Connolly & Callaghan Limited,476, 29-Jul-2015
425,Revenue,CCHD,Bed and Breakfast,Bed & Breakfast,Connolly & Callaghan Limited,581, 30-Jul-2015
426,Revenue,CCHD,Bed and Breakfast,Bed & Breakfast,Connolly & Callaghan Limited,630, 29-Jul-2015
427,Revenue,CCHD,Bed and Breakfast,Bed & Breakfast,Connolly & Callaghan Limited,581, 30-Jul-2015
428,Revenue,CCHD,Bed and Breakfast,Bed & Breakfast,E J Bartlett,574, 01-Jul-2015
429,Revenue,CCHD,Bed and Breakfast,Bed & Breakfast,E J Bartlett,679, 01-Jul-2015
430,Revenue,CCHD,Bed and Breakfast,Bed & Breakfast,E J Bartlett,496, 15-Jul-2015
431,Revenue,CCHD,Bed and Breakfast,Bed & Breakfast,E J Bartlett,434, 21-Jul-2015
432,Revenue,CCHD,Bed and Breakfast,Bed & Breakfast,E J Bartlett,420, 09-Jul-2015
433,Revenue,CCHD,Bed and Breakfast,Bed & Breakfast,E J Bartlett,504, 10-Jul-2015
434,Revenue,CCHD,Bed and Breakfast,Bed & Breakfast,E J Bartlett,574, 10-Jul-2015
435,Revenue,CCHD,Bed and Breakfast,Bed & Breakfast,E J Bartlett,420, 23-Jul-2015
436,Revenue,CCHD,Bed and Breakfast,Bed & Breakfast,E J Bartlett,574, 22-Jul-2015
437,Revenue,CCHD,Bed and Breakfast,Bed & Breakfast,E J Bartlett,420, 30-Jul-2015
438,Revenue,CCHD,Bed and Breakfast,Bed & Breakfast,E J Bartlett,504, 29-Jul-2015
439,Revenue,CCHD,Bed and Breakfast,Bed & Breakfast,E J Bartlett,574, 29-Jul-2015
440,Revenue,CCHD,Bed and Breakfast,Bed & Breakfast,E J Bartlett,504, 22-Jul-2015
441,Revenue,CCHD,Bed and Breakfast,Bed & Breakfast,Top Drawer Properties Limited,700, 20-Jul-2015
442,Revenue,CCHD,Bed and Breakfast,Bed & Breakfast,Top Drawer Properties Limited,490, 08-Jul-2015
443,Revenue,CCHD,Bed and Breakfast,Bed & Breakfast,Top Drawer Properties Limited,616, 08-Jul-2015
444,Revenue,CCHD,Bed and Breakfast,Bed & Breakfast,Top Drawer Properties Limited,700, 08-Jul-2015
445,Revenue,CCHD,Bed and Breakfast,Bed & Breakfast,Top Drawer Properties Limited,490, 09-Jul-2015
446,Revenue,CCHD,Bed and Breakfast,Bed & Breakfast,Top Drawer Properties Limited,616, 09-Jul-2015
447,Revenue,CCHD,Bed and Breakfast,Bed & Breakfast,Top Drawer Properties Limited,700, 09-Jul-2015
448,Revenue,CCHD,Bed and Breakfast,Bed & Breakfast,Top Drawer Properties Limited,455, 27-Jul-2015
449,Revenue,CCHD,Bed and Breakfast,Bed & Breakfast,Top Drawer Properties Limited,490, 10-Jul-2015
450,Revenue,CCHD,Bed and Breakfast,Bed & Breakfast,Top Drawer Properties Limited,616, 10-Jul-2015
451,Revenue,CCHD,Bed and Breakfast,Bed & Breakfast,Top Drawer Properties Limited,490, 09-Jul-2015
452,Revenue,CCHD,Bed and Breakfast,Bed & Breakfast,Top Drawer Properties Limited,455, 27-Jul-2015
453,Revenue,CCHD,Bed and Breakfast,Bed & Breakfast,Top Drawer Properties Limited,455, 27-Jul-2015
454,Revenue,CCHD,Bed and Breakfast,Bed & Breakfast,Top Drawer Properties Limited,490, 20-Jul-2015
455,Revenue,CCHD,Bed and Breakfast,Bed & Breakfast,Top Drawer Properties Limited,490, 27-Jul-2015
456,Revenue,CCHD,Bed and Breakfast,Bed & Breakfast,Top Drawer Properties Limited,490, 27-Jul-2015
457,Revenue,CCHD,Bed and Breakfast,Bed & Breakfast,Top Drawer Properties Limited,588, 20-Jul-2015
458,Revenue,CCHD,Supporting People Programme,Grants to Voluntary Bodies,1625 Independent People,16872.78, 01-Jul-2015
459,Revenue,CCHD,Supporting People Programme,Grants to Voluntary Bodies,1625 Independent People,16872.78, 31-Jul-2015
460,Revenue,CCHD,Supporting People Programme,Grants to Voluntary Bodies,Anchor Housing,905.17, 01-Jul-2015
461,Revenue,CCHD,Supporting People Programme,Grants to Voluntary Bodies,Anchor Housing,905.17, 31-Jul-2015
462,Revenue,CCHD,Supporting People Programme,Grants to Voluntary Bodies,Aspects and Milestones Trust,3254.35, 01-Jul-2015
463,Revenue,CCHD,Supporting People Programme,Grants to Voluntary Bodies,Aspects and Milestones Trust,1631.6, 01-Jul-2015
464,Revenue,CCHD,Supporting People Programme,Grants to Voluntary Bodies,Aspects and Milestones Trust,2476.54, 01-Jul-2015
465,Revenue,CCHD,Supporting People Programme,Grants to Voluntary Bodies,Aspects and Milestones Trust,3254.35, 31-Jul-2015
466,Revenue,CCHD,Supporting People Programme,Grants to Voluntary Bodies,Aspects and Milestones Trust,1631.6, 31-Jul-2015
467,Revenue,CCHD,Supporting People Programme,Grants to Voluntary Bodies,Aspects and Milestones Trust,2476.54, 31-Jul-2015
468,Revenue,CCHD,Supporting People Programme,Grants to Voluntary Bodies,Bristol Missing Link,1464.82, 01-Jul-2015
469,Revenue,CCHD,Supporting People Programme,Grants to Voluntary Bodies,Bristol Missing Link,2012.42, 01-Jul-2015
470,Revenue,CCHD,Supporting People Programme,Grants to Voluntary Bodies,Bristol Missing Link,2012.42, 31-Jul-2015
471,Revenue,CCHD,Supporting People Programme,Grants to Voluntary Bodies,Bristol Missing Link,1464.82, 31-Jul-2015
472,Revenue,CCHD,Supporting People Programme,Grants to Voluntary Bodies,Bromford Housing Group,14201.99, 01-Jul-2015
473,Revenue,CCHD,Supporting People Programme,Grants to Voluntary Bodies,Bromford Housing Group,14201.99, 31-Jul-2015
474,Revenue,CCHD,Supporting People Programme,Grants to Voluntary Bodies,Elim Housing Association Limited,5072.7, 01-Jul-2015
475,Revenue,CCHD,Supporting People Programme,Grants to Voluntary Bodies,Elim Housing Association Limited,5072.7, 31-Jul-2015
476,Revenue,CCHD,Supporting People Programme,Grants to Voluntary Bodies,Freeways Trust Limited,8053.04, 01-Jul-2015
477,Revenue,CCHD,Supporting People Programme,Grants to Voluntary Bodies,Freeways Trust Limited,8053.04, 31-Jul-2015
478,Revenue,CCHD,Supporting People Programme,Grants to Voluntary Bodies,Habinteg Housing Association,1373.26, 01-Jul-2015
479,Revenue,CCHD,Supporting People Programme,Grants to Voluntary Bodies,Habinteg Housing Association,1373.26, 31-Jul-2015
480,Revenue,CCHD,Supporting People Programme,Grants to Voluntary Bodies,Hanover Housing Association,982.83, 01-Jul-2015
481,Revenue,CCHD,Supporting People Programme,Grants to Voluntary Bodies,Hanover Housing Association,982.83, 31-Jul-2015
482,Revenue,CCHD,Supporting People Programme,Grants to Voluntary Bodies,Housing 21,623.07, 01-Jul-2015
483,Revenue,CCHD,Supporting People Programme,Grants to Voluntary Bodies,Housing 21,945.1, 01-Jul-2015
484,Revenue,CCHD,Supporting People Programme,Grants to Voluntary Bodies,Housing 21,623.07, 31-Jul-2015
485,Revenue,CCHD,Supporting People Programme,Grants to Voluntary Bodies,Housing 21,945.1, 31-Jul-2015
486,Revenue,CCHD,Supporting People Programme,Grants to Voluntary Bodies,Keyring Living Support Networks,2948.5, 01-Jul-2015
487,Revenue,CCHD,Supporting People Programme,Grants to Voluntary Bodies,Keyring Living Support Networks,2948.5, 31-Jul-2015
488,Revenue,CCHD,Supporting People Programme,Grants to Voluntary Bodies,Kingswood Young Homeless Project,17126.66, 01-Jul-2015
489,Revenue,CCHD,Supporting People Programme,Grants to Voluntary Bodies,Kingswood Young Homeless Project,17126.66, 31-Jul-2015
490,Revenue,CCHD,Supporting People Programme,Grants to Voluntary Bodies,Knightstone Housing Association Limited,13659.7, 01-Jul-2015
491,Revenue,CCHD,Supporting People Programme,Grants to Voluntary Bodies,Knightstone Housing Association Limited,7684.61, 01-Jul-2015
492,Revenue,CCHD,Supporting People Programme,Grants to Voluntary Bodies,Knightstone Housing Association Limited,1809.08, 01-Jul-2015
493,Revenue,CCHD,Supporting People Programme,Grants to Voluntary Bodies,Knightstone Housing Association Limited,2509.56, 01-Jul-2015
494,Revenue,CCHD,Supporting People Programme,Grants to Voluntary Bodies,Knightstone Housing Association Limited,2510.15, 01-Jul-2015
495,Revenue,CCHD,Supporting People Programme,Grants to Voluntary Bodies,Knightstone Housing Association Limited,853.7, 01-Jul-2015
496,Revenue,CCHD,Supporting People Programme,Grants to Voluntary Bodies,Knightstone Housing Association Limited,8630.13, 01-Jul-2015
497,Revenue,CCHD,Supporting People Programme,Grants to Voluntary Bodies,Knightstone Housing Association Limited,13659.7, 31-Jul-2015
498,Revenue,CCHD,Supporting People Programme,Grants to Voluntary Bodies,Knightstone Housing Association Limited,7684.61, 31-Jul-2015
499,Revenue,CCHD,Supporting People Programme,Grants to Voluntary Bodies,Knightstone Housing Association Limited,1809.08, 31-Jul-2015
500,Revenue,CCHD,Supporting People Programme,Grants to Voluntary Bodies,Knightstone Housing Association Limited,2509.56, 31-Jul-2015
501,Revenue,CCHD,Supporting People Programme,Grants to Voluntary Bodies,Knightstone Housing Association Limited,2510.15, 31-Jul-2015
502,Revenue,CCHD,Supporting People Programme,Grants to Voluntary Bodies,Knightstone Housing Association Limited,853.7, 31-Jul-2015
503,Revenue,CCHD,Supporting People Programme,Grants to Voluntary Bodies,Knightstone Housing Association Limited,8630.13, 31-Jul-2015
504,Revenue,CCHD,Supporting People Programme,Grants to Voluntary Bodies,Merlin Housing Society,14786.49, 01-Jul-2015
505,Revenue,CCHD,Supporting People Programme,Grants to Voluntary Bodies,Merlin Housing Society,2485.47, 01-Jul-2015
506,Revenue,CCHD,Supporting People Programme,Grants to Voluntary Bodies,Merlin Housing Society,47076.5, 01-Jul-2015
507,Revenue,CCHD,Supporting People Programme,Grants to Voluntary Bodies,Merlin Housing Society,1053.09, 01-Jul-2015
508,Revenue,CCHD,Supporting People Programme,Grants to Voluntary Bodies,Merlin Housing Society,14786.49, 31-Jul-2015
509,Revenue,CCHD,Supporting People Programme,Grants to Voluntary Bodies,Merlin Housing Society,2485.47, 31-Jul-2015
510,Revenue,CCHD,Supporting People Programme,Grants to Voluntary Bodies,Merlin Housing Society,47076.5, 31-Jul-2015
511,Revenue,CCHD,Supporting People Programme,Grants to Voluntary Bodies,Merlin Housing Society,1053.09, 31-Jul-2015
512,Revenue,CCHD,Supporting People Programme,Grants to Voluntary Bodies,Mr & Mrs Watts,1009.7, 01-Jul-2015
513,Revenue,CCHD,Supporting People Programme,Grants to Voluntary Bodies,Mr & Mrs Watts,1009.7, 31-Jul-2015
514,Revenue,CCHD,Supporting People Programme,Grants to Voluntary Bodies,Redland Housing Association Ltd,745.72, 01-Jul-2015
515,Revenue,CCHD,Supporting People Programme,Grants to Voluntary Bodies,Redland Housing Association Ltd,745.72, 31-Jul-2015
516,Revenue,CCHD,Supporting People Programme,Grants to Voluntary Bodies,Second Step Housing Association,13599.72, 01-Jul-2015
517,Revenue,CCHD,Supporting People Programme,Grants to Voluntary Bodies,Second Step Housing Association,12004.51, 01-Jul-2015
518,Revenue,CCHD,Supporting People Programme,Grants to Voluntary Bodies,Second Step Housing Association,13599.72, 31-Jul-2015
519,Revenue,CCHD,Supporting People Programme,Grants to Voluntary Bodies,Second Step Housing Association,12004.51, 31-Jul-2015
520,Revenue,CCHD,Supporting People Programme,Grants to Voluntary Bodies,Supported Independence Ltd,3063.9, 01-Jul-2015
521,Revenue,CCHD,Supporting People Programme,Grants to Voluntary Bodies,Supported Independent Living Schemes,4757.58, 01-Jul-2015
522,Revenue,CCHD,Supporting People Programme,Grants to Voluntary Bodies,Supported Independent Living Schemes,6163.69, 01-Jul-2015
523,Revenue,CCHD,Supporting People Programme,Grants to Voluntary Bodies,Supported Independent Living Schemes,4757.58, 31-Jul-2015
524,Revenue,CCHD,Supporting People Programme,Grants to Voluntary Bodies,Supported Independent Living Schemes,6163.69, 31-Jul-2015
525,Revenue,CCHD,Supporting People Programme,Grants to Voluntary Bodies,The Hatch Camphill Community,2103.05, 01-Jul-2015
526,Revenue,CCHD,Supporting People Programme,Grants to Voluntary Bodies,The Hatch Camphill Community,2103.05, 31-Jul-2015
527,Revenue,CCHD,Supporting People Programme,Grants to Voluntary Bodies,The Riverside Group Limited,1944.33, 01-Jul-2015
528,Revenue,CCHD,Supporting People Programme,Grants to Voluntary Bodies,The Riverside Group Limited,2093.08, 31-Jul-2015
529,Revenue,CCHD,Supporting People Programme,Grants to Voluntary Bodies,Willowbank Care Limited,3041.16, 01-Jul-2015
530,Revenue,CCHD,Supporting People Programme,Grants to Voluntary Bodies,Willowbank Care Limited,3041.16, 31-Jul-2015
531,Revenue,CCHD,DAT Treatment,Electricity,Ashville Asset Management Limited,959.95, 13-Jul-2015
532,Revenue,CCHD,DAT Treatment,Training Expenses,Due North Ltd,900, 03-Jul-2015
533,Revenue,CCHD,DAT Treatment,Computer Equipment - Purchase,Stone Computers Limited,1260, 06-Jul-2015
534,Revenue,CCHD,TSG Practice Placements,Training Expenses,M Harris,1055, 21-Jul-2015
535,Revenue,CCHD,TSG Practice Placements,Training Expenses,University Of Bristol,1540, 10-Jul-2015
536,Revenue,CCHD,Training - Adult Services,Training Expenses,Chris Garnier,750, 10-Jul-2015
537,Revenue,CCHD,Training - Adult Services,Training Expenses,Equality & Diversity UK Limited,642.4, 03-Jul-2015
538,Revenue,CCHD,Training - Adult Services,Training Expenses,National Autistic Society,1875, 09-Jul-2015
539,Revenue,CCHD,Training - Adult Services,Training Expenses,Nelson Training Limited,1183.91, 28-Jul-2015
540,Revenue,CCHD,Training - Adult Services,Training Expenses,North Somerset Council,11900, 13-Jul-2015
541,Revenue,CCHD,Training - Adult Services,Training Expenses,QA Limited,4300, 09-Jul-2015
542,Revenue,CCHD,Training - Adult Services,Training Expenses,Qualsafe.com,646.52, 24-Jul-2015
543,Revenue,CCHD,Training - Adult Services,Training Expenses,Sean Collins,1200, 27-Jul-2015
544,Revenue,CCHD,Training - Adult Services,Fees & Charges Income - General,Skills for Care Solutions Ltd,879.37, 17-Jul-2015
545,Revenue,CCHD,Training - Adult Services,Training Expenses,St Peter`s Hospice,600, 17-Jul-2015
546,Revenue,CCHD,Training - Adult Services,Training Expenses,Telecare Services Association,1395, 17-Jul-2015
547,Revenue,CCHD,Community Care Contact Centre,Telephones,Vodafone Corporate Limited,3495.28, 08-Jul-2015
548,Revenue,CCHD,Adult Safeguarding Board,Professional Fees,Lewis Nolan Limited,1313.65, 20-Jul-2015
549,Revenue,CCHD,Adult Safeguarding Board,Professional Fees,Lewis Nolan Ltd1,500, 20-Jul-2015
550,Revenue,CCHD,Adult Safeguarding Board,Professional Fees,Lewis Nolan Ltd1,500, 20-Jul-2015
551,Revenue,CCHD,Adult Safeguarding Board,Professional Fees,Lewis Nolan Ltd1,500, 20-Jul-2015
552,Revenue,CCHD,Adults Safeguarding,Professional Fees,Lewis Nolan Limited,2070.2, 20-Jul-2015
553,Revenue,CCHD,Care Management Team - North,Health Services (Third Party Payments),Avon & Wiltshire Mental Health,1667, 31-Jul-2015
554,Revenue,CCHD,Care Management Team - South,Computer Equipment - Purchase,Stone Computers Limited,794, 06-Jul-2015
555,Revenue,CCHD,Care Management Team - South,Radio Pager/Mobile Phones,Vodafone Corporate Limited,47.73, 10-Jul-2015
556,Revenue,CCHD,Hospital Promoting Independence Team,Computer Equipment - Purchase,Stone Computers Limited,226, 06-Jul-2015
557,Revenue,CCHD,Hospital Promoting Independence Team,Care Management/Assessment Staff Pay,Sugarman Group Ltd,1006.86, 29-Jul-2015
558,Revenue,CCHD,Hospital Promoting Independence Team,Care Management/Assessment Staff Pay,Sugarman Group Ltd,1536.24, 29-Jul-2015
559,Revenue,CCHD,Hospital Promoting Independence Team,Care Management/Assessment Staff Pay,Sugarman Group Ltd,1453.2, 02-Jul-2015
560,Revenue,CCHD,Hospital Promoting Independence Team,Care Management/Assessment Staff Pay,Sugarman Group Ltd,1537.86, 02-Jul-2015
561,Revenue,CCHD,Hospital Promoting Independence Team,Care Management/Assessment Staff Pay,Sugarman Group Ltd,1542.54, 02-Jul-2015
562,Revenue,CCHD,Hospital Promoting Independence Team,Care Management/Assessment Staff Pay,Sugarman Group Ltd,1542.99, 02-Jul-2015
563,Revenue,CCHD,Hospital Promoting Independence Team,Care Management/Assessment Staff Pay,Sugarman Group Ltd,709.44, 16-Jul-2015
564,Revenue,CCHD,Hospital Promoting Independence Team,Care Management/Assessment Staff Pay,Sugarman Group Ltd,736.98, 16-Jul-2015
565,Revenue,CCHD,Hospital Promoting Independence Team,Care Management/Assessment Staff Pay,Sugarman Group Ltd,1539.66, 23-Jul-2015
566,Revenue,CCHD,Community Promoting Independence Team,Operations Support Staff Pay,Sugarman Group Ltd,1463.93, 09-Jul-2015
567,Revenue,CCHD,Community Promoting Independence Team,Operations Support Staff Pay,Sugarman Group Ltd,1152.45, 16-Jul-2015
568,Revenue,CCHD,Community Promoting Independence Team,Operations Support Staff Pay,Sugarman Group Ltd,1166.25, 23-Jul-2015
569,Revenue,CCHD,Community Promoting Independence Team,Operations Support Staff Pay,Sugarman Group Ltd,512.55, 30-Jul-2015
570,Revenue,CCHD,Senior Management,Agency Staff (Admin/Support Staff) Pay,Baltimore Consulting Group,2352, 15-Jul-2015
571,Revenue,CCHD,Senior Management,Radio Pager/Mobile Phones,Vodafone Corporate Limited,70.34, 10-Jul-2015
572,Revenue,CCHD,Information Systems - Software,Computer Equipment - Purchase,BT Global Services Solutions,984.77, 27-Jul-2015
573,Revenue,CCHD,Information Systems - Software,Software Support & Maintenance,Capita Business Services Ltd,420, 02-Jul-2015
574,Revenue,CCHD,Information Systems - Software,Software Support & Maintenance,Higher Mapping Solutions,1750, 10-Jul-2015
575,Revenue,CCHD,Information Systems - Software,Computer Equipment - Purchase,Stone Computers Limited,1023, 06-Jul-2015
576,Revenue,CCHD,Information Systems - Software,Radio Pager/Mobile Phones,Vodafone Corporate Limited,59.7, 10-Jul-2015
577,Revenue,CCHD,Information Systems Team - enabling CSP,Radio Pager/Mobile Phones,Vodafone Corporate Limited,12.28, 10-Jul-2015
578,Revenue,CCHD,Planning and Partnerships Team,Training Expenses,Due North Ltd,900, 03-Jul-2015
579,Revenue,CCHD,Planning and Partnerships Team,Other Supplies & Services,NEF Consulting Ltd,575, 17-Jul-2015
580,Revenue,CCHD,Planning and Partnerships Team,Other Supplies & Services,NEF Consulting Ltd,575, 17-Jul-2015
581,Revenue,CCHD,Planning and Partnerships Team,Radio Pager/Mobile Phones,Vodafone Corporate Limited,76.38, 10-Jul-2015
582,Revenue,CCHD,Contracts & Commissioning Team,Radio Pager/Mobile Phones,Vodafone Corporate Limited,38.02, 10-Jul-2015
583,Revenue,CCHD,Finance - FAB,Radio Pager/Mobile Phones,Vodafone Corporate Limited,62.71, 10-Jul-2015
584,Revenue,CCHD,Community Support - MH < 65,Preventative Assistance,1st Choice Removals & Storage Limited,1006, 09-Jul-2015
585,Revenue,CCHD,Community Support - North,Preventative Assistance,Dobbins Industrial Cleaning Limited,1200, 20-Jul-2015
586,Revenue,CCHD,Community Support - North,Preventative Assistance,KCC Cleaning Services Limited,780, 17-Jul-2015
587,Revenue,CCHD,Community Support - South,Preventative Assistance,Paul`s Place,719.18, 24-Jul-2015
588,Revenue,CCHD,Telecare,Other Supplies & Services,Tunstall Healthcare (UK) Limited,3030, 03-Jul-2015
589,Revenue,CCHD,Telecare,Other Supplies & Services,Tynetec Limited,727.25, 10-Jul-2015
590,Revenue,CCHD,Telecare,Other Supplies & Services,Tynetec Limited,2321.6, 07-Jul-2015
591,Revenue,CCHD,Home Care - General,Radio Pager/Mobile Phones,Vodafone Corporate Limited,42.08, 10-Jul-2015
592,Revenue,CCHD,Kingswood Centre - Maple Suite,Agency Staff (Operational)/PCT Pay,OCS Group UK Ltd,514.8, 28-Jul-2015
593,Revenue,CCHD,Kingswood Centre - Maple Suite,Agency Staff (Operational)/PCT Pay,Prestige Nursing,1255.8, 28-Jul-2015
594,Revenue,CCHD,Kingswood Centre - Maple Suite,Agency Staff (Operational)/PCT Pay,Prestige Nursing,869.4, 20-Jul-2015
595,Revenue,CCHD,Kingswood Centre - Maple Suite,Agency Staff (Operational)/PCT Pay,Prestige Nursing,772.8, 20-Jul-2015
596,Revenue,CCHD,Woodleaze,Prop.Serv. General Repairs,A G Gribble Limited,9880, 08-Jul-2015
597,Revenue,CCHD,Woodleaze,Prop.Serv. General Repairs,Apre Surfacing Limited,550, 24-Jul-2015
598,Revenue,CCHD,Woodleaze,Radio Pager/Mobile Phones,Vodafone Corporate Limited,23.1, 10-Jul-2015
599,Revenue,CCHD,Woodleaze,Gas,West Mercia Energy,859.11, 16-Jul-2015
600,Revenue,CCHD,Woodleaze,Electricity,West Mercia Energy,1340.58, 15-Jul-2015
601,Revenue,CCHD,Woodleaze,Electricity,West Mercia Energy,1320.25, 15-Jul-2015
602,Revenue,CCHD,Woodleaze,Electricity,West Mercia Energy,1192.62, 15-Jul-2015
603,Revenue,CCHD,Woodleaze,Electricity,West Mercia Energy,1320.25, 15-Jul-2015
604,Revenue,CCHD,Woodleaze,Electricity,West Mercia Energy,1310.45, 15-Jul-2015
605,Revenue,CCHD,Woodleaze,Electricity,West Mercia Energy,1100.28, 15-Jul-2015
606,Revenue,CCHD,Newton House,Electricity,West Mercia Energy,761.99, 15-Jul-2015
607,Revenue,CCHD,Alexandra Way,"Provisions (Food, etc)",Brake Bros,566.95, 28-Jul-2015
608,Revenue,CCHD,Alexandra Way,"Provisions (Food, etc)",Brake Bros,603.41, 28-Jul-2015
609,Revenue,CCHD,Alexandra Way,"Provisions (Food, etc)",Brake Bros,516.54, 28-Jul-2015
610,Revenue,CCHD,Alexandra Way,Prop.Serv. General Repairs,George Grimes,865.5, 08-Jul-2015
611,Revenue,CCHD,Alexandra Way,Agency Staff (Operational)/PCT Pay,Prestige Nursing,1105.58, 13-Jul-2015
612,Revenue,CCHD,Alexandra Way,Agency Staff (Operational)/PCT Pay,Prestige Nursing,749.98, 13-Jul-2015
613,Revenue,CCHD,Alexandra Way,Agency Staff (Operational)/PCT Pay,Prestige Nursing,667.6, 28-Jul-2015
614,Revenue,CCHD,Alexandra Way,Electricity,West Mercia Energy,1603.1, 15-Jul-2015
615,Revenue,CCHD,Alexandra Way,Gas,West Mercia Energy,836.43, 16-Jul-2015
616,Revenue,CCHD,CAH Assistant Directors,Agency Staff (Admin/Support Staff) Pay,Gatenby Sanderson Limited,13039, 16-Jul-2015
617,Revenue,CCHD,CAH Director,Membership Fees,Association of Directors of Childrens Services Ltd,2351.25, 14-Jul-2015
618,Revenue,CCHD,CAH Director,Radio Pager/Mobile Phones,Vodafone Corporate Limited,78.89, 10-Jul-2015
619,Revenue,CCHD,SW HAWB Support,Consultants Fees,Fairy Dust  Consulting,724.8, 31-Jul-2015
620,Revenue,CCHD,Children & Young People�s Health,Other Small Contracts,Barnardos,8000, 23-Jul-2015
621,Revenue,CCHD,Children & Young People�s Health,Other Small Contracts,North Bristol NHS Trust,245500, 20-Jul-2015
622,Revenue,CCHD,Children & Young People�s Health,Other Small Contracts,North Bristol NHS Trust,122750, 20-Jul-2015
623,Revenue,CCHD,Children & Young People�s Health,Other Small Contracts,North Bristol NHS Trust,40917, 20-Jul-2015
624,Revenue,CCHD,Mental Health and Emotional Wellbeing,Other Small Contracts,Age UK South Gloucestershire,14475, 01-Jul-2015
625,Revenue,CCHD,Mental Health and Emotional Wellbeing,Other Small Contracts,Alzheimers Society,10983.75, 01-Jul-2015
626,Revenue,CCHD,Mental Health and Emotional Wellbeing,Other Small Contracts,Mothers for Mothers,2250, 01-Jul-2015
627,Revenue,CCHD,"Physical Activity, Nutrition & Obesity",Other Small Contracts,Discovery Learning & WMC Ltd,2800, 09-Jul-2015
628,Revenue,CCHD,"Physical Activity, Nutrition & Obesity",Other Small Contracts,Sporting Chance,557.6, 14-Jul-2015
629,Revenue,CCHD,NHS Health Checks & Tobacco Control,Drugs & Medical Supplies,Asda Stores Limited,570.8, 20-Jul-2015
630,Revenue,CCHD,NHS Health Checks & Tobacco Control,Drugs & Medical Supplies,JRW Billing,1139.14, 20-Jul-2015
631,Revenue,CCHD,NHS Health Checks & Tobacco Control,Drugs & Medical Supplies,M J Williams Ltd T/ A Abbotswood Pharmacy,580.92, 22-Jul-2015
632,Revenue,CCHD,NHS Health Checks & Tobacco Control,Software Support & Maintenance,North 51 Limited,6300, 22-Jul-2015
633,Revenue,CCHD,NHS Health Checks & Tobacco Control,Drugs & Medical Supplies,Tesco,740.94, 20-Jul-2015
634,Revenue,CCHD,NHS Health Checks & Tobacco Control,Drugs & Medical Supplies,Tesco,756.46, 20-Jul-2015
635,Revenue,CCHD,Health Inequalities,Other Small Contracts,Bristol & Avon Chinese Womens Group,500, 01-Jul-2015
636,Revenue,CCHD,Health Inequalities,Other Small Contracts,Carers Support Centre,59557.75, 01-Jul-2015
637,Revenue,CCHD,Health Inequalities,Other Small Contracts,Dhek Bhal,500, 01-Jul-2015
638,Revenue,CCHD,Health Inequalities,Other Small Contracts,Frampton Cotterell Carers Group,500, 01-Jul-2015
639,Revenue,CCHD,Health Inequalities,Other Small Contracts,Mo Dymond Support Groups,500, 01-Jul-2015
640,Revenue,CCHD,Health Inequalities,Other Small Contracts,Mo Dymond Support Groups,500, 01-Jul-2015
641,Revenue,CCHD,Health Inequalities,Other Small Contracts,Mo Dymond Support Groups,500, 01-Jul-2015
642,Revenue,CCHD,Health Inequalities,Other Small Contracts,Paul`s Place,2000, 01-Jul-2015
643,Revenue,CCHD,Health Inequalities,Other Small Contracts,The Care Forum,12262.5, 01-Jul-2015
644,Revenue,CCHD,Health Inequalities,Other Supplies & Services,Wellington Road Family Practice L81642,1500, 10-Jul-2015
645,Revenue,CCHD,Sexual Health,Other Supplies & Services,Dr Annie Egginton,695, 10-Jul-2015
646,Revenue,CCHD,Sexual Health,Other Supplies & Services,Imperial College Healthcare NHS Trust,651, 20-Jul-2015
647,Revenue,CCHD,Sexual Health,Other Small Contracts,Terrence Higgins Trust,12109.25, 01-Jul-2015
648,Revenue,CCHD,Sexual Health,Other Small Contracts,The Brigstowe Project,3075, 01-Jul-2015
649,Revenue,CCHD,Sexual Health,External Lecturers Expenses,The Diversity Trust,748, 30-Jul-2015
650,Revenue,CCHD,Sexual Health,Other Small Contracts,University Hospitals Bristol,27220.75, 24-Jul-2015
651,Revenue,CCHD,Sexual Health,Other Supplies & Services,University Hospitals Bristol,67288.94, 24-Jul-2015
652,Revenue,CCHD,Sexual Health,Other Supplies & Services,Weston Area Health Trust,689.7, 20-Jul-2015
653,Revenue,CCHD,Sexual Health,Other Supplies & Services,Weston Area Health Trust,798.16, 24-Jul-2015
654,Revenue,CCHD,Sexual Health,Other Supplies & Services,Weston Area Health Trust,705.5, 20-Jul-2015
655,Revenue,CCHD,"Strategy, Advice and Public Protection",Conference Expenses,Bawa Healthcare & Leisure,2284.37, 20-Jul-2015
656,Revenue,CCHD,"Strategy, Advice and Public Protection",Other Supplies & Services,Rowe Veterinary Group,422.36, 28-Jul-2015
657,Revenue,CCHD,Leadership and Business Support,Other Small Contracts,NHS South Gloucestershire CCG,90423, 20-Jul-2015
658,Revenue,CCHD,Leadership and Business Support,Consultants Fees,Ruth Woolley Ltd,648.92, 06-Jul-2015
659,Revenue,CCHD,Leadership and Business Support,Consultants Fees,Ruth Woolley Ltd,588.92, 06-Jul-2015
660,Revenue,CCHD,Leadership and Business Support,Consultants Fees,Ruth Woolley Ltd,862.03, 06-Jul-2015
661,Revenue,CCHD,Leadership and Business Support,Consultants Fees,Ruth Woolley Ltd,759.22, 06-Jul-2015
662,Revenue,CCHD,Leadership and Business Support,Consultants Fees,Ruth Woolley Ltd,937.81, 06-Jul-2015
663,Revenue,CCHD,Leadership and Business Support,Other Small Contracts,The Care Forum,4550, 01-Jul-2015
664,Revenue,CCHD,Leadership and Business Support,Membership Fees,UK Health Forum,1700, 31-Jul-2015
665,Revenue,CCHD,Public Health Project Funding,Consultants Fees,D Harvey Consulting Limited,4749.5, 03-Jul-2015
666,Revenue,CCHD,Public Health Project Funding,Consultants Fees,D Harvey Consulting Limited,1969, 07-Jul-2015
667,Revenue,CCHD,Public Health Project Funding,Consultants Fees,D Harvey Consulting Limited,1969, 02-Jul-2015
668,Revenue,CCHD,s256 - Additional Support Funding,Other Supplies & Services,University Of The West Of England,19187.5, 31-Jul-2015
669,Revenue,CCHD,Planning and Partnerships Procurement,Other Supplies & Services,Eldercare,1522.9, 20-Jul-2015
670,Revenue,CCHD,Planning and Partnerships Procurement,Other Supplies & Services,Tunstall Healthcare (UK) Limited,14149.07, 27-Jul-2015
671,Revenue,CCHD,Planning and Partnerships Procurement,Other Supplies & Services,Tynetec Limited,1044.5, 10-Jul-2015
672,Revenue,CCHD,Planning and Partnerships Procurement,Other Supplies & Services,Tynetec Limited,2321.6, 07-Jul-2015
673,Revenue,CCHD,Planning and Partnerships Procurement,Other Supplies & Services,Tynetec Limited,1833.93, 07-Jul-2015
674,Revenue,CCHD,Planning and Partnerships Procurement,Other Supplies & Services,Tynetec Limited,2048.41, 07-Jul-2015
675,Revenue,CCHD,Planning and Partnerships Procurement,Radio Pager/Mobile Phones,Vodafone Corporate Limited,65.67, 10-Jul-2015
676,Revenue,CCHD,SLA Grants - Support Serv,Grants to Voluntary Bodies,Carers Support Centre,12275, 01-Jul-2015
677,Revenue,CCHD,SLA Grants - Support Serv,Grants to Voluntary Bodies,Carers Support Centre,24775, 01-Jul-2015
678,Revenue,CCHD,SLA Grants - Support Serv,Grants to Voluntary Bodies,North Bristol NHS Trust,4350, 01-Jul-2015
679,Revenue,CCHD,SLA Grants - Support Serv,Grants to Voluntary Bodies,Time For Carers,2125, 01-Jul-2015
680,Revenue,CCHD,Elderly MH Day Care North,Day Care / Social Activities,Agincare UK Limited,50.05, 01-Jul-2015
681,Revenue,CCHD,Elderly MH Day Care North,Day Care / Social Activities,Agincare UK Limited,61.6, 01-Jul-2015
682,Revenue,CCHD,Elderly MH Day Care North,Day Care / Social Activities,Agincare UK Limited,61.6, 06-Jul-2015
683,Revenue,CCHD,Elderly MH Day Care North,Day Care / Social Activities,Agincare UK Limited,50.05, 15-Jul-2015
684,Revenue,CCHD,Elderly MH Day Care North,Day Care / Social Activities,Premier Homecare Limited,73.76, 14-Jul-2015
685,Revenue,CCHD,Elderly MH Day Care North,Day Care / Social Activities,Premier Homecare Limited,73.76, 14-Jul-2015
686,Revenue,CCHD,Elderly MH Day Care North,Day Care / Social Activities,Premier Homecare Limited,73.76, 14-Jul-2015
687,Revenue,CCHD,Elderly MH Day Care North,Day Care / Social Activities,Premier Homecare Limited,73.76, 21-Jul-2015
688,Revenue,CCHD,Home care - Elderly MH - North,Other Small Contracts,Helping Hands Homecare,58.65, 10-Jul-2015
689,Revenue,CCHD,Home care - Elderly MH - North,Other Small Contracts,Helping Hands Homecare,62.56, 10-Jul-2015
690,Revenue,CCHD,Home care - Elderly MH - North,Other Small Contracts,Helping Hands Homecare,62.56, 10-Jul-2015
691,Revenue,CCHD,Home care - Elderly MH - North,Other Small Contracts,Helping Hands Homecare,62.56, 10-Jul-2015
692,Revenue,CCHD,Home care - Elderly MH - North,Other Small Contracts,Helping Hands Homecare,58.65, 10-Jul-2015
693,Revenue,CCHD,Home care - Elderly MH - North,Other Small Contracts,Helping Hands Homecare,70.38, 24-Jul-2015
694,Revenue,CCHD,Home care - Elderly MH - North,Other Small Contracts,Helping Hands Homecare,70.38, 24-Jul-2015
695,Revenue,CCHD,Home care - Elderly MH - North,Other Small Contracts,Helping Hands Homecare,67.32, 30-Jul-2015
696,Revenue,CCHD,Home care - Elderly MH - North,Other Small Contracts,Milestones Homecare & Dementia Service,47.16, 16-Jul-2015
697,Revenue,CCHD,Home care - Elderly MH - North,Other Small Contracts,Milestones Homecare & Dementia Service,35.37, 16-Jul-2015
698,Revenue,CCHD,Home care - Elderly MH - North,Other Small Contracts,Milestones Homecare & Dementia Service,55.02, 16-Jul-2015
699,Revenue,CCHD,Home care - Elderly MH - North,Other Small Contracts,Milestones Homecare & Dementia Service,51.09, 16-Jul-2015
700,Revenue,CCHD,Home care - Elderly MH - North,Other Small Contracts,Milestones Homecare & Dementia Service,35.37, 31-Jul-2015
701,Revenue,CCHD,Home care - Elderly MH - North,Other Small Contracts,Milestones Supported Living Services,96.64, 02-Jul-2015
702,Revenue,CCHD,Home care - Elderly MH - North,Other Small Contracts,Milestones Supported Living Services,96.64, 06-Jul-2015
703,Revenue,CCHD,Home care - Elderly MH - North,Other Small Contracts,Milestones Supported Living Services,96.64, 06-Jul-2015
704,Revenue,CCHD,Home care - Elderly MH - North,Other Small Contracts,Milestones Supported Living Services,96.64, 03-Jul-2015
705,Revenue,CCHD,Home care - Elderly MH - North,Other Small Contracts,Milestones Supported Living Services,72.58, 29-Jul-2015
706,Revenue,CCHD,Home care - Elderly MH - North,Other Small Contracts,Milestones Supported Living Services,64.56, 29-Jul-2015
707,Revenue,CCHD,Home care - Elderly MH - North,Other Small Contracts,Nestor T/A Allied Healthcare,57.75, 06-Jul-2015
708,Revenue,CCHD,Home care - Elderly MH - North,Other Small Contracts,Nestor T/A Allied Healthcare,53.9, 07-Jul-2015
709,Revenue,CCHD,Home care - Elderly MH - North,Other Small Contracts,Nestor T/A Allied Healthcare,50.05, 07-Jul-2015
710,Revenue,CCHD,Home care - Elderly MH - North,Other Small Contracts,Nestor T/A Allied Healthcare,53.9, 08-Jul-2015
711,Revenue,CCHD,Home care - Elderly MH - North,Other Small Contracts,Premier Homecare Limited,129.08, 14-Jul-2015
712,Revenue,CCHD,Home care - Elderly MH - North,Other Small Contracts,Premier Homecare Limited,129.08, 14-Jul-2015
713,Revenue,CCHD,Home care - Elderly MH - North,Other Small Contracts,Premier Homecare Limited,129.08, 14-Jul-2015
714,Revenue,CCHD,Home care - Elderly MH - North,Other Small Contracts,Premier Homecare Limited,124.47, 21-Jul-2015
715,Revenue,CCHD,Younger MH non-res purchasing,Day Care / Social Activities,Aspirations Support Bristol Limited,6233.1, 07-Jul-2015
716,Revenue,CCHD,Younger MH non-res purchasing,Supported Living,Aspirations Support Bristol Limited,4467.9, 07-Jul-2015
717,Revenue,CCHD,Younger MH non-res purchasing,Day Care / Social Activities,Aspirations Support Bristol Limited,6222.58, 07-Jul-2015
718,Revenue,CCHD,Younger MH non-res purchasing,Supported Living,Aspirations Support Bristol Limited,4441.4, 07-Jul-2015
719,Revenue,CCHD,Younger MH non-res purchasing,Other Small Contracts,Aspirations Support Bristol Limited,10700.72, 20-Jul-2015
720,Revenue,CCHD,Younger MH non-res purchasing,Supported Living,Aspirations Support Bristol Limited,105.2, 20-Jul-2015
721,Revenue,CCHD,Younger MH non-res purchasing,Other Small Contracts,Aspirations Support Bristol Limited,10632.26, 27-Jul-2015
722,Revenue,CCHD,Younger MH non-res purchasing,Supported Living,Aspirations Support Bristol Limited,105.2, 27-Jul-2015
723,Revenue,CCHD,Younger MH non-res purchasing,Other Small Contracts,Aspirations Support Bristol Limited,10711.36, 27-Jul-2015
724,Revenue,CCHD,Younger MH non-res purchasing,Supported Living,Aspirations Support Bristol Limited,105.2, 27-Jul-2015
725,Revenue,CCHD,Younger MH non-res purchasing,Supported Living,Julia Simone- Supp. Ind.,1178.36, 07-Jul-2015
726,Revenue,CCHD,Younger MH non-res purchasing,Day Care / Social Activities,Milestones Supported Living Services,22.8, 02-Jul-2015
727,Revenue,CCHD,Younger MH non-res purchasing,Day Care / Social Activities,Milestones Supported Living Services,31.92, 06-Jul-2015
728,Revenue,CCHD,Younger MH non-res purchasing,Day Care / Social Activities,Milestones Supported Living Services,22.8, 03-Jul-2015
729,Revenue,CCHD,Younger MH non-res purchasing,Day Care / Social Activities,Milestones Supported Living Services,31.92, 29-Jul-2015
730,Revenue,CCHD,Younger MH non-res purchasing,Day Care / Social Activities,Milestones Supported Living Services,27.36, 29-Jul-2015
731,Revenue,CCHD,Younger MH non-res purchasing,Day Care / Social Activities,NAS Services Limited,437.18, 17-Jul-2015
732,Revenue,CCHD,Younger MH non-res purchasing,Day Care / Social Activities,NAS Services Limited,505.18, 17-Jul-2015
733,Revenue,CCHD,Younger MH non-res purchasing,Day Care / Social Activities,Supported Independence Ltd,971.52, 24-Jul-2015
734,Revenue,CCHD,Younger MH non-res purchasing,Day Care / Social Activities,Supported Independence Ltd,526.24, 24-Jul-2015
735,Revenue,CCHD,Younger MH non-res purchasing,Day Care / Social Activities,Voyage Limited,5765.76, 31-Jul-2015
736,Revenue,CCHD,Under 65s -MH  Home Care Purch,Other Small Contracts,Helping Hands Homecare,27.37, 10-Jul-2015
737,Revenue,CCHD,Under 65s -MH  Home Care Purch,Other Small Contracts,Helping Hands Homecare,27.37, 10-Jul-2015
738,Revenue,CCHD,Under 65s -MH  Home Care Purch,Other Small Contracts,Helping Hands Homecare,31.28, 10-Jul-2015
739,Revenue,CCHD,Under 65s -MH  Home Care Purch,Other Small Contracts,Helping Hands Homecare,31.28, 10-Jul-2015
740,Revenue,CCHD,Under 65s -MH  Home Care Purch,Other Small Contracts,Helping Hands Homecare,31.28, 10-Jul-2015
741,Revenue,CCHD,Under 65s -MH  Home Care Purch,Other Small Contracts,Helping Hands Homecare,31.28, 24-Jul-2015
742,Revenue,CCHD,Under 65s -MH  Home Care Purch,Other Small Contracts,Helping Hands Homecare,31.28, 24-Jul-2015
743,Revenue,CCHD,Under 65s -MH  Home Care Purch,Other Small Contracts,Helping Hands Homecare,31.68, 30-Jul-2015
744,Revenue,CCHD,Under 65s -MH  Home Care Purch,Other Small Contracts,Mears Care,113.1, 20-Jul-2015
745,Revenue,CCHD,Under 65s -MH  Home Care Purch,Other Small Contracts,Mears Care,117, 21-Jul-2015
746,Revenue,CCHD,Under 65s -MH  Home Care Purch,Other Small Contracts,Mears Care,113.1, 20-Jul-2015
747,Revenue,CCHD,Under 65s -MH  Home Care Purch,Other Small Contracts,Mrs B Kimber -  CM2000,66.56, 08-Jul-2015
748,Revenue,CCHD,Under 65s -MH  Home Care Purch,Other Small Contracts,Mrs B Kimber -  CM2000,66.56, 08-Jul-2015
749,Revenue,CCHD,Under 65s -MH  Home Care Purch,Other Small Contracts,Mrs B Kimber -  CM2000,66.56, 08-Jul-2015
750,Revenue,CCHD,Under 65s -MH  Home Care Purch,Other Small Contracts,Mrs B Kimber -  CM2000,66.56, 27-Jul-2015
751,Revenue,CCHD,Under 65s -MH  Home Care Purch,Other Small Contracts,Mrs B Kimber -  CM2000,66.56, 27-Jul-2015
752,Revenue,CCHD,Mental Capacity Act - Advocacy,Other Supplies & Services,Armadillo Youth Venue & Cafe,640, 30-Jul-2015
753,Revenue,CCHD,Mental Capacity Act - Advocacy,Other Supplies & Services,Sirona Care & Health CIC,8250, 08-Jul-2015
754,Revenue,CCHD,Mental Capacity Act - Advocacy,Radio Pager/Mobile Phones,Vodafone Corporate Limited,92.74, 10-Jul-2015
755,Revenue,CCHD,Section 117 Placements MH Younger,Permanent Residential,Ash View House,6565.76, 07-Jul-2015
756,Revenue,CCHD,Section 117 Placements MH Younger,Day Care / Social Activities,Aspirations Support Bristol Limited,42168, 07-Jul-2015
757,Revenue,CCHD,Section 117 Placements MH Younger,Permanent Residential,Bedrock Lodge,1885.04, 07-Jul-2015
758,Revenue,CCHD,Section 117 Placements MH Younger,Permanent Residential,Church House,7649.04, 07-Jul-2015
759,Revenue,CCHD,Section 117 Placements MH Younger,Permanent Residential,Gladstone House,2792, 07-Jul-2015
760,Revenue,CCHD,Section 117 Placements MH Younger,Permanent Residential,Milestones - Unit 10,1372, 07-Jul-2015
761,Revenue,CCHD,Section 117 Placements MH Younger,Permanent Residential,Milestones - Unit 10,1372, 07-Jul-2015
762,Revenue,CCHD,Section 117 Placements MH Younger,Day Care / Social Activities,Moving On,1537.29, 16-Jul-2015
763,Revenue,CCHD,Section 117 Placements MH Younger,Day Care / Social Activities,NAS Services Limited,1272.96, 27-Jul-2015
764,Revenue,CCHD,Section 117 Placements MH Younger,Day Care / Social Activities,NAS Services Limited,561.68, 17-Jul-2015
765,Revenue,CCHD,Section 117 Placements MH Younger,Permanent Nursing,Oaklands,6154.56, 07-Jul-2015
766,Revenue,CCHD,Section 117 Placements MH Younger,Day Care / Social Activities,Supported Independence Ltd,1260, 15-Jul-2015
767,Revenue,CCHD,Section 117 Placements MH Younger,Day Care / Social Activities,Supported Independence Ltd,1260, 17-Jul-2015
768,Revenue,CCHD,Section 117 Placements MH Younger,Day Care / Social Activities,Supported Independence Ltd,627.44, 24-Jul-2015
769,Revenue,CCHD,Section 117 Placements MH Younger,Day Care / Social Activities,Supported Independence Ltd,2671.68, 24-Jul-2015
770,Revenue,CCHD,Bed Purchasing - Elderly S117- North,Permanent Nursing,Beaufort Grange Care Home,5896, 07-Jul-2015
771,Revenue,CCHD,Bed Purchasing - Elderly S117- North,Permanent Nursing,Beaufort Grange Care Home,2988.36, 07-Jul-2015
772,Revenue,CCHD,Bed Purchasing - Elderly S117- North,Respite Planned - Residential,Beaufort House,2701.43, 07-Jul-2015
773,Revenue,CCHD,Bed Purchasing - Elderly S117- North,Respite Planned - Residential,Beaufort House,2440, 07-Jul-2015
774,Revenue,CCHD,Bed Purchasing - Elderly S117- North,Permanent Nursing,Blossom Field,2012, 07-Jul-2015
775,Revenue,CCHD,Bed Purchasing - Elderly S117- North,Permanent Nursing,Brunelcare,2528.83, 21-Jul-2015
776,Revenue,CCHD,Bed Purchasing - Elderly S117- North,Permanent Nursing,Brunelcare,2528.83, 21-Jul-2015
777,Revenue,CCHD,Bed Purchasing - Elderly S117- North,Permanent Nursing,Brunelcare,2528.83, 21-Jul-2015
778,Revenue,CCHD,Bed Purchasing - Elderly S117- North,Permanent Residential,Canjayor,2359.24, 07-Jul-2015
779,Revenue,CCHD,Bed Purchasing - Elderly S117- North,Permanent Residential,Citibase Watford,9028.6, 07-Jul-2015
780,Revenue,CCHD,Bed Purchasing - Elderly S117- North,Permanent Nursing,Danshell Healthcare Group,11653.52, 07-Jul-2015
781,Revenue,CCHD,Bed Purchasing - Elderly S117- North,Permanent Nursing,Fshc  1St Floor,2012, 07-Jul-2015
782,Revenue,CCHD,Bed Purchasing - Elderly S117- North,Permanent Residential,Milestones - Unit 10,1776, 07-Jul-2015
783,Revenue,CCHD,Bed Purchasing - Elderly S117- North,Permanent Residential,Osbourne Court,1948, 07-Jul-2015
784,Revenue,CCHD,Bed Purchasing - Elderly S117- North,Permanent Residential,Real Life Options,6704.28, 07-Jul-2015
785,Revenue,CCHD,Bed Purchasing - Elderly S117- North,Permanent Nursing,Redholme Memory Care Limited,2013.36, 07-Jul-2015
786,Revenue,CCHD,Bed Purchasing - Elderly S117- North,Permanent Residential,Templemore Care Home,2256.68, 07-Jul-2015
787,Revenue,CCHD,Bed Purchasing - Elderly S117- North,Permanent Residential,The Grove,2148.16, 07-Jul-2015
788,Revenue,CCHD,Bed Purchasing - Elderly S117- North,Permanent Residential,The Grove,2800, 07-Jul-2015
789,Revenue,CCHD,Bed Purchasing - Elderly S117- North,Permanent Residential,The Old Vicarage Residential Home,1948, 15-Jul-2015
790,Revenue,CCHD,Bed Purchasing - Elderly S117- North,Permanent Residential,Windmill House,1776, 07-Jul-2015
791,Revenue,CCHD,Bed Purchasing - Elderly S117- North,Permanent Nursing,Woodspring Stadium,2922.24, 07-Jul-2015
792,Revenue,CCHD,MH Purchasing - Younger,Permanent Residential,Brightbow,1503.92, 07-Jul-2015
793,Revenue,CCHD,MH Purchasing - Younger,Permanent Residential,Dunraven House,1875.4, 07-Jul-2015
794,Revenue,CCHD,MH Purchasing - Younger,Permanent Residential,Milestones - Unit 10,866.8, 07-Jul-2015
795,Revenue,CCHD,MH Purchasing - Younger,Permanent Residential,Milestones - Unit 10,1050.2, 07-Jul-2015
796,Revenue,CCHD,MH Purchasing - Younger,Permanent Nursing,Milestones - Unit 10,950.96, 07-Jul-2015
797,Revenue,CCHD,MH Purchasing - Younger,Permanent Nursing,Milestones - Unit 10,958.8, 07-Jul-2015
798,Revenue,CCHD,MH Purchasing - Younger,Respite Planned - Residential,Milestones - Unit 10,3774.8, 07-Jul-2015
799,Revenue,CCHD,MH Purchasing - Younger,Permanent Residential,Notaro Homes Ltd  Queensmead Court,3032.4, 07-Jul-2015
800,Revenue,CCHD,MH Purchasing - Younger,Permanent Nursing,Stanley House,4422.4, 07-Jul-2015
801,Revenue,CCHD,MH Purchasing - Younger,Permanent Residential,Ventura Residential Care Home,1400.32, 07-Jul-2015
802,Revenue,CCHD,Bed purchasing - Elderly S117 - South,Permanent Residential,Ash View House,6246.76, 07-Jul-2015
803,Revenue,CCHD,Bed purchasing - Elderly S117 - South,Permanent Nursing,Brunelcare,2528.83, 21-Jul-2015
804,Revenue,CCHD,Bed purchasing - Elderly S117 - South,Permanent Nursing,Fairview Court,2012, 07-Jul-2015
805,Revenue,CCHD,Bed purchasing - Elderly S117 - South,Permanent Nursing,Fairview Court Care Home,2555.61, 14-Jul-2015
806,Revenue,CCHD,Bed purchasing - Elderly S117 - South,Permanent Residential,Fairview House,1937.56, 07-Jul-2015
807,Revenue,CCHD,Bed purchasing - Elderly S117 - South,Permanent Nursing,Fshc  1St Floor,1904, 07-Jul-2015
808,Revenue,CCHD,Bed purchasing - Elderly S117 - South,Permanent Nursing,Fshc  1St Floor,1904, 07-Jul-2015
809,Revenue,CCHD,Bed purchasing - Elderly S117 - South,Permanent Nursing,Fshc  1St Floor,2080, 07-Jul-2015
810,Revenue,CCHD,Bed purchasing - Elderly S117 - South,Permanent Nursing,Fshc  1St Floor,1040, 07-Jul-2015
811,Revenue,CCHD,Bed purchasing - Elderly S117 - South,Permanent Nursing,Fshc  1St Floor,2012, 07-Jul-2015
812,Revenue,CCHD,Bed purchasing - Elderly S117 - South,Permanent Nursing,Gracefields Nursing Home,2381.88, 07-Jul-2015
813,Revenue,CCHD,Bed purchasing - Elderly S117 - South,Permanent Nursing,Meadow Care Home,2420, 07-Jul-2015
814,Revenue,CCHD,Bed purchasing - Elderly S117 - South,Permanent Nursing,Milestones - Unit 10,2012, 07-Jul-2015
815,Revenue,CCHD,Bed purchasing - Elderly S117 - South,Permanent Nursing,Milestones - Unit 10,2012, 07-Jul-2015
816,Revenue,CCHD,Bed purchasing - Elderly S117 - South,Permanent Residential,Osprey Court,11450.92, 07-Jul-2015
817,Revenue,CCHD,Bed purchasing - Elderly S117 - South,Permanent Nursing,Regent House,3028.8, 07-Jul-2015
818,Revenue,CCHD,Bed purchasing - Elderly S117 - South,Permanent Residential,The Gables Residential Home,2271.16, 07-Jul-2015
819,Revenue,CCHD,Bed purchasing - Elderly S117 - South,Permanent Residential,The Grove,2381.88, 07-Jul-2015
820,Revenue,CCHD,Bed purchasing - Elderly S117 - South,Permanent Residential,The Grove,2830.24, 07-Jul-2015
821,Revenue,CCHD,Bed purchasing - Elderly S117 - South,Permanent Residential,Wayside Residential Care Home,2122.68, 07-Jul-2015
822,Revenue,CCHD,Direct Payments - Phys Dis - North,Grants to Voluntary Bodies,Aquarium Card Management Solutions Ltd,1862, 13-Jul-2015
823,Revenue,CCHD,Day Care - North,Day Care / Social Activities,About Me Care and Support Limited,709.32, 07-Jul-2015
824,Revenue,CCHD,Day Care - North,Day Care / Social Activities,About Me Care and Support Limited,781.28, 24-Jul-2015
825,Revenue,CCHD,Day Care - North,Day Care / Social Activities,Headway Bristol,336.64, 21-Jul-2015
826,Revenue,CCHD,Day Care - North,Day Care / Social Activities,Headway Bristol,84.16, 21-Jul-2015
827,Revenue,CCHD,Day Care - North,Day Care / Social Activities,Helping Hands Homecare,93.84, 10-Jul-2015
828,Revenue,CCHD,Day Care - North,Day Care / Social Activities,Helping Hands Homecare,93.84, 10-Jul-2015
829,Revenue,CCHD,Day Care - North,Day Care / Social Activities,Helping Hands Homecare,93.84, 10-Jul-2015
830,Revenue,CCHD,Day Care - North,Day Care / Social Activities,Helping Hands Homecare,86.02, 10-Jul-2015
831,Revenue,CCHD,Day Care - North,Day Care / Social Activities,Helping Hands Homecare,93.84, 10-Jul-2015
832,Revenue,CCHD,Day Care - North,Day Care / Social Activities,Helping Hands Homecare,93.84, 24-Jul-2015
833,Revenue,CCHD,Day Care - North,Day Care / Social Activities,Helping Hands Homecare,89.93, 24-Jul-2015
834,Revenue,CCHD,Day Care - North,Day Care / Social Activities,Helping Hands Homecare,95.04, 30-Jul-2015
835,Revenue,CCHD,Day Care - North,Day Care / Social Activities,Lifeways Community Care (Gloucester) Ltd,3022.38, 07-Jul-2015
836,Revenue,CCHD,Day Care - North,Day Care / Social Activities,Milestones Supported Living Services,212.94, 02-Jul-2015
837,Revenue,CCHD,Day Care - North,Day Care / Social Activities,Milestones Supported Living Services,204.32, 06-Jul-2015
838,Revenue,CCHD,Day Care - North,Day Care / Social Activities,Milestones Supported Living Services,207.88, 06-Jul-2015
839,Revenue,CCHD,Day Care - North,Day Care / Social Activities,Milestones Supported Living Services,217, 03-Jul-2015
840,Revenue,CCHD,Day Care - North,Day Care / Social Activities,Milestones Supported Living Services,167.34, 29-Jul-2015
841,Revenue,CCHD,Day Care - North,Day Care / Social Activities,Milestones Supported Living Services,191.7, 29-Jul-2015
842,Revenue,CCHD,Day Care - North,Day Care / Social Activities,NAS Services Limited,621.76, 17-Jul-2015
843,Revenue,CCHD,Day Care - North,Day Care / Social Activities,Nestor T/A Allied Healthcare,73.15, 06-Jul-2015
844,Revenue,CCHD,Day Care - North,Day Care / Social Activities,Nestor T/A Allied Healthcare,73.15, 07-Jul-2015
845,Revenue,CCHD,Day Care - North,Day Care / Social Activities,Nestor T/A Allied Healthcare,69.3, 07-Jul-2015
846,Revenue,CCHD,Day Care - North,Day Care / Social Activities,Nestor T/A Allied Healthcare,65.45, 08-Jul-2015
847,Revenue,CCHD,Day Care - South,Day Care / Social Activities,About Me Care and Support Limited,888.79, 24-Jul-2015
848,Revenue,CCHD,Day Care - South,Day Care / Social Activities,About Me Care and Support Limited,759.64, 28-Jul-2015
849,Revenue,CCHD,Day Care - South,Day Care / Social Activities,Action on Hearing Loss,750.4, 24-Jul-2015
850,Revenue,CCHD,Day Care - South,Day Care / Social Activities,Action on Hearing Loss,844.2, 20-Jul-2015
851,Revenue,CCHD,Day Care - South,Day Care / Social Activities,Action on Hearing Loss,750.4, 24-Jul-2015
852,Revenue,CCHD,Day Care - South,Day Care / Social Activities,Brunelcare,24.78, 27-Jul-2015
853,Revenue,CCHD,Day Care - South,Day Care / Social Activities,Brunelcare,24.78, 27-Jul-2015
854,Revenue,CCHD,Day Care - South,Day Care / Social Activities,Brunelcare,28.91, 27-Jul-2015
855,Revenue,CCHD,Day Care - South,Day Care / Social Activities,Brunelcare,28.91, 27-Jul-2015
856,Revenue,CCHD,Day Care - South,Day Care / Social Activities,Foster Care Associates Limited,2332.75, 28-Jul-2015
857,Revenue,CCHD,Day Care - South,Day Care / Social Activities,Headway Bristol,168.32, 21-Jul-2015
858,Revenue,CCHD,Day Care - South,Day Care / Social Activities,Milestones Supported Living Services,109.44, 02-Jul-2015
859,Revenue,CCHD,Day Care - South,Day Care / Social Activities,Milestones Supported Living Services,109.44, 06-Jul-2015
860,Revenue,CCHD,Day Care - South,Day Care / Social Activities,Milestones Supported Living Services,109.44, 06-Jul-2015
861,Revenue,CCHD,Day Care - South,Day Care / Social Activities,Milestones Supported Living Services,114, 03-Jul-2015
862,Revenue,CCHD,Day Care - South,Day Care / Social Activities,Milestones Supported Living Services,109.44, 29-Jul-2015
863,Revenue,CCHD,Day Care - South,Day Care / Social Activities,Milestones Supported Living Services,104.88, 29-Jul-2015
864,Revenue,CCHD,Day Care - South,Day Care / Social Activities,Mrs B Kimber,3871.98, 20-Jul-2015
865,Revenue,CCHD,Day Care - South,Day Care / Social Activities,Prestige Nursing,124.04, 06-Jul-2015
866,Revenue,CCHD,Day Care - South,Day Care / Social Activities,Prestige Nursing,124.04, 08-Jul-2015
867,Revenue,CCHD,Day Care - South,Day Care / Social Activities,Prestige Nursing,35.44, 08-Jul-2015
868,Revenue,CCHD,Day Care - South,Day Care / Social Activities,Prestige Nursing,124.04, 27-Jul-2015
869,Revenue,CCHD,Day Care - South,Day Care / Social Activities,Prestige Nursing,124.04, 27-Jul-2015
870,Revenue,CCHD,Electronic Home Care Monitoring,Other Supplies & Services,Care Monitoring 2000 Limited,1310, 31-Jul-2015
871,Revenue,CCHD,Electronic Home Care Monitoring,Other Supplies & Services,Care Monitoring 2000 Limited,9495.92, 10-Jul-2015
872,Revenue,CCHD,Home Care - Elderly - North,Day Care / Social Activities,3 Trees Community Support Ltd,2870.2, 03-Jul-2015
873,Revenue,CCHD,Home Care - Elderly - North,Other Small Contracts,3 Trees Community Support Ltd,108.48, 03-Jul-2015
874,Revenue,CCHD,Home Care - Elderly - North,Supported Living,3 Trees Community Support Ltd,8699.08, 03-Jul-2015
875,Revenue,CCHD,Home Care - Elderly - North,Day Care / Social Activities,3 Trees Community Support Ltd,2874.72, 14-Jul-2015
876,Revenue,CCHD,Home Care - Elderly - North,Other Small Contracts,3 Trees Community Support Ltd,108.48, 14-Jul-2015
877,Revenue,CCHD,Home Care - Elderly - North,Supported Living,3 Trees Community Support Ltd,6789.25, 14-Jul-2015
878,Revenue,CCHD,Home Care - Elderly - North,Day Care / Social Activities,3 Trees Community Support Ltd,2743.64, 14-Jul-2015
879,Revenue,CCHD,Home Care - Elderly - North,Other Small Contracts,3 Trees Community Support Ltd,108.48, 14-Jul-2015
880,Revenue,CCHD,Home Care - Elderly - North,Supported Living,3 Trees Community Support Ltd,7577.99, 14-Jul-2015
881,Revenue,CCHD,Home Care - Elderly - North,Day Care / Social Activities,3 Trees Community Support Ltd,2657.76, 20-Jul-2015
882,Revenue,CCHD,Home Care - Elderly - North,Other Small Contracts,3 Trees Community Support Ltd,108.48, 20-Jul-2015
883,Revenue,CCHD,Home Care - Elderly - North,Supported Living,3 Trees Community Support Ltd,7725.85, 20-Jul-2015
884,Revenue,CCHD,Home Care - Elderly - North,Supported Living,3 Trees Community Support Ltd,2089.8, 10-Jul-2015
885,Revenue,CCHD,Home Care - Elderly - North,Other Small Contracts,Agincare Chippenham,161.7, 06-Jul-2015
886,Revenue,CCHD,Home Care - Elderly - North,Other Small Contracts,Agincare Chippenham,169.4, 01-Jul-2015
887,Revenue,CCHD,Home Care - Elderly - North,Other Small Contracts,Agincare Chippenham,92.4, 01-Jul-2015
888,Revenue,CCHD,Home Care - Elderly - North,Other Small Contracts,Agincare Chippenham,157.85, 21-Jul-2015
889,Revenue,CCHD,Home Care - Elderly - North,Other Small Contracts,Agincare Chippenham,184.8, 21-Jul-2015
890,Revenue,CCHD,Home Care - Elderly - North,Other Small Contracts,Agincare Chippenham,157.85, 27-Jul-2015
891,Revenue,CCHD,Home Care - Elderly - North,Other Small Contracts,Agincare UK Limited,169.4, 01-Jul-2015
892,Revenue,CCHD,Home Care - Elderly - North,Other Small Contracts,Agincare UK Limited,169.4, 01-Jul-2015
893,Revenue,CCHD,Home Care - Elderly - North,Other Small Contracts,Agincare UK Limited,169.4, 06-Jul-2015
894,Revenue,CCHD,Home Care - Elderly - North,Other Small Contracts,Agincare UK Limited,184.8, 15-Jul-2015
895,Revenue,CCHD,Home Care - Elderly - North,Other Small Contracts,Agincare UK Nutfield,1266.65, 06-Jul-2015
896,Revenue,CCHD,Home Care - Elderly - North,Other Small Contracts,Agincare UK Nutfield,1189.65, 06-Jul-2015
897,Revenue,CCHD,Home Care - Elderly - North,Other Small Contracts,Agincare UK Nutfield,1274.35, 16-Jul-2015
898,Revenue,CCHD,Home Care - Elderly - North,Other Small Contracts,Agincare UK Nutfield,1278.2, 16-Jul-2015
899,Revenue,CCHD,Home Care - Elderly - North,Other Small Contracts,Agincare UK Nutfield,1143.45, 21-Jul-2015
900,Revenue,CCHD,Home Care - Elderly - North,Other Small Contracts,Agincare UK Nutfield,1101.1, 21-Jul-2015
901,Revenue,CCHD,Home Care - Elderly - North,Other Small Contracts,Agincare UK Nutfield,1016.4, 27-Jul-2015
902,Revenue,CCHD,Home Care - Elderly - North,Day Care / Social Activities,Aspirations Support Bristol Limited,219.78, 07-Jul-2015
903,Revenue,CCHD,Home Care - Elderly - North,Other Small Contracts,Aspirations Support Bristol Limited,73.26, 07-Jul-2015
904,Revenue,CCHD,Home Care - Elderly - North,Supported Living,Aspirations Support Bristol Limited,1815.22, 07-Jul-2015
905,Revenue,CCHD,Home Care - Elderly - North,Day Care / Social Activities,Aspirations Support Bristol Limited,113.96, 07-Jul-2015
906,Revenue,CCHD,Home Care - Elderly - North,Other Small Contracts,Aspirations Support Bristol Limited,158.73, 07-Jul-2015
907,Revenue,CCHD,Home Care - Elderly - North,Supported Living,Aspirations Support Bristol Limited,1436.71, 07-Jul-2015
908,Revenue,CCHD,Home Care - Elderly - North,Day Care / Social Activities,Aspirations Support Bristol Limited,48.84, 20-Jul-2015
909,Revenue,CCHD,Home Care - Elderly - North,Supported Living,Aspirations Support Bristol Limited,1457.06, 20-Jul-2015
910,Revenue,CCHD,Home Care - Elderly - North,Supported Living,Aspirations Support Bristol Limited,1823.36, 27-Jul-2015
911,Revenue,CCHD,Home Care - Elderly - North,Day Care / Social Activities,Aspirations Support Bristol Limited,48.84, 27-Jul-2015
912,Revenue,CCHD,Home Care - Elderly - North,Supported Living,Aspirations Support Bristol Limited,1444.85, 27-Jul-2015
913,Revenue,CCHD,Home Care - Elderly - North,Other Small Contracts,Bradley House Home Care Services,652.32, 20-Jul-2015
914,Revenue,CCHD,Home Care - Elderly - North,Other Small Contracts,Bradley House Home Care Services,622.08, 20-Jul-2015
915,Revenue,CCHD,Home Care - Elderly - North,Other Small Contracts,Bradley House Home Care Services,639.36, 20-Jul-2015
916,Revenue,CCHD,Home Care - Elderly - North,Other Small Contracts,Bradley House Home Care Services,734.4, 20-Jul-2015
917,Revenue,CCHD,Home Care - Elderly - North,Day Care / Social Activities,Britannia House,924.8, 07-Jul-2015
918,Revenue,CCHD,Home Care - Elderly - North,Day Care / Social Activities,Britannia House,693.6, 07-Jul-2015
919,Revenue,CCHD,Home Care - Elderly - North,Day Care / Social Activities,Britannia House,693.6, 07-Jul-2015
920,Revenue,CCHD,Home Care - Elderly - North,Day Care / Social Activities,Britannia House,924.8, 07-Jul-2015
921,Revenue,CCHD,Home Care - Elderly - North,Private & Voluntary Home Care,Brunelcare,23503, 06-Jul-2015
922,Revenue,CCHD,Home Care - Elderly - North,Private & Voluntary Home Care,Brunelcare,23503, 13-Jul-2015
923,Revenue,CCHD,Home Care - Elderly - North,Private & Voluntary Home Care,Brunelcare,23503, 20-Jul-2015
924,Revenue,CCHD,Home Care - Elderly - North,Private & Voluntary Home Care,Brunelcare,23503, 27-Jul-2015
925,Revenue,CCHD,Home Care - Elderly - North,Other Small Contracts,Brunelcare,2647.33, 27-Jul-2015
926,Revenue,CCHD,Home Care - Elderly - North,Other Small Contracts,Brunelcare,2312.8, 27-Jul-2015
927,Revenue,CCHD,Home Care - Elderly - North,Other Small Contracts,Brunelcare,2366.49, 27-Jul-2015
928,Revenue,CCHD,Home Care - Elderly - North,Other Small Contracts,Brunelcare,2349.97, 27-Jul-2015
929,Revenue,CCHD,Home Care - Elderly - North,Private & Voluntary Home Care,Brunelcare,81530.85, 01-Jul-2015
930,Revenue,CCHD,Home Care - Elderly - North,Day Care / Social Activities,Camphill Communities Thornbury Limited,1004.7, 10-Jul-2015
931,Revenue,CCHD,Home Care - Elderly - North,Supported Living,Camphill Communities Thornbury Limited,961.36, 10-Jul-2015
932,Revenue,CCHD,Home Care - Elderly - North,Day Care / Social Activities,Camphill Communities Thornbury Limited,1252.92, 17-Jul-2015
933,Revenue,CCHD,Home Care - Elderly - North,Supported Living,Camphill Communities Thornbury Limited,1319.9, 17-Jul-2015
934,Revenue,CCHD,Home Care - Elderly - North,Day Care / Social Activities,Camphill Communities Thornbury Limited,1178.06, 22-Jul-2015
935,Revenue,CCHD,Home Care - Elderly - North,Supported Living,Camphill Communities Thornbury Limited,1264.74, 22-Jul-2015
936,Revenue,CCHD,Home Care - Elderly - North,Day Care / Social Activities,Camphill Communities Thornbury Limited,1288.38, 31-Jul-2015
937,Revenue,CCHD,Home Care - Elderly - North,Supported Living,Camphill Communities Thornbury Limited,1382.94, 31-Jul-2015
938,Revenue,CCHD,Home Care - Elderly - North,Other Small Contracts,Care 1st Homecare,3064.25, 21-Jul-2015
939,Revenue,CCHD,Home Care - Elderly - North,One-off Planned Direct Payment,Care 1st Homecare,51, 21-Jul-2015
940,Revenue,CCHD,Home Care - Elderly - North,Other Small Contracts,Care 1st Homecare,3030.25, 21-Jul-2015
941,Revenue,CCHD,Home Care - Elderly - North,One-off Planned Direct Payment,Care 1st Homecare,55.25, 21-Jul-2015
942,Revenue,CCHD,Home Care - Elderly - North,Other Small Contracts,Care 1st Homecare,2894.25, 21-Jul-2015
943,Revenue,CCHD,Home Care - Elderly - North,Day Care / Social Activities,Care Horizons Limited,162, 21-Jul-2015
944,Revenue,CCHD,Home Care - Elderly - North,Other Small Contracts,Care Horizons Limited,243, 21-Jul-2015
945,Revenue,CCHD,Home Care - Elderly - North,Day Care / Social Activities,Care Horizons Limited,162, 15-Jul-2015
946,Revenue,CCHD,Home Care - Elderly - North,Other Small Contracts,Care Horizons Limited,261, 15-Jul-2015
947,Revenue,CCHD,Home Care - Elderly - North,Day Care / Social Activities,Care Horizons Limited,162, 16-Jul-2015
948,Revenue,CCHD,Home Care - Elderly - North,Other Small Contracts,Care Horizons Limited,261, 16-Jul-2015
949,Revenue,CCHD,Home Care - Elderly - North,Other Small Contracts,Care UK,1842.08, 06-Jul-2015
950,Revenue,CCHD,Home Care - Elderly - North,Other Small Contracts,Care UK,1830.17, 15-Jul-2015
951,Revenue,CCHD,Home Care - Elderly - North,Other Small Contracts,Care UK,1965.15, 21-Jul-2015
952,Revenue,CCHD,Home Care - Elderly - North,Other Small Contracts,Carers R Us (Bristol) Limited,197.96, 06-Jul-2015
953,Revenue,CCHD,Home Care - Elderly - North,Other Small Contracts,Carers R Us (Bristol) Limited,202, 15-Jul-2015
954,Revenue,CCHD,Home Care - Elderly - North,Other Small Contracts,Carers R Us (Bristol) Limited,218.16, 27-Jul-2015
955,Revenue,CCHD,Home Care - Elderly - North,Other Small Contracts,Carers R Us (Bristol) Limited,218.16, 29-Jul-2015
956,Revenue,CCHD,Home Care - Elderly - North,Other Small Contracts,Cherish Able Care Limited,1913.54, 02-Jul-2015
957,Revenue,CCHD,Home Care - Elderly - North,Other Small Contracts,Cherish Able Care Limited,1913.54, 09-Jul-2015
958,Revenue,CCHD,Home Care - Elderly - North,Other Small Contracts,Cherish Able Care Limited,1913.54, 17-Jul-2015
959,Revenue,CCHD,Home Care - Elderly - North,Other Small Contracts,Cherish Able Care Limited,1913.54, 24-Jul-2015
960,Revenue,CCHD,Home Care - Elderly - North,Other Small Contracts,Cherish Able Care Limited,1917.76, 31-Jul-2015
961,Revenue,CCHD,Home Care - Elderly - North,Day Care / Social Activities,Complimenting Care and Training Services (CCTS) Lt,130.2, 08-Jul-2015
962,Revenue,CCHD,Home Care - Elderly - North,Other Small Contracts,Complimenting Care and Training Services (CCTS) Lt,6073.2, 08-Jul-2015
963,Revenue,CCHD,Home Care - Elderly - North,Day Care / Social Activities,Complimenting Care and Training Services (CCTS) Lt,134.4, 08-Jul-2015
964,Revenue,CCHD,Home Care - Elderly - North,Other Small Contracts,Complimenting Care and Training Services (CCTS) Lt,6615, 08-Jul-2015
965,Revenue,CCHD,Home Care - Elderly - North,Day Care / Social Activities,Complimenting Care and Training Services (CCTS) Lt,134.4, 27-Jul-2015
966,Revenue,CCHD,Home Care - Elderly - North,Other Small Contracts,Complimenting Care and Training Services (CCTS) Lt,6703.2, 27-Jul-2015
967,Revenue,CCHD,Home Care - Elderly - North,Day Care / Social Activities,Complimenting Care and Training Services (CCTS) Lt,63, 08-Jul-2015
968,Revenue,CCHD,Home Care - Elderly - North,Other Small Contracts,Complimenting Care and Training Services (CCTS) Lt,7056, 08-Jul-2015
969,Revenue,CCHD,Home Care - Elderly - North,Day Care / Social Activities,Complimenting Care and Training Services (CCTS) Lt,134.4, 27-Jul-2015
970,Revenue,CCHD,Home Care - Elderly - North,Other Small Contracts,Complimenting Care and Training Services (CCTS) Lt,7051.8, 27-Jul-2015
971,Revenue,CCHD,Home Care - Elderly - North,Day Care / Social Activities,Complimenting Care and Training Services (CCTS) Lt,134.4, 08-Jul-2015
972,Revenue,CCHD,Home Care - Elderly - North,Other Small Contracts,Complimenting Care and Training Services (CCTS) Lt,7505.4, 08-Jul-2015
973,Revenue,CCHD,Home Care - Elderly - North,Other Small Contracts,Dhek Bhal,117.6, 03-Jul-2015
974,Revenue,CCHD,Home Care - Elderly - North,Other Small Contracts,Dhek Bhal,117.6, 06-Jul-2015
975,Revenue,CCHD,Home Care - Elderly - North,Other Small Contracts,Dhek Bhal,117.6, 09-Jul-2015
976,Revenue,CCHD,Home Care - Elderly - North,Other Small Contracts,Dhek Bhal,117.6, 20-Jul-2015
977,Revenue,CCHD,Home Care - Elderly - North,Other Small Contracts,DoCare Ltd,6710.02, 21-Jul-2015
978,Revenue,CCHD,Home Care - Elderly - North,Other Small Contracts,DoCare Ltd,6111.45, 21-Jul-2015
979,Revenue,CCHD,Home Care - Elderly - North,Other Small Contracts,DoCare Ltd,6297.56, 21-Jul-2015
980,Revenue,CCHD,Home Care - Elderly - North,Other Small Contracts,DoCare Ltd,6463.55, 21-Jul-2015
981,Revenue,CCHD,Home Care - Elderly - North,Day Care / Social Activities,Easton Community Centre,526.08, 07-Jul-2015
982,Revenue,CCHD,Home Care - Elderly - North,Day Care / Social Activities,Easton Community Centre,526.08, 07-Jul-2015
983,Revenue,CCHD,Home Care - Elderly - North,Day Care / Social Activities,Eclipse Office Park,990.72, 07-Jul-2015
984,Revenue,CCHD,Home Care - Elderly - North,Other Small Contracts,Elite Home Care Ltd,362.44, 07-Jul-2015
985,Revenue,CCHD,Home Care - Elderly - North,Other Small Contracts,Elite Home Care Ltd,366.86, 07-Jul-2015
986,Revenue,CCHD,Home Care - Elderly - North,Other Small Contracts,Elite Home Care Ltd,358.02, 07-Jul-2015
987,Revenue,CCHD,Home Care - Elderly - North,Other Small Contracts,Elite Home Care Ltd,344.76, 07-Jul-2015
988,Revenue,CCHD,Home Care - Elderly - North,Day Care / Social Activities,Everycare (Bristol) Ltd,103.2, 03-Jul-2015
989,Revenue,CCHD,Home Care - Elderly - North,Other Small Contracts,Everycare (Bristol) Ltd,2485.4, 03-Jul-2015
990,Revenue,CCHD,Home Care - Elderly - North,Day Care / Social Activities,Everycare (Bristol) Ltd,103.2, 14-Jul-2015
991,Revenue,CCHD,Home Care - Elderly - North,Other Small Contracts,Everycare (Bristol) Ltd,2446.7, 14-Jul-2015
992,Revenue,CCHD,Home Care - Elderly - North,Day Care / Social Activities,Firstpoint Homecare Ltd,46.68, 06-Jul-2015
993,Revenue,CCHD,Home Care - Elderly - North,Other Small Contracts,Firstpoint Homecare Ltd,1170.89, 06-Jul-2015
994,Revenue,CCHD,Home Care - Elderly - North,Day Care / Social Activities,Firstpoint Homecare Ltd,85.58, 14-Jul-2015
995,Revenue,CCHD,Home Care - Elderly - North,Other Small Contracts,Firstpoint Homecare Ltd,1167, 14-Jul-2015
996,Revenue,CCHD,Home Care - Elderly - North,Day Care / Social Activities,Headway Bristol,420.8, 06-Jul-2015
997,Revenue,CCHD,Home Care - Elderly - North,Other Small Contracts,Headway Bristol,168.32, 06-Jul-2015
998,Revenue,CCHD,Home Care - Elderly - North,Day Care / Social Activities,Headway Bristol,420.8, 15-Jul-2015
999,Revenue,CCHD,Home Care - Elderly - North,Other Small Contracts,Headway Bristol,105.2, 15-Jul-2015
1000,Revenue,CCHD,Home Care - Elderly - North,Day Care / Social Activities,Headway Bristol,378.72, 20-Jul-2015
1001,Revenue,CCHD,Home Care - Elderly - North,Other Small Contracts,Headway Bristol,173.58, 20-Jul-2015
1002,Revenue,CCHD,Home Care - Elderly - North,Day Care / Social Activities,Headway Bristol,378.72, 29-Jul-2015
1003,Revenue,CCHD,Home Care - Elderly - North,Other Small Contracts,Headway Bristol,168.32, 29-Jul-2015
1004,Revenue,CCHD,Home Care - Elderly - North,Day Care / Social Activities,Helping Hands Homecare,480.93, 10-Jul-2015
1005,Revenue,CCHD,Home Care - Elderly - North,Other Small Contracts,Helping Hands Homecare,1763.41, 10-Jul-2015
1006,Revenue,CCHD,Home Care - Elderly - North,Day Care / Social Activities,Helping Hands Homecare,164.22, 10-Jul-2015
1007,Revenue,CCHD,Home Care - Elderly - North,Other Small Contracts,Helping Hands Homecare,1517.08, 10-Jul-2015
1008,Revenue,CCHD,Home Care - Elderly - North,Day Care / Social Activities,Helping Hands Homecare,281.52, 10-Jul-2015
1009,Revenue,CCHD,Home Care - Elderly - North,Other Small Contracts,Helping Hands Homecare,1665.66, 10-Jul-2015
1010,Revenue,CCHD,Home Care - Elderly - North,Day Care / Social Activities,Helping Hands Homecare,199.41, 10-Jul-2015
1011,Revenue,CCHD,Home Care - Elderly - North,Other Small Contracts,Helping Hands Homecare,1747.77, 10-Jul-2015
1012,Revenue,CCHD,Home Care - Elderly - North,Day Care / Social Activities,Helping Hands Homecare,258.06, 10-Jul-2015
1013,Revenue,CCHD,Home Care - Elderly - North,Other Small Contracts,Helping Hands Homecare,1474.07, 10-Jul-2015
1014,Revenue,CCHD,Home Care - Elderly - North,Day Care / Social Activities,Helping Hands Homecare,250.24, 24-Jul-2015
1015,Revenue,CCHD,Home Care - Elderly - North,Other Small Contracts,Helping Hands Homecare,1657.84, 24-Jul-2015
1016,Revenue,CCHD,Home Care - Elderly - North,Day Care / Social Activities,Helping Hands Homecare,238.51, 24-Jul-2015
1017,Revenue,CCHD,Home Care - Elderly - North,Other Small Contracts,Helping Hands Homecare,1829.88, 24-Jul-2015
1018,Revenue,CCHD,Home Care - Elderly - North,Day Care / Social Activities,Helping Hands Homecare,186.12, 30-Jul-2015
1019,Revenue,CCHD,Home Care - Elderly - North,Other Small Contracts,Helping Hands Homecare,2102.76, 30-Jul-2015
1020,Revenue,CCHD,Home Care - Elderly - North,Other Small Contracts,Homecare 4U,705.76, 01-Jul-2015
1021,Revenue,CCHD,Home Care - Elderly - North,Other Small Contracts,Homecare 4U,641.6, 01-Jul-2015
1022,Revenue,CCHD,Home Care - Elderly - North,Other Small Contracts,Homecare 4U,657.64, 29-Jul-2015
1023,Revenue,CCHD,Home Care - Elderly - North,Private & Voluntary Home Care,Housing 21,38183.98, 10-Jul-2015
1024,Revenue,CCHD,Home Care - Elderly - North,Supported Living,Julia Simone- Supp. Ind.,1212.32, 07-Jul-2015
1025,Revenue,CCHD,Home Care - Elderly - North,Other Small Contracts,Kensington Community Care,5249.92, 03-Jul-2015
1026,Revenue,CCHD,Home Care - Elderly - North,Other Small Contracts,Kensington Community Care,5222.52, 03-Jul-2015
1027,Revenue,CCHD,Home Care - Elderly - North,Other Small Contracts,Kensington Community Care,5338.36, 06-Jul-2015
1028,Revenue,CCHD,Home Care - Elderly - North,Other Small Contracts,Kensington Community Care,4921.02, 06-Jul-2015
1029,Revenue,CCHD,Home Care - Elderly - North,Other Small Contracts,Kensington Community Care,4990.32, 09-Jul-2015
1030,Revenue,CCHD,Home Care - Elderly - North,Other Small Contracts,Kensington Community Care,4195.8, 06-Jul-2015
1031,Revenue,CCHD,Home Care - Elderly - North,Other Small Contracts,Kensington Community Care,3730.56, 09-Jul-2015
1032,Revenue,CCHD,Home Care - Elderly - North,Other Small Contracts,Kensington Community Care,3585.84, 29-Jul-2015
1033,Revenue,CCHD,Home Care - Elderly - North,Other Small Contracts,Kensington Community Care,3380.82, 29-Jul-2015
1034,Revenue,CCHD,Home Care - Elderly - North,Other Small Contracts,Kumari Care Limited,1127.11, 03-Jul-2015
1035,Revenue,CCHD,Home Care - Elderly - North,Other Small Contracts,Kumari Care Limited,1138.84, 09-Jul-2015
1036,Revenue,CCHD,Home Care - Elderly - North,Other Small Contracts,Kumari Care Limited,1123.2, 20-Jul-2015
1037,Revenue,CCHD,Home Care - Elderly - North,Other Small Contracts,Kumari Care Limited,1127.59, 27-Jul-2015
1038,Revenue,CCHD,Home Care - Elderly - North,Day Care / Social Activities,Lower Kilcott,1481.84, 07-Jul-2015
1039,Revenue,CCHD,Home Care - Elderly - North,Day Care / Social Activities,Lower Kilcott,710.16, 07-Jul-2015
1040,Revenue,CCHD,Home Care - Elderly - North,Day Care / Social Activities,Lower Kilcott,566.68, 07-Jul-2015
1041,Revenue,CCHD,Home Care - Elderly - North,Other Small Contracts,Mears Care,3112.2, 20-Jul-2015
1042,Revenue,CCHD,Home Care - Elderly - North,Other Small Contracts,Mears Care,3318.9, 21-Jul-2015
1043,Revenue,CCHD,Home Care - Elderly - North,Other Small Contracts,Mears Care,3428.1, 20-Jul-2015
1044,Revenue,CCHD,Home Care - Elderly - North,Other Small Contracts,Medacs Home Care,414.18, 01-Jul-2015
1045,Revenue,CCHD,Home Care - Elderly - North,Other Small Contracts,Medacs Home Care,442.5, 06-Jul-2015
1046,Revenue,CCHD,Home Care - Elderly - North,Supported Living,Milestones - Unit 10,4340.08, 07-Jul-2015
1047,Revenue,CCHD,Home Care - Elderly - North,Day Care / Social Activities,Milestones Homecare & Dementia Service,47.16, 16-Jul-2015
1048,Revenue,CCHD,Home Care - Elderly - North,Other Small Contracts,Milestones Homecare & Dementia Service,1799.92, 16-Jul-2015
1049,Revenue,CCHD,Home Care - Elderly - North,Other Small Contracts,Milestones Homecare & Dementia Service,1803.95, 16-Jul-2015
1050,Revenue,CCHD,Home Care - Elderly - North,Day Care / Social Activities,Milestones Homecare & Dementia Service,47.16, 16-Jul-2015
1051,Revenue,CCHD,Home Care - Elderly - North,Other Small Contracts,Milestones Homecare & Dementia Service,1890.06, 16-Jul-2015
1052,Revenue,CCHD,Home Care - Elderly - North,Other Small Contracts,Milestones Homecare & Dementia Service,1921.55, 16-Jul-2015
1053,Revenue,CCHD,Home Care - Elderly - North,Other Small Contracts,Milestones Homecare & Dementia Service,1838.97, 31-Jul-2015
1054,Revenue,CCHD,Home Care - Elderly - North,Day Care / Social Activities,Milestones Supported Living Services,3580.24, 02-Jul-2015
1055,Revenue,CCHD,Home Care - Elderly - North,Other Small Contracts,Milestones Supported Living Services,284.48, 02-Jul-2015
1056,Revenue,CCHD,Home Care - Elderly - North,Supported Living,Milestones Supported Living Services,207.06, 02-Jul-2015
1057,Revenue,CCHD,Home Care - Elderly - North,Day Care / Social Activities,Milestones Supported Living Services,3342.2, 06-Jul-2015
1058,Revenue,CCHD,Home Care - Elderly - North,Other Small Contracts,Milestones Supported Living Services,284.48, 06-Jul-2015
1059,Revenue,CCHD,Home Care - Elderly - North,Supported Living,Milestones Supported Living Services,203, 06-Jul-2015
1060,Revenue,CCHD,Home Care - Elderly - North,Day Care / Social Activities,Milestones Supported Living Services,3225.96, 06-Jul-2015
1061,Revenue,CCHD,Home Care - Elderly - North,Other Small Contracts,Milestones Supported Living Services,284.48, 06-Jul-2015
1062,Revenue,CCHD,Home Care - Elderly - North,Supported Living,Milestones Supported Living Services,162.4, 06-Jul-2015
1063,Revenue,CCHD,Home Care - Elderly - North,Day Care / Social Activities,Milestones Supported Living Services,3306.66, 03-Jul-2015
1064,Revenue,CCHD,Home Care - Elderly - North,Other Small Contracts,Milestones Supported Living Services,284.48, 03-Jul-2015
1065,Revenue,CCHD,Home Care - Elderly - North,Supported Living,Milestones Supported Living Services,166.46, 03-Jul-2015
1066,Revenue,CCHD,Home Care - Elderly - North,Day Care / Social Activities,Milestones Supported Living Services,3172.88, 29-Jul-2015
1067,Revenue,CCHD,Home Care - Elderly - North,Other Small Contracts,Milestones Supported Living Services,284.48, 29-Jul-2015
1068,Revenue,CCHD,Home Care - Elderly - North,Supported Living,Milestones Supported Living Services,121.8, 29-Jul-2015
1069,Revenue,CCHD,Home Care - Elderly - North,Day Care / Social Activities,Milestones Supported Living Services,2868.03, 29-Jul-2015
1070,Revenue,CCHD,Home Care - Elderly - North,Other Small Contracts,Milestones Supported Living Services,284.48, 29-Jul-2015
1071,Revenue,CCHD,Home Care - Elderly - North,Supported Living,Milestones Supported Living Services,166.46, 29-Jul-2015
1072,Revenue,CCHD,Home Care - Elderly - North,Day Care / Social Activities,Mrs B Kimber -  CM2000,349.44, 08-Jul-2015
1073,Revenue,CCHD,Home Care - Elderly - North,Other Small Contracts,Mrs B Kimber -  CM2000,4771.52, 08-Jul-2015
1074,Revenue,CCHD,Home Care - Elderly - North,Day Care / Social Activities,Mrs B Kimber -  CM2000,432.64, 08-Jul-2015
1075,Revenue,CCHD,Home Care - Elderly - North,Other Small Contracts,Mrs B Kimber -  CM2000,4729.92, 08-Jul-2015
1076,Revenue,CCHD,Home Care - Elderly - North,Day Care / Social Activities,Mrs B Kimber -  CM2000,349.44, 08-Jul-2015
1077,Revenue,CCHD,Home Care - Elderly - North,Other Small Contracts,Mrs B Kimber -  CM2000,4467.84, 08-Jul-2015
1078,Revenue,CCHD,Home Care - Elderly - North,Day Care / Social Activities,Mrs B Kimber -  CM2000,424.32, 27-Jul-2015
1079,Revenue,CCHD,Home Care - Elderly - North,Other Small Contracts,Mrs B Kimber -  CM2000,4559.36, 27-Jul-2015
1080,Revenue,CCHD,Home Care - Elderly - North,Day Care / Social Activities,Mrs B Kimber -  CM2000,141.44, 27-Jul-2015
1081,Revenue,CCHD,Home Care - Elderly - North,Other Small Contracts,Mrs B Kimber -  CM2000,4459.52, 27-Jul-2015
1082,Revenue,CCHD,Home Care - Elderly - North,Day Care / Social Activities,Mrs B Kimber -  CM2000,307.84, 27-Jul-2015
1083,Revenue,CCHD,Home Care - Elderly - North,Other Small Contracts,Mrs B Kimber -  CM2000,4684.16, 27-Jul-2015
1084,Revenue,CCHD,Home Care - Elderly - North,Other Small Contracts,Nestor T/A Allied Healthcare,7931, 06-Jul-2015
1085,Revenue,CCHD,Home Care - Elderly - North,Other Small Contracts,Nestor T/A Allied Healthcare,7742.35, 07-Jul-2015
1086,Revenue,CCHD,Home Care - Elderly - North,Other Small Contracts,Nestor T/A Allied Healthcare,7669.2, 07-Jul-2015
1087,Revenue,CCHD,Home Care - Elderly - North,Other Small Contracts,Nestor T/A Allied Healthcare,7931, 08-Jul-2015
1088,Revenue,CCHD,Home Care - Elderly - North,Day Care / Social Activities,Network Health & Social Care,31.04, 21-Jul-2015
1089,Revenue,CCHD,Home Care - Elderly - North,Other Small Contracts,Network Health & Social Care,1742.12, 21-Jul-2015
1090,Revenue,CCHD,Home Care - Elderly - North,Day Care / Social Activities,Network Health & Social Care,23.28, 21-Jul-2015
1091,Revenue,CCHD,Home Care - Elderly - North,Other Small Contracts,Network Health & Social Care,1726.6, 21-Jul-2015
1092,Revenue,CCHD,Home Care - Elderly - North,Day Care / Social Activities,Network Health & Social Care,27.16, 21-Jul-2015
1093,Revenue,CCHD,Home Care - Elderly - North,Other Small Contracts,Network Health & Social Care,2029.24, 21-Jul-2015
1094,Revenue,CCHD,Home Care - Elderly - North,Day Care / Social Activities,Network Health & Social Care,31.04, 21-Jul-2015
1095,Revenue,CCHD,Home Care - Elderly - North,Other Small Contracts,Network Health & Social Care,2025.36, 21-Jul-2015
1096,Revenue,CCHD,Home Care - Elderly - North,Other Small Contracts,Nursing Solutions Limited,575.65, 07-Jul-2015
1097,Revenue,CCHD,Home Care - Elderly - North,Other Small Contracts,Nursing Solutions Limited,512.13, 07-Jul-2015
1098,Revenue,CCHD,Home Care - Elderly - North,Other Small Contracts,Nursing Solutions Limited,444.64, 07-Jul-2015
1099,Revenue,CCHD,Home Care - Elderly - North,Day Care / Social Activities,Premier Homecare Limited,138.3, 14-Jul-2015
1100,Revenue,CCHD,Home Care - Elderly - North,Other Small Contracts,Premier Homecare Limited,15231.44, 14-Jul-2015
1101,Revenue,CCHD,Home Care - Elderly - North,Day Care / Social Activities,Premier Homecare Limited,138.3, 14-Jul-2015
1102,Revenue,CCHD,Home Care - Elderly - North,Other Small Contracts,Premier Homecare Limited,14816.54, 14-Jul-2015
1103,Revenue,CCHD,Home Care - Elderly - North,Day Care / Social Activities,Premier Homecare Limited,138.3, 14-Jul-2015
1104,Revenue,CCHD,Home Care - Elderly - North,Other Small Contracts,Premier Homecare Limited,14604.48, 14-Jul-2015
1105,Revenue,CCHD,Home Care - Elderly - North,Day Care / Social Activities,Premier Homecare Limited,78.37, 21-Jul-2015
1106,Revenue,CCHD,Home Care - Elderly - North,Other Small Contracts,Premier Homecare Limited,14406.25, 21-Jul-2015
1107,Revenue,CCHD,Home Care - Elderly - North,Day Care / Social Activities,Prestige Nursing,1098.64, 06-Jul-2015
1108,Revenue,CCHD,Home Care - Elderly - North,Other Small Contracts,Prestige Nursing,341.11, 06-Jul-2015
1109,Revenue,CCHD,Home Care - Elderly - North,Day Care / Social Activities,Prestige Nursing,1125.22, 08-Jul-2015
1110,Revenue,CCHD,Home Care - Elderly - North,Other Small Contracts,Prestige Nursing,341.11, 08-Jul-2015
1111,Revenue,CCHD,Home Care - Elderly - North,Day Care / Social Activities,Prestige Nursing,137.33, 08-Jul-2015
1112,Revenue,CCHD,Home Care - Elderly - North,Other Small Contracts,Prestige Nursing,1089.78, 08-Jul-2015
1113,Revenue,CCHD,Home Care - Elderly - North,Day Care / Social Activities,Prestige Nursing,106.32, 27-Jul-2015
1114,Revenue,CCHD,Home Care - Elderly - North,Other Small Contracts,Prestige Nursing,1222.68, 27-Jul-2015
1115,Revenue,CCHD,Home Care - Elderly - North,Other Small Contracts,Prestige Nursing,1435.32, 27-Jul-2015
1116,Revenue,CCHD,Home Care - Elderly - North,Supported Living,Smile Ind Living Support Limited,3060.8, 07-Jul-2015
1117,Revenue,CCHD,Home Care - Elderly - North,Supported Living,Smile Ind Living Support Limited,3060.8, 07-Jul-2015
1118,Revenue,CCHD,Home Care - Elderly - North,Supported Living,Smile Ind Living Support Limited,3060.8, 07-Jul-2015
1119,Revenue,CCHD,Home Care - Elderly - North,Day Care / Social Activities,Smile Independent Living Support Limited,733.19, 08-Jul-2015
1120,Revenue,CCHD,Home Care - Elderly - North,Supported Living,Smile Independent Living Support Limited,224.16, 08-Jul-2015
1121,Revenue,CCHD,Home Care - Elderly - North,Day Care / Social Activities,Smile Independent Living Support Limited,817.25, 13-Jul-2015
1122,Revenue,CCHD,Home Care - Elderly - North,Supported Living,Smile Independent Living Support Limited,210.15, 13-Jul-2015
1123,Revenue,CCHD,Home Care - Elderly - North,Day Care / Social Activities,Smile Independent Living Support Limited,448.32, 20-Jul-2015
1124,Revenue,CCHD,Home Care - Elderly - North,Supported Living,Smile Independent Living Support Limited,205.48, 20-Jul-2015
1125,Revenue,CCHD,Home Care - Elderly - North,Day Care / Social Activities,The Ann Coleman Centre,2301.6, 07-Jul-2015
1126,Revenue,CCHD,Home Care - Elderly - North,Day Care / Social Activities,The Ann Coleman Centre,3378.2, 07-Jul-2015
1127,Revenue,CCHD,Home Care - Elderly - North,Day Care / Social Activities,The Brandon Trust,957.02, 03-Jul-2015
1128,Revenue,CCHD,Home Care - Elderly - North,Other Small Contracts,The Brandon Trust,193.16, 03-Jul-2015
1129,Revenue,CCHD,Home Care - Elderly - North,Supported Living,The Brandon Trust,2050.72, 03-Jul-2015
1130,Revenue,CCHD,Home Care - Elderly - North,Day Care / Social Activities,The Brandon Trust,939.46, 16-Jul-2015
1131,Revenue,CCHD,Home Care - Elderly - North,Other Small Contracts,The Brandon Trust,237.06, 16-Jul-2015
1132,Revenue,CCHD,Home Care - Elderly - North,Supported Living,The Brandon Trust,2051.84, 16-Jul-2015
1133,Revenue,CCHD,Home Care - Elderly - North,Day Care / Social Activities,The Brandon Trust,355.59, 17-Jul-2015
1134,Revenue,CCHD,Home Care - Elderly - North,Other Small Contracts,The Brandon Trust,193.16, 17-Jul-2015
1135,Revenue,CCHD,Home Care - Elderly - North,Supported Living,The Brandon Trust,2051.84, 17-Jul-2015
1136,Revenue,CCHD,Home Care - Elderly - North,Day Care / Social Activities,The Brandon Trust,935.07, 27-Jul-2015
1137,Revenue,CCHD,Home Care - Elderly - North,Other Small Contracts,The Brandon Trust,245.84, 27-Jul-2015
1138,Revenue,CCHD,Home Care - Elderly - North,Supported Living,The Brandon Trust,2051.84, 27-Jul-2015
1139,Revenue,CCHD,Home Care - Elderly - North,Day Care / Social Activities,The Cottage,660.72, 07-Jul-2015
1140,Revenue,CCHD,Home Care - Elderly - North,Day Care / Social Activities,The Cottage,540.72, 07-Jul-2015
1141,Revenue,CCHD,Home Care - Elderly - North,Supported Living,The Hatch Camphill Community,2038.56, 07-Jul-2015
1142,Revenue,CCHD,Home Care - Elderly - North,Supported Living,The Hatch Camphill Community,2162.6, 07-Jul-2015
1143,Revenue,CCHD,Home Care - Elderly - North,Supported Living,The Hatch Camphill Community,1224.92, 07-Jul-2015
1144,Revenue,CCHD,Home Care - Elderly - North,Supported Living,The Hatch Camphill Community,2322.4, 07-Jul-2015
1145,Revenue,CCHD,Home Care - Elderly - North,Supported Living,The Hatch Camphill Community,2309.76, 07-Jul-2015
1146,Revenue,CCHD,Home Care - Elderly - North,Supported Living,The Hatch Camphill Community,2283.28, 07-Jul-2015
1147,Revenue,CCHD,Home Care - Elderly - North,Supported Living,The Hatch Camphill Community,1815.28, 07-Jul-2015
1148,Revenue,CCHD,Home Care - Elderly - North,Supported Living,The Hatch Camphill Community,2078.52, 07-Jul-2015
1149,Revenue,CCHD,Home Care - Elderly - North,Supported Living,The Hatch Camphill Community,1893.52, 07-Jul-2015
1150,Revenue,CCHD,Home Care - Elderly - North,Supported Living,The Hatch Camphill Community,1716.88, 07-Jul-2015
1151,Revenue,CCHD,Home Care - Elderly - North,Supported Living,The Hatch Camphill Community,2080.6, 07-Jul-2015
1152,Revenue,CCHD,Home Care - Elderly - North,Supported Living,The Hatch Camphill Community,1272.88, 07-Jul-2015
1153,Revenue,CCHD,Home Care - Elderly - North,Supported Living,The Hatch Camphill Community,1859.84, 07-Jul-2015
1154,Revenue,CCHD,Home Care - Elderly - North,Supported Living,The Hatch Camphill Community,1583.16, 07-Jul-2015
1155,Revenue,CCHD,Home Care - Elderly - North,Supported Living,The Hatch Camphill Community,1666.44, 07-Jul-2015
1156,Revenue,CCHD,Home Care - Elderly - North,Supported Living,The Hatch Camphill Community,1288, 07-Jul-2015
1157,Revenue,CCHD,Home Care - Elderly - North,Supported Living,The Hatch Camphill Community,2078.52, 07-Jul-2015
1158,Revenue,CCHD,Home Care - Elderly - North,Supported Living,The Hatch Camphill Community,2044.88, 07-Jul-2015
1159,Revenue,CCHD,Home Care - Elderly - North,Day Care / Social Activities,The Manor House,1396.12, 07-Jul-2015
1160,Revenue,CCHD,Home Care - Elderly - North,Day Care / Social Activities,The Manor House,1703.4, 07-Jul-2015
1161,Revenue,CCHD,Home Care - Elderly - North,Day Care / Social Activities,The Manor House,2416.84, 07-Jul-2015
1162,Revenue,CCHD,Home Care - Elderly - North,Day Care / Social Activities,The Old School House,574.4, 07-Jul-2015
1163,Revenue,CCHD,Home Care - Elderly - North,Day Care / Social Activities,The Old School House,861.6, 07-Jul-2015
1164,Revenue,CCHD,Home Care - Elderly - North,Day Care / Social Activities,The Old School House,574.4, 07-Jul-2015
1165,Revenue,CCHD,Home Care - Elderly - North,Supported Living,Willowbank,955.48, 07-Jul-2015
1166,Revenue,CCHD,Home Care - Elderly - North,Supported Living,Willowbank,1577.8, 07-Jul-2015
1167,Revenue,CCHD,Home Care - Elderly - North,Supported Living,Willowbank,1304.8, 07-Jul-2015
1168,Revenue,CCHD,Home Care - Elderly - North,Supported Living,Willowbank,1433.2, 07-Jul-2015
1169,Revenue,CCHD,Home Care - Elderly - North,Supported Living,Willowbank,2933.8, 07-Jul-2015
1170,Revenue,CCHD,Home Care - Elderly - North,Supported Living,Willowbank,3821.92, 07-Jul-2015
1171,Revenue,CCHD,Home Care - Elderly - North,Supported Living,Willowbank,6157.98, 07-Jul-2015
1172,Revenue,CCHD,Home Care - Elderly - North,Supported Living,Willowbank,2736.88, 07-Jul-2015
1173,Revenue,CCHD,Home Care - Elderly - South,Day Care / Social Activities,3 Trees Community Support Ltd,198.88, 03-Jul-2015
1174,Revenue,CCHD,Home Care - Elderly - South,Day Care / Social Activities,3 Trees Community Support Ltd,94.92, 14-Jul-2015
1175,Revenue,CCHD,Home Care - Elderly - South,Day Care / Social Activities,3 Trees Community Support Ltd,90.4, 14-Jul-2015
1176,Revenue,CCHD,Home Care - Elderly - South,Day Care / Social Activities,3 Trees Community Support Ltd,325.44, 20-Jul-2015
1177,Revenue,CCHD,Home Care - Elderly - South,Other Small Contracts,Agincare Chippenham,1874.95, 06-Jul-2015
1178,Revenue,CCHD,Home Care - Elderly - South,Other Small Contracts,Agincare Chippenham,1863.4, 01-Jul-2015
1179,Revenue,CCHD,Home Care - Elderly - South,Other Small Contracts,Agincare Chippenham,1874.95, 01-Jul-2015
1180,Revenue,CCHD,Home Care - Elderly - South,Other Small Contracts,Agincare Chippenham,1867.25, 21-Jul-2015
1181,Revenue,CCHD,Home Care - Elderly - South,Other Small Contracts,Agincare Chippenham,1859.55, 21-Jul-2015
1182,Revenue,CCHD,Home Care - Elderly - South,Other Small Contracts,Agincare Chippenham,1809.5, 27-Jul-2015
1183,Revenue,CCHD,Home Care - Elderly - South,Other Small Contracts,Agincare UK Limited,284.9, 01-Jul-2015
1184,Revenue,CCHD,Home Care - Elderly - South,Other Small Contracts,Agincare UK Limited,288.75, 01-Jul-2015
1185,Revenue,CCHD,Home Care - Elderly - South,Other Small Contracts,Agincare UK Limited,292.6, 06-Jul-2015
1186,Revenue,CCHD,Home Care - Elderly - South,Other Small Contracts,Agincare UK Limited,269.5, 15-Jul-2015
1187,Revenue,CCHD,Home Care - Elderly - South,Other Small Contracts,Agincare UK Nutfield,53.9, 06-Jul-2015
1188,Revenue,CCHD,Home Care - Elderly - South,Other Small Contracts,Agincare UK Nutfield,53.9, 06-Jul-2015
1189,Revenue,CCHD,Home Care - Elderly - South,Other Small Contracts,Agincare UK Nutfield,53.9, 16-Jul-2015
1190,Revenue,CCHD,Home Care - Elderly - South,Other Small Contracts,Agincare UK Nutfield,53.9, 16-Jul-2015
1191,Revenue,CCHD,Home Care - Elderly - South,Other Small Contracts,Agincare UK Nutfield,53.9, 21-Jul-2015
1192,Revenue,CCHD,Home Care - Elderly - South,Other Small Contracts,Agincare UK Nutfield,53.9, 21-Jul-2015
1193,Revenue,CCHD,Home Care - Elderly - South,Other Small Contracts,Agincare UK Nutfield,57.75, 27-Jul-2015
1194,Revenue,CCHD,Home Care - Elderly - South,Other Small Contracts,AliMo Care Ltd,1421.2, 01-Jul-2015
1195,Revenue,CCHD,Home Care - Elderly - South,Other Small Contracts,AliMo Care Ltd,1329.24, 03-Jul-2015
1196,Revenue,CCHD,Home Care - Elderly - South,Other Small Contracts,AliMo Care Ltd,1299.98, 10-Jul-2015
1197,Revenue,CCHD,Home Care - Elderly - South,Other Small Contracts,AliMo Care Ltd,1233.1, 15-Jul-2015
1198,Revenue,CCHD,Home Care - Elderly - South,Day Care / Social Activities,Aspirations Support Bristol Limited,4192.1, 07-Jul-2015
1199,Revenue,CCHD,Home Care - Elderly - South,Other Small Contracts,Aspirations Support Bristol Limited,3716.46, 07-Jul-2015
1200,Revenue,CCHD,Home Care - Elderly - South,Supported Living,Aspirations Support Bristol Limited,5168.13, 07-Jul-2015
1201,Revenue,CCHD,Home Care - Elderly - South,Day Care / Social Activities,Aspirations Support Bristol Limited,4436.3, 07-Jul-2015
1202,Revenue,CCHD,Home Care - Elderly - South,Other Small Contracts,Aspirations Support Bristol Limited,3634.62, 07-Jul-2015
1203,Revenue,CCHD,Home Care - Elderly - South,Supported Living,Aspirations Support Bristol Limited,4844.99, 07-Jul-2015
1204,Revenue,CCHD,Home Care - Elderly - South,Day Care / Social Activities,Aspirations Support Bristol Limited,4326.41, 20-Jul-2015
1205,Revenue,CCHD,Home Care - Elderly - South,Other Small Contracts,Aspirations Support Bristol Limited,3644.52, 20-Jul-2015
1206,Revenue,CCHD,Home Care - Elderly - South,Supported Living,Aspirations Support Bristol Limited,5560.18, 20-Jul-2015
1207,Revenue,CCHD,Home Care - Elderly - South,Day Care / Social Activities,Aspirations Support Bristol Limited,4664.22, 27-Jul-2015
1208,Revenue,CCHD,Home Care - Elderly - South,Other Small Contracts,Aspirations Support Bristol Limited,2736.03, 27-Jul-2015
1209,Revenue,CCHD,Home Care - Elderly - South,Supported Living,Aspirations Support Bristol Limited,5101.09, 27-Jul-2015
1210,Revenue,CCHD,Home Care - Elderly - South,Day Care / Social Activities,Aspirations Support Bristol Limited,4220.59, 27-Jul-2015
1211,Revenue,CCHD,Home Care - Elderly - South,Other Small Contracts,Aspirations Support Bristol Limited,3711.62, 27-Jul-2015
1212,Revenue,CCHD,Home Care - Elderly - South,Supported Living,Aspirations Support Bristol Limited,4998.35, 27-Jul-2015
1213,Revenue,CCHD,Home Care - Elderly - South,Other Small Contracts,Bluebird Care (South Gloucestershire),737.55, 28-Jul-2015
1214,Revenue,CCHD,Home Care - Elderly - South,Other Small Contracts,Bluebird Care (South Gloucestershire),777.15, 14-Jul-2015
1215,Revenue,CCHD,Home Care - Elderly - South,Day Care / Social Activities,Britannia House,924.8, 07-Jul-2015
1216,Revenue,CCHD,Home Care - Elderly - South,Day Care / Social Activities,Britannia House,693.6, 07-Jul-2015
1217,Revenue,CCHD,Home Care - Elderly - South,Day Care / Social Activities,Britannia House,693.6, 07-Jul-2015
1218,Revenue,CCHD,Home Care - Elderly - South,Day Care / Social Activities,Britannia House,693.6, 07-Jul-2015
1219,Revenue,CCHD,Home Care - Elderly - South,Other Small Contracts,Brunelcare,2750.58, 27-Jul-2015
1220,Revenue,CCHD,Home Care - Elderly - South,Other Small Contracts,Brunelcare,2775.36, 27-Jul-2015
1221,Revenue,CCHD,Home Care - Elderly - South,Other Small Contracts,Brunelcare,2903.39, 27-Jul-2015
1222,Revenue,CCHD,Home Care - Elderly - South,Other Small Contracts,Brunelcare,2919.91, 27-Jul-2015
1223,Revenue,CCHD,Home Care - Elderly - South,Supported Living,Camphill Communities Thornbury Limited,224.58, 10-Jul-2015
1224,Revenue,CCHD,Home Care - Elderly - South,Supported Living,Camphill Communities Thornbury Limited,240.34, 17-Jul-2015
1225,Revenue,CCHD,Home Care - Elderly - South,Supported Living,Camphill Communities Thornbury Limited,224.58, 22-Jul-2015
1226,Revenue,CCHD,Home Care - Elderly - South,Supported Living,Camphill Communities Thornbury Limited,220.64, 31-Jul-2015
1227,Revenue,CCHD,Home Care - Elderly - South,Other Small Contracts,Care 1st Homecare,3680.5, 21-Jul-2015
1228,Revenue,CCHD,Home Care - Elderly - South,Other Small Contracts,Care 1st Homecare,3740, 21-Jul-2015
1229,Revenue,CCHD,Home Care - Elderly - South,Other Small Contracts,Care 1st Homecare,4075.75, 21-Jul-2015
1230,Revenue,CCHD,Home Care - Elderly - South,Other Small Contracts,Care Horizons Limited,252, 21-Jul-2015
1231,Revenue,CCHD,Home Care - Elderly - South,Other Small Contracts,Care Horizons Limited,252, 15-Jul-2015
1232,Revenue,CCHD,Home Care - Elderly - South,Other Small Contracts,Care Horizons Limited,252, 16-Jul-2015
1233,Revenue,CCHD,Home Care - Elderly - South,Other Small Contracts,Care UK,4370.97, 06-Jul-2015
1234,Revenue,CCHD,Home Care - Elderly - South,Other Small Contracts,Care UK,3989.85, 15-Jul-2015
1235,Revenue,CCHD,Home Care - Elderly - South,Other Small Contracts,Care UK,3854.87, 21-Jul-2015
1236,Revenue,CCHD,Home Care - Elderly - South,Other Small Contracts,Carers R Us (Bristol) Limited,917.08, 06-Jul-2015
1237,Revenue,CCHD,Home Care - Elderly - South,Other Small Contracts,Carers R Us (Bristol) Limited,1022.12, 15-Jul-2015
1238,Revenue,CCHD,Home Care - Elderly - South,Other Small Contracts,Carers R Us (Bristol) Limited,1329.16, 27-Jul-2015
1239,Revenue,CCHD,Home Care - Elderly - South,Other Small Contracts,Carers R Us (Bristol) Limited,1519.04, 29-Jul-2015
1240,Revenue,CCHD,Home Care - Elderly - South,Day Care / Social Activities,Cherish Able Care Limited,253.2, 02-Jul-2015
1241,Revenue,CCHD,Home Care - Elderly - South,Other Small Contracts,Cherish Able Care Limited,5848.92, 02-Jul-2015
1242,Revenue,CCHD,Home Care - Elderly - South,Day Care / Social Activities,Cherish Able Care Limited,118.16, 09-Jul-2015
1243,Revenue,CCHD,Home Care - Elderly - South,Other Small Contracts,Cherish Able Care Limited,6144.32, 09-Jul-2015
1244,Revenue,CCHD,Home Care - Elderly - South,Other Small Contracts,Cherish Able Care Limited,6431.28, 17-Jul-2015
1245,Revenue,CCHD,Home Care - Elderly - South,Other Small Contracts,Cherish Able Care Limited,6262.48, 24-Jul-2015
1246,Revenue,CCHD,Home Care - Elderly - South,Other Small Contracts,Cherish Able Care Limited,6076.8, 31-Jul-2015
1247,Revenue,CCHD,Home Care - Elderly - South,Other Small Contracts,Cleeve Care Group,594.72, 02-Jul-2015
1248,Revenue,CCHD,Home Care - Elderly - South,Other Small Contracts,Cleeve Care Group,598.26, 08-Jul-2015
1249,Revenue,CCHD,Home Care - Elderly - South,Other Small Contracts,Cleeve Care Group,506.22, 16-Jul-2015
1250,Revenue,CCHD,Home Care - Elderly - South,Other Small Contracts,Cleeve Care Group,584.1, 23-Jul-2015
1251,Revenue,CCHD,Home Care - Elderly - South,Other Small Contracts,Cleeve Care Group,594.72, 30-Jul-2015
1252,Revenue,CCHD,Home Care - Elderly - South,Supported Living,Design House,2576.12, 07-Jul-2015
1253,Revenue,CCHD,Home Care - Elderly - South,Supported Living,Design House,3033.92, 07-Jul-2015
1254,Revenue,CCHD,Home Care - Elderly - South,Supported Living,Design House,3099.04, 07-Jul-2015
1255,Revenue,CCHD,Home Care - Elderly - South,Supported Living,Design House,2695.52, 07-Jul-2015
1256,Revenue,CCHD,Home Care - Elderly - South,Supported Living,Design House,2186.24, 07-Jul-2015
1257,Revenue,CCHD,Home Care - Elderly - South,Supported Living,Design House,3972.52, 07-Jul-2015
1258,Revenue,CCHD,Home Care - Elderly - South,Supported Living,Design House,2657.52, 07-Jul-2015
1259,Revenue,CCHD,Home Care - Elderly - South,Supported Living,Design House,2657.52, 07-Jul-2015
1260,Revenue,CCHD,Home Care - Elderly - South,Day Care / Social Activities,Dhek Bhal,196, 03-Jul-2015
1261,Revenue,CCHD,Home Care - Elderly - South,Other Small Contracts,Dhek Bhal,284.2, 03-Jul-2015
1262,Revenue,CCHD,Home Care - Elderly - South,Day Care / Social Activities,Dhek Bhal,196, 06-Jul-2015
1263,Revenue,CCHD,Home Care - Elderly - South,Other Small Contracts,Dhek Bhal,274.4, 06-Jul-2015
1264,Revenue,CCHD,Home Care - Elderly - South,Day Care / Social Activities,Dhek Bhal,196, 09-Jul-2015
1265,Revenue,CCHD,Home Care - Elderly - South,Other Small Contracts,Dhek Bhal,235.2, 09-Jul-2015
1266,Revenue,CCHD,Home Care - Elderly - South,Day Care / Social Activities,Dhek Bhal,196, 20-Jul-2015
1267,Revenue,CCHD,Home Care - Elderly - South,Other Small Contracts,Dhek Bhal,196, 20-Jul-2015
1268,Revenue,CCHD,Home Care - Elderly - South,Day Care / Social Activities,DoCare Ltd,40.24, 21-Jul-2015
1269,Revenue,CCHD,Home Care - Elderly - South,Other Small Contracts,DoCare Ltd,2338.95, 21-Jul-2015
1270,Revenue,CCHD,Home Care - Elderly - South,Day Care / Social Activities,DoCare Ltd,40.24, 21-Jul-2015
1271,Revenue,CCHD,Home Care - Elderly - South,Other Small Contracts,DoCare Ltd,2389.26, 21-Jul-2015
1272,Revenue,CCHD,Home Care - Elderly - South,Day Care / Social Activities,DoCare Ltd,40.24, 21-Jul-2015
1273,Revenue,CCHD,Home Care - Elderly - South,Other Small Contracts,DoCare Ltd,2313.8, 21-Jul-2015
1274,Revenue,CCHD,Home Care - Elderly - South,Day Care / Social Activities,DoCare Ltd,40.24, 21-Jul-2015
1275,Revenue,CCHD,Home Care - Elderly - South,Other Small Contracts,DoCare Ltd,2062.3, 21-Jul-2015
1276,Revenue,CCHD,Home Care - Elderly - South,Day Care / Social Activities,Easton Community Centre,526.08, 07-Jul-2015
1277,Revenue,CCHD,Home Care - Elderly - South,Day Care / Social Activities,Easton Community Centre,526.08, 07-Jul-2015
1278,Revenue,CCHD,Home Care - Elderly - South,Day Care / Social Activities,Eclipse Office Park,743.04, 07-Jul-2015
1279,Revenue,CCHD,Home Care - Elderly - South,Day Care / Social Activities,Eclipse Office Park,619.2, 07-Jul-2015
1280,Revenue,CCHD,Home Care - Elderly - South,Day Care / Social Activities,Eclipse Office Park,866.88, 07-Jul-2015
1281,Revenue,CCHD,Home Care - Elderly - South,Day Care / Social Activities,Eclipse Office Park,743.04, 07-Jul-2015
1282,Revenue,CCHD,Home Care - Elderly - South,Day Care / Social Activities,Eclipse Office Park,866.88, 07-Jul-2015
1283,Revenue,CCHD,Home Care - Elderly - South,Day Care / Social Activities,Eclipse Office Park,1238.4, 07-Jul-2015
1284,Revenue,CCHD,Home Care - Elderly - South,Day Care / Social Activities,Eclipse Office Park,743.04, 07-Jul-2015
1285,Revenue,CCHD,Home Care - Elderly - South,Day Care / Social Activities,Eclipse Office Park,866.88, 07-Jul-2015
1286,Revenue,CCHD,Home Care - Elderly - South,Day Care / Social Activities,Eclipse Office Park,990.72, 07-Jul-2015
1287,Revenue,CCHD,Home Care - Elderly - South,Day Care / Social Activities,Elite Home Care Ltd,35.36, 07-Jul-2015
1288,Revenue,CCHD,Home Care - Elderly - South,Other Small Contracts,Elite Home Care Ltd,6241.04, 07-Jul-2015
1289,Revenue,CCHD,Home Care - Elderly - South,Day Care / Social Activities,Elite Home Care Ltd,35.36, 07-Jul-2015
1290,Revenue,CCHD,Home Care - Elderly - South,Other Small Contracts,Elite Home Care Ltd,6470.88, 07-Jul-2015
1291,Revenue,CCHD,Home Care - Elderly - South,Day Care / Social Activities,Elite Home Care Ltd,35.36, 07-Jul-2015
1292,Revenue,CCHD,Home Care - Elderly - South,Other Small Contracts,Elite Home Care Ltd,6775.86, 07-Jul-2015
1293,Revenue,CCHD,Home Care - Elderly - South,Day Care / Social Activities,Elite Home Care Ltd,35.36, 07-Jul-2015
1294,Revenue,CCHD,Home Care - Elderly - South,Other Small Contracts,Elite Home Care Ltd,6700.72, 07-Jul-2015
1295,Revenue,CCHD,Home Care - Elderly - South,Other Small Contracts,Everycare (Bristol) Ltd,4158.1, 03-Jul-2015
1296,Revenue,CCHD,Home Care - Elderly - South,Other Small Contracts,Everycare (Bristol) Ltd,4076.4, 14-Jul-2015
1297,Revenue,CCHD,Home Care - Elderly - South,Other Small Contracts,Firstpoint Homecare Ltd,1661.03, 06-Jul-2015
1298,Revenue,CCHD,Home Care - Elderly - South,Other Small Contracts,Firstpoint Homecare Ltd,2057.81, 14-Jul-2015
1299,Revenue,CCHD,Home Care - Elderly - South,Day Care / Social Activities,Headway Bristol,420.8, 06-Jul-2015
1300,Revenue,CCHD,Home Care - Elderly - South,Day Care / Social Activities,Headway Bristol,357.68, 15-Jul-2015
1301,Revenue,CCHD,Home Care - Elderly - South,Day Care / Social Activities,Headway Bristol,420.8, 20-Jul-2015
1302,Revenue,CCHD,Home Care - Elderly - South,Day Care / Social Activities,Headway Bristol,499.7, 29-Jul-2015
1303,Revenue,CCHD,Home Care - Elderly - South,Day Care / Social Activities,Helping Hands Homecare,191.59, 10-Jul-2015
1304,Revenue,CCHD,Home Care - Elderly - South,Other Small Contracts,Helping Hands Homecare,1247.29, 10-Jul-2015
1305,Revenue,CCHD,Home Care - Elderly - South,Day Care / Social Activities,Helping Hands Homecare,191.59, 10-Jul-2015
1306,Revenue,CCHD,Home Care - Elderly - South,Other Small Contracts,Helping Hands Homecare,1345.04, 10-Jul-2015
1307,Revenue,CCHD,Home Care - Elderly - South,Day Care / Social Activities,Helping Hands Homecare,195.5, 10-Jul-2015
1308,Revenue,CCHD,Home Care - Elderly - South,Other Small Contracts,Helping Hands Homecare,1626.56, 10-Jul-2015
1309,Revenue,CCHD,Home Care - Elderly - South,Day Care / Social Activities,Helping Hands Homecare,195.5, 10-Jul-2015
1310,Revenue,CCHD,Home Care - Elderly - South,Other Small Contracts,Helping Hands Homecare,1685.21, 10-Jul-2015
1311,Revenue,CCHD,Home Care - Elderly - South,Day Care / Social Activities,Helping Hands Homecare,215.05, 10-Jul-2015
1312,Revenue,CCHD,Home Care - Elderly - South,Other Small Contracts,Helping Hands Homecare,1712.58, 10-Jul-2015
1313,Revenue,CCHD,Home Care - Elderly - South,Day Care / Social Activities,Helping Hands Homecare,195.5, 24-Jul-2015
1314,Revenue,CCHD,Home Care - Elderly - South,Other Small Contracts,Helping Hands Homecare,1767.32, 24-Jul-2015
1315,Revenue,CCHD,Home Care - Elderly - South,Day Care / Social Activities,Helping Hands Homecare,191.59, 24-Jul-2015
1316,Revenue,CCHD,Home Care - Elderly - South,Other Small Contracts,Helping Hands Homecare,1763.41, 24-Jul-2015
1317,Revenue,CCHD,Home Care - Elderly - South,Day Care / Social Activities,Helping Hands Homecare,190.08, 30-Jul-2015
1318,Revenue,CCHD,Home Care - Elderly - South,Other Small Contracts,Helping Hands Homecare,1829.52, 30-Jul-2015
1319,Revenue,CCHD,Home Care - Elderly - South,Other Small Contracts,Homecare 4U,1287.21, 01-Jul-2015
1320,Revenue,CCHD,Home Care - Elderly - South,Other Small Contracts,Homecare 4U,1307.26, 01-Jul-2015
1321,Revenue,CCHD,Home Care - Elderly - South,Other Small Contracts,Homecare 4U,1347.36, 29-Jul-2015
1322,Revenue,CCHD,Home Care - Elderly - South,Private & Voluntary Home Care,Housing 21,24541.48, 01-Jul-2015
1323,Revenue,CCHD,Home Care - Elderly - South,Private & Voluntary Home Care,Housing 21,24541.48, 31-Jul-2015
1324,Revenue,CCHD,Home Care - Elderly - South,Supported Living,Julia Simone- Supp. Ind.,1178.36, 07-Jul-2015
1325,Revenue,CCHD,Home Care - Elderly - South,Other Small Contracts,Kensington Community Care,305.52, 03-Jul-2015
1326,Revenue,CCHD,Home Care - Elderly - South,Other Small Contracts,Kensington Community Care,213.06, 03-Jul-2015
1327,Revenue,CCHD,Home Care - Elderly - South,Other Small Contracts,Kensington Community Care,205.02, 06-Jul-2015
1328,Revenue,CCHD,Home Care - Elderly - South,Other Small Contracts,Kensington Community Care,237.18, 06-Jul-2015
1329,Revenue,CCHD,Home Care - Elderly - South,Other Small Contracts,Kensington Community Care,402, 09-Jul-2015
1330,Revenue,CCHD,Home Care - Elderly - South,Other Small Contracts,Kensington Community Care,470.34, 06-Jul-2015
1331,Revenue,CCHD,Home Care - Elderly - South,Other Small Contracts,Kensington Community Care,430.14, 09-Jul-2015
1332,Revenue,CCHD,Home Care - Elderly - South,Other Small Contracts,Kensington Community Care,402, 29-Jul-2015
1333,Revenue,CCHD,Home Care - Elderly - South,Other Small Contracts,Kensington Community Care,337.68, 29-Jul-2015
1334,Revenue,CCHD,Home Care - Elderly - South,Other Small Contracts,Kumari Care Limited,2596.24, 03-Jul-2015
1335,Revenue,CCHD,Home Care - Elderly - South,Other Small Contracts,Kumari Care Limited,2623.61, 09-Jul-2015
1336,Revenue,CCHD,Home Care - Elderly - South,Other Small Contracts,Kumari Care Limited,2592.33, 20-Jul-2015
1337,Revenue,CCHD,Home Care - Elderly - South,Other Small Contracts,Kumari Care Limited,2561.05, 27-Jul-2015
1338,Revenue,CCHD,Home Care - Elderly - South,Day Care / Social Activities,Mears Care,89.7, 20-Jul-2015
1339,Revenue,CCHD,Home Care - Elderly - South,Other Small Contracts,Mears Care,873.6, 20-Jul-2015
1340,Revenue,CCHD,Home Care - Elderly - South,Day Care / Social Activities,Mears Care,46.8, 21-Jul-2015
1341,Revenue,CCHD,Home Care - Elderly - South,Other Small Contracts,Mears Care,608.4, 21-Jul-2015
1342,Revenue,CCHD,Home Care - Elderly - South,Day Care / Social Activities,Mears Care,89.7, 20-Jul-2015
1343,Revenue,CCHD,Home Care - Elderly - South,Other Small Contracts,Mears Care,651.3, 20-Jul-2015
1344,Revenue,CCHD,Home Care - Elderly - South,Private & Voluntary Home Care,Mears Care,49219, 28-Jul-2015
1345,Revenue,CCHD,Home Care - Elderly - South,Other Small Contracts,Medacs Home Care,364.62, 01-Jul-2015
1346,Revenue,CCHD,Home Care - Elderly - South,Other Small Contracts,Medacs Home Care,368.16, 06-Jul-2015
1347,Revenue,CCHD,Home Care - Elderly - South,Supported Living,Mike Durrant - Cherry Orchards,1394.88, 07-Jul-2015
1348,Revenue,CCHD,Home Care - Elderly - South,Supported Living,Milestones - Unit 10,3631.76, 07-Jul-2015
1349,Revenue,CCHD,Home Care - Elderly - South,Supported Living,Milestones - Unit 10,3631.76, 07-Jul-2015
1350,Revenue,CCHD,Home Care - Elderly - South,Supported Living,Milestones - Unit 10,3643.6, 07-Jul-2015
1351,Revenue,CCHD,Home Care - Elderly - South,Supported Living,Milestones - Unit 10,2317.68, 07-Jul-2015
1352,Revenue,CCHD,Home Care - Elderly - South,Supported Living,Milestones - Unit 10,2232.52, 07-Jul-2015
1353,Revenue,CCHD,Home Care - Elderly - South,Day Care / Social Activities,Milestones Homecare & Dementia Service,31.44, 16-Jul-2015
1354,Revenue,CCHD,Home Care - Elderly - South,Other Small Contracts,Milestones Homecare & Dementia Service,1925.7, 16-Jul-2015
1355,Revenue,CCHD,Home Care - Elderly - South,Day Care / Social Activities,Milestones Homecare & Dementia Service,31.44, 16-Jul-2015
1356,Revenue,CCHD,Home Care - Elderly - South,Other Small Contracts,Milestones Homecare & Dementia Service,1760.64, 16-Jul-2015
1357,Revenue,CCHD,Home Care - Elderly - South,Day Care / Social Activities,Milestones Homecare & Dementia Service,31.44, 16-Jul-2015
1358,Revenue,CCHD,Home Care - Elderly - South,Other Small Contracts,Milestones Homecare & Dementia Service,1792.08, 16-Jul-2015
1359,Revenue,CCHD,Home Care - Elderly - South,Day Care / Social Activities,Milestones Homecare & Dementia Service,31.44, 16-Jul-2015
1360,Revenue,CCHD,Home Care - Elderly - South,Other Small Contracts,Milestones Homecare & Dementia Service,1768.5, 16-Jul-2015
1361,Revenue,CCHD,Home Care - Elderly - South,Day Care / Social Activities,Milestones Homecare & Dementia Service,35.37, 31-Jul-2015
1362,Revenue,CCHD,Home Care - Elderly - South,Other Small Contracts,Milestones Homecare & Dementia Service,1544.49, 31-Jul-2015
1363,Revenue,CCHD,Home Care - Elderly - South,Day Care / Social Activities,Milestones Supported Living Services,8899.99, 02-Jul-2015
1364,Revenue,CCHD,Home Care - Elderly - South,Other Small Contracts,Milestones Supported Living Services,781.74, 02-Jul-2015
1365,Revenue,CCHD,Home Care - Elderly - South,Supported Living,Milestones Supported Living Services,1963.66, 02-Jul-2015
1366,Revenue,CCHD,Home Care - Elderly - South,Day Care / Social Activities,Milestones Supported Living Services,8100.43, 06-Jul-2015
1367,Revenue,CCHD,Home Care - Elderly - South,Other Small Contracts,Milestones Supported Living Services,698.2, 06-Jul-2015
1368,Revenue,CCHD,Home Care - Elderly - South,Supported Living,Milestones Supported Living Services,1916.32, 06-Jul-2015
1369,Revenue,CCHD,Home Care - Elderly - South,Day Care / Social Activities,Milestones Supported Living Services,8988.38, 06-Jul-2015
1370,Revenue,CCHD,Home Care - Elderly - South,Other Small Contracts,Milestones Supported Living Services,762.81, 06-Jul-2015
1371,Revenue,CCHD,Home Care - Elderly - South,Supported Living,Milestones Supported Living Services,1802.64, 06-Jul-2015
1372,Revenue,CCHD,Home Care - Elderly - South,Day Care / Social Activities,Milestones Supported Living Services,9083.96, 03-Jul-2015
1373,Revenue,CCHD,Home Care - Elderly - South,Other Small Contracts,Milestones Supported Living Services,709.93, 03-Jul-2015
1374,Revenue,CCHD,Home Care - Elderly - South,Supported Living,Milestones Supported Living Services,1871.66, 03-Jul-2015
1375,Revenue,CCHD,Home Care - Elderly - South,Day Care / Social Activities,Milestones Supported Living Services,7917.8, 29-Jul-2015
1376,Revenue,CCHD,Home Care - Elderly - South,Other Small Contracts,Milestones Supported Living Services,714.44, 29-Jul-2015
1377,Revenue,CCHD,Home Care - Elderly - South,Supported Living,Milestones Supported Living Services,1831.06, 29-Jul-2015
1378,Revenue,CCHD,Home Care - Elderly - South,Day Care / Social Activities,Milestones Supported Living Services,10451.38, 29-Jul-2015
1379,Revenue,CCHD,Home Care - Elderly - South,Other Small Contracts,Milestones Supported Living Services,627.8, 29-Jul-2015
1380,Revenue,CCHD,Home Care - Elderly - South,Supported Living,Milestones Supported Living Services,1855.42, 29-Jul-2015
1381,Revenue,CCHD,Home Care - Elderly - South,Day Care / Social Activities,Mrs B Kimber -  CM2000,2129.6, 08-Jul-2015
1382,Revenue,CCHD,Home Care - Elderly - South,Other Small Contracts,Mrs B Kimber -  CM2000,10871.68, 08-Jul-2015
1383,Revenue,CCHD,Home Care - Elderly - South,Supported Living,Mrs B Kimber -  CM2000,33.28, 08-Jul-2015
1384,Revenue,CCHD,Home Care - Elderly - South,Day Care / Social Activities,Mrs B Kimber -  CM2000,2131.52, 08-Jul-2015
1385,Revenue,CCHD,Home Care - Elderly - South,Other Small Contracts,Mrs B Kimber -  CM2000,11016.64, 08-Jul-2015
1386,Revenue,CCHD,Home Care - Elderly - South,Supported Living,Mrs B Kimber -  CM2000,33.28, 08-Jul-2015
1387,Revenue,CCHD,Home Care - Elderly - South,Day Care / Social Activities,Mrs B Kimber -  CM2000,2164.8, 08-Jul-2015
1388,Revenue,CCHD,Home Care - Elderly - South,Other Small Contracts,Mrs B Kimber -  CM2000,10882.24, 08-Jul-2015
1389,Revenue,CCHD,Home Care - Elderly - South,Supported Living,Mrs B Kimber -  CM2000,33.28, 08-Jul-2015
1390,Revenue,CCHD,Home Care - Elderly - South,Day Care / Social Activities,Mrs B Kimber -  CM2000,2243.84, 27-Jul-2015
1391,Revenue,CCHD,Home Care - Elderly - South,Other Small Contracts,Mrs B Kimber -  CM2000,9720.64, 27-Jul-2015
1392,Revenue,CCHD,Home Care - Elderly - South,Supported Living,Mrs B Kimber -  CM2000,33.28, 27-Jul-2015
1393,Revenue,CCHD,Home Care - Elderly - South,Day Care / Social Activities,Mrs B Kimber -  CM2000,2302.08, 27-Jul-2015
1394,Revenue,CCHD,Home Care - Elderly - South,Other Small Contracts,Mrs B Kimber -  CM2000,10944.32, 27-Jul-2015
1395,Revenue,CCHD,Home Care - Elderly - South,Supported Living,Mrs B Kimber -  CM2000,29.12, 27-Jul-2015
1396,Revenue,CCHD,Home Care - Elderly - South,Day Care / Social Activities,Mrs B Kimber -  CM2000,2252.16, 27-Jul-2015
1397,Revenue,CCHD,Home Care - Elderly - South,Other Small Contracts,Mrs B Kimber -  CM2000,10675.2, 27-Jul-2015
1398,Revenue,CCHD,Home Care - Elderly - South,Supported Living,Mrs B Kimber -  CM2000,33.28, 27-Jul-2015
1399,Revenue,CCHD,Home Care - Elderly - South,Day Care / Social Activities,Nestor T/A Allied Healthcare,84.7, 06-Jul-2015
1400,Revenue,CCHD,Home Care - Elderly - South,Other Small Contracts,Nestor T/A Allied Healthcare,2831.65, 06-Jul-2015
1401,Revenue,CCHD,Home Care - Elderly - South,Day Care / Social Activities,Nestor T/A Allied Healthcare,77, 07-Jul-2015
1402,Revenue,CCHD,Home Care - Elderly - South,Other Small Contracts,Nestor T/A Allied Healthcare,2770.01, 07-Jul-2015
1403,Revenue,CCHD,Home Care - Elderly - South,Day Care / Social Activities,Nestor T/A Allied Healthcare,69.3, 07-Jul-2015
1404,Revenue,CCHD,Home Care - Elderly - South,Other Small Contracts,Nestor T/A Allied Healthcare,2844.75, 07-Jul-2015
1405,Revenue,CCHD,Home Care - Elderly - South,Day Care / Social Activities,Nestor T/A Allied Healthcare,61.6, 08-Jul-2015
1406,Revenue,CCHD,Home Care - Elderly - South,Other Small Contracts,Nestor T/A Allied Healthcare,2846.97, 08-Jul-2015
1407,Revenue,CCHD,Home Care - Elderly - South,Other Small Contracts,Network Health & Social Care,228.92, 21-Jul-2015
1408,Revenue,CCHD,Home Care - Elderly - South,Other Small Contracts,Network Health & Social Care,236.68, 21-Jul-2015
1409,Revenue,CCHD,Home Care - Elderly - South,Other Small Contracts,Network Health & Social Care,554.84, 21-Jul-2015
1410,Revenue,CCHD,Home Care - Elderly - South,Other Small Contracts,Network Health & Social Care,578.12, 21-Jul-2015
1411,Revenue,CCHD,Home Care - Elderly - South,Day Care / Social Activities,Nursing Solutions Limited,31.76, 07-Jul-2015
1412,Revenue,CCHD,Home Care - Elderly - South,Other Small Contracts,Nursing Solutions Limited,3052.93, 07-Jul-2015
1413,Revenue,CCHD,Home Care - Elderly - South,Day Care / Social Activities,Nursing Solutions Limited,31.76, 07-Jul-2015
1414,Revenue,CCHD,Home Care - Elderly - South,Other Small Contracts,Nursing Solutions Limited,3088.66, 07-Jul-2015
1415,Revenue,CCHD,Home Care - Elderly - South,Day Care / Social Activities,Nursing Solutions Limited,31.76, 07-Jul-2015
1416,Revenue,CCHD,Home Care - Elderly - South,Other Small Contracts,Nursing Solutions Limited,2997.35, 07-Jul-2015
1417,Revenue,CCHD,Home Care - Elderly - South,Other Small Contracts,Prestige Nursing,527.17, 06-Jul-2015
1418,Revenue,CCHD,Home Care - Elderly - South,Other Small Contracts,Prestige Nursing,398.7, 08-Jul-2015
1419,Revenue,CCHD,Home Care - Elderly - South,Other Small Contracts,Prestige Nursing,593.62, 08-Jul-2015
1420,Revenue,CCHD,Home Care - Elderly - South,Other Small Contracts,Prestige Nursing,558.18, 27-Jul-2015
1421,Revenue,CCHD,Home Care - Elderly - South,Other Small Contracts,Prestige Nursing,646.78, 27-Jul-2015
1422,Revenue,CCHD,Home Care - Elderly - South,Supported Living,Selborrne House,1820.92, 07-Jul-2015
1423,Revenue,CCHD,Home Care - Elderly - South,Supported Living,Selborrne House,3491.36, 07-Jul-2015
1424,Revenue,CCHD,Home Care - Elderly - South,Supported Living,Selborrne House,997.53, 07-Jul-2015
1425,Revenue,CCHD,Home Care - Elderly - South,Supported Living,Selborrne House,6060.25, 07-Jul-2015
1426,Revenue,CCHD,Home Care - Elderly - South,Supported Living,Selborrne House,3491.36, 07-Jul-2015
1427,Revenue,CCHD,Home Care - Elderly - South,Supported Living,Selborrne House,1820.92, 07-Jul-2015
1428,Revenue,CCHD,Home Care - Elderly - South,Day Care / Social Activities,Smile Independent Living Support Limited,625.78, 08-Jul-2015
1429,Revenue,CCHD,Home Care - Elderly - South,Other Small Contracts,Smile Independent Living Support Limited,261.52, 08-Jul-2015
1430,Revenue,CCHD,Home Care - Elderly - South,Day Care / Social Activities,Smile Independent Living Support Limited,644.46, 13-Jul-2015
1431,Revenue,CCHD,Home Care - Elderly - South,Other Small Contracts,Smile Independent Living Support Limited,196.14, 13-Jul-2015
1432,Revenue,CCHD,Home Care - Elderly - South,Day Care / Social Activities,Smile Independent Living Support Limited,644.46, 20-Jul-2015
1433,Revenue,CCHD,Home Care - Elderly - South,Other Small Contracts,Smile Independent Living Support Limited,158.78, 20-Jul-2015
1434,Revenue,CCHD,Home Care - Elderly - South,Day Care / Social Activities,St George Nursing Home,606.48, 07-Jul-2015
1435,Revenue,CCHD,Home Care - Elderly - South,Day Care / Social Activities,The Brandon Trust,4264.09, 03-Jul-2015
1436,Revenue,CCHD,Home Care - Elderly - South,Day Care / Social Activities,The Brandon Trust,4203.66, 16-Jul-2015
1437,Revenue,CCHD,Home Care - Elderly - South,Day Care / Social Activities,The Brandon Trust,4403.49, 17-Jul-2015
1438,Revenue,CCHD,Home Care - Elderly - South,Day Care / Social Activities,The Brandon Trust,4324.47, 27-Jul-2015
1439,Revenue,CCHD,Home Care - Elderly - South,Day Care / Social Activities,The Manor House,1487.2, 07-Jul-2015
1440,Revenue,CCHD,Home Care - Elderly - South,Day Care / Social Activities,The Manor House,1426.44, 07-Jul-2015
1441,Revenue,CCHD,Home Care - Elderly - South,Day Care / Social Activities,The Manor House,1396.72, 07-Jul-2015
1442,Revenue,CCHD,Home Care - Elderly - South,Day Care / Social Activities,The Manor House,1396.12, 07-Jul-2015
1443,Revenue,CCHD,Home Care - Elderly - South,Supported Living,The Oaks,3064.56, 07-Jul-2015
1444,Revenue,CCHD,Home Care - Elderly - South,Day Care / Social Activities,The Old School House,574.4, 07-Jul-2015
1445,Revenue,CCHD,Older People's Commissioned Se,Grants to Voluntary Bodies,Action for Blind People,24242.25, 01-Jul-2015
1446,Revenue,CCHD,Older People's Commissioned Se,Grants to Voluntary Bodies,Bristol Area Stroke Foundation,15749, 01-Jul-2015
1447,Revenue,CCHD,Older People's Commissioned Se,Grants to Voluntary Bodies,Overseas Chinese Association Elderly Peoples Club,975, 01-Jul-2015
1448,Revenue,CCHD,Older People's Commissioned Se,Grants to Voluntary Bodies,Shopmobility South Gloucestershire,1250, 01-Jul-2015
1449,Revenue,CCHD,Older People's Commissioned Se,Grants to Voluntary Bodies,The Care Forum,8749, 24-Jul-2015
1450,Revenue,CCHD,Older People's Commissioned Se,Grants to Voluntary Bodies,The Care Forum,4550, 01-Jul-2015
1451,Revenue,CCHD,Older People's Commissioned Se,Grants to Voluntary Bodies,The Care Forum,5985, 01-Jul-2015
1452,Revenue,CCHD,Older People's Commissioned Se,Grants to Voluntary Bodies,The Care Forum,25109.25, 01-Jul-2015
1453,Revenue,CCHD,Older People's Commissioned Se,Grants to Voluntary Bodies,The Care Forum,40534.25, 01-Jul-2015
1454,Revenue,CCHD,Older People's Commissioned Se,Grants to Voluntary Bodies,WE Care & Repair,991.5, 01-Jul-2015
1455,Revenue,CCHD,Older People's Commissioned Se,Grants to Voluntary Bodies,Womankind,2625, 01-Jul-2015
1456,Revenue,CCHD,Swift Dump Code,Permanent Residential,Beaufort House,1157.46, 07-Jul-2015
1457,Revenue,CCHD,Swift Dump Code,Permanent Residential,Fshc  1St Floor,21257.36, 07-Jul-2015
1458,Revenue,CCHD,Swift Dump Code,Permanent Residential,Mrs Patricia Clay,994.08, 31-Jul-2015
1459,Revenue,CCHD,Swift Dump Code,Permanent Residential,Regent House,2399.21, 07-Jul-2015
1460,Revenue,CCHD,Swift Dump Code,Permanent Residential,The Grove,876.97, 07-Jul-2015
1461,Revenue,CCHD,Swift Dump Code,Permanent Residential,Wayside Residential Care Home,12432.93, 07-Jul-2015
1462,Revenue,CCHD,South Glos Users in all other LA Homes,Permanent Nursing,Bupa Care Services  Bridge House,616.56, 07-Jul-2015
1463,Revenue,CCHD,South Glos Users in all other LA Homes,Permanent Nursing,Leonard Cheshire  National Account Centr,616.56, 07-Jul-2015
1464,Revenue,CCHD,S75 CCG Interim Beds,Permanent Nursing,Avon Lodge Care Centre,10200, 27-Jul-2015
1465,Revenue,CCHD,S75 CCG Interim Beds,Permanent Nursing,Brunelcare,54600, 14-Jul-2015
1466,Revenue,CCHD,S75 CCG Interim Beds,Permanent Nursing,Brunelcare,15200, 16-Jul-2015
1467,Revenue,CCHD,S75 CCG Interim Beds,Permanent Nursing,Fairview Court,586.13, 07-Jul-2015
1468,Revenue,CCHD,S75 CCG Interim Beds,Permanent Nursing,Windmill Care Limited,13040, 06-Jul-2015
1469,Revenue,CCHD,South Glos Users in South Glos Homes,Permanent Nursing,Beaufort Grange Care Home,896, 07-Jul-2015
1470,Revenue,CCHD,South Glos Users in South Glos Homes,Permanent Nursing,Beaufort Grange Care Home,2515.95, 07-Jul-2015
1471,Revenue,CCHD,South Glos Users in South Glos Homes,Permanent Nursing,Brunel Care  Saffron Gardens,544, 07-Jul-2015
1472,Revenue,CCHD,South Glos Users in South Glos Homes,Permanent Nursing,Brunel Care  Saffron Gardens,1184, 07-Jul-2015
1473,Revenue,CCHD,South Glos Users in South Glos Homes,Permanent Nursing,Brunel Care  Saffron Gardens,560, 07-Jul-2015
1474,Revenue,CCHD,South Glos Users in South Glos Homes,Permanent Nursing,Brunel Care  Saffron Gardens,528, 07-Jul-2015
1475,Revenue,CCHD,South Glos Users in South Glos Homes,Permanent Nursing,Brunel Care  Saffron Gardens,704, 07-Jul-2015
1476,Revenue,CCHD,South Glos Users in South Glos Homes,Permanent Nursing,Fairview Court,1312, 07-Jul-2015
1477,Revenue,CCHD,South Glos Users in South Glos Homes,Permanent Nursing,Fairview Court,5291.04, 07-Jul-2015
1478,Revenue,CCHD,South Glos Users in South Glos Homes,Permanent Nursing,Fairview Court,1312, 07-Jul-2015
1479,Revenue,CCHD,South Glos Users in South Glos Homes,Permanent Nursing,Fshc  1St Floor,992, 07-Jul-2015
1480,Revenue,CCHD,South Glos Users in South Glos Homes,Permanent Nursing,Fshc  1St Floor,871.28, 07-Jul-2015
1481,Revenue,CCHD,South Glos Users in South Glos Homes,Permanent Nursing,Fshc  1St Floor,992, 07-Jul-2015
1482,Revenue,CCHD,South Glos Users in South Glos Homes,Permanent Nursing,Fshc  1St Floor,1312, 07-Jul-2015
1483,Revenue,CCHD,South Glos Users in South Glos Homes,Permanent Nursing,Fshc  1St Floor,1140.58, 07-Jul-2015
1484,Revenue,CCHD,South Glos Users in South Glos Homes,Permanent Nursing,Fshc  1St Floor,896, 07-Jul-2015
1485,Revenue,CCHD,South Glos Users in South Glos Homes,Permanent Nursing,Fshc  1St Floor,2407.9, 07-Jul-2015
1486,Revenue,CCHD,South Glos Users in South Glos Homes,Permanent Nursing,Fshc  1St Floor,1312, 07-Jul-2015
1487,Revenue,CCHD,South Glos Users in South Glos Homes,Permanent Nursing,Fshc  1St Floor,1312, 07-Jul-2015
1488,Revenue,CCHD,South Glos Users in South Glos Homes,Permanent Nursing,Fshc  1St Floor,601.97, 07-Jul-2015
1489,Revenue,CCHD,South Glos Users in South Glos Homes,Permanent Nursing,Fshc  1St Floor,1312, 07-Jul-2015
1490,Revenue,CCHD,South Glos Users in South Glos Homes,Permanent Nursing,Fshc  1St Floor,624, 07-Jul-2015
1491,Revenue,CCHD,South Glos Users in South Glos Homes,Permanent Nursing,Glebe House Nursing Home,944, 07-Jul-2015
1492,Revenue,CCHD,South Glos Users in South Glos Homes,Permanent Nursing,Regent House,1885.13, 07-Jul-2015
1493,Revenue,CCHD,South Glos Users in South Glos Homes,Permanent Nursing,Regent House,608, 07-Jul-2015
1494,Revenue,CCHD,South Glos Users in South Glos Homes,Permanent Nursing,Regent House,2249.48, 07-Jul-2015
1495,Revenue,CCHD,South Glos Users in South Glos Homes,Permanent Nursing,Regent House,1312, 07-Jul-2015
1496,Revenue,CCHD,South Glos Users in South Glos Homes,Permanent Nursing,Regent House,1679.19, 07-Jul-2015
1497,Revenue,CCHD,South Glos Users in South Glos Homes,Permanent Nursing,Regent House,1312, 07-Jul-2015
1498,Revenue,CCHD,South Glos Users in South Glos Homes,Permanent Nursing,St George Nursing Home,720, 07-Jul-2015
1499,Revenue,CCHD,South Glos Users in South Glos Homes,Permanent Nursing,The Heathers,1088, 07-Jul-2015
1500,Revenue,CCHD,South Glos Users in South Glos Homes,Permanent Nursing,The Heathers,640, 07-Jul-2015
1501,Revenue,CCHD,South Glos Users in South Glos Homes,Permanent Nursing,Wickwar Nursing Home  Castle House,608, 07-Jul-2015
1502,Revenue,CCHD,Bed Purchasing - Southmead Hospital,Permanent Nursing,Bayview Nursing & Residential Home,1494.36, 07-Jul-2015
1503,Revenue,CCHD,Bed Purchasing - Southmead Hospital,Permanent Residential,Beaufort House,1270.48, 07-Jul-2015
1504,Revenue,CCHD,Bed Purchasing - Southmead Hospital,Permanent Residential,Beaufort House,3031.44, 07-Jul-2015
1505,Revenue,CCHD,Bed Purchasing - Southmead Hospital,Permanent Nursing,Beech House,11696.21, 07-Jul-2015
1506,Revenue,CCHD,Bed Purchasing - Southmead Hospital,Permanent Nursing,Beech House,2221.52, 07-Jul-2015
1507,Revenue,CCHD,Bed Purchasing - Southmead Hospital,Permanent Nursing,Blossom Field,2586.92, 07-Jul-2015
1508,Revenue,CCHD,Bed Purchasing - Southmead Hospital,Permanent Nursing,Blossom Fields,2111.72, 31-Jul-2015
1509,Revenue,CCHD,Bed Purchasing - Southmead Hospital,Permanent Nursing,Blossom Fields,2111.72, 03-Jul-2015
1510,Revenue,CCHD,Bed Purchasing - Southmead Hospital,Permanent Nursing,Brandon Trust,4571.84, 07-Jul-2015
1511,Revenue,CCHD,Bed Purchasing - Southmead Hospital,Permanent Nursing,Brunel Care  Saffron Gardens,1653.8, 07-Jul-2015
1512,Revenue,CCHD,Bed Purchasing - Southmead Hospital,Permanent Nursing,Brunel Care  Saffron Gardens,1079.08, 07-Jul-2015
1513,Revenue,CCHD,Bed Purchasing - Southmead Hospital,Permanent Nursing,Brunel Care  Saffron Gardens,1166.8, 07-Jul-2015
1514,Revenue,CCHD,Bed Purchasing - Southmead Hospital,Permanent Nursing,Brunel Care  Saffron Gardens,1409.28, 07-Jul-2015
1515,Revenue,CCHD,Bed Purchasing - Southmead Hospital,Permanent Nursing,Brunelcare,1454.36, 21-Jul-2015
1516,Revenue,CCHD,Bed Purchasing - Southmead Hospital,Permanent Nursing,Brunelcare,1690.93, 21-Jul-2015
1517,Revenue,CCHD,Bed Purchasing - Southmead Hospital,Permanent Nursing,Brunelcare,883.63, 21-Jul-2015
1518,Revenue,CCHD,Bed Purchasing - Southmead Hospital,Permanent Nursing,Brunelcare,1655.06, 21-Jul-2015
1519,Revenue,CCHD,Bed Purchasing - Southmead Hospital,Permanent Nursing,Brunelcare,1766.31, 21-Jul-2015
1520,Revenue,CCHD,Bed Purchasing - Southmead Hospital,Permanent Nursing,Brunelcare,1659.04, 21-Jul-2015
1521,Revenue,CCHD,Bed Purchasing - Southmead Hospital,Permanent Nursing,Brunelcare,1197.54, 21-Jul-2015
1522,Revenue,CCHD,Bed Purchasing - Southmead Hospital,Permanent Nursing,Brunelcare,1596.3, 21-Jul-2015
1523,Revenue,CCHD,Bed Purchasing - Southmead Hospital,Permanent Nursing,Bupa Care Services  Bridge House,1924.68, 07-Jul-2015
1524,Revenue,CCHD,Bed Purchasing - Southmead Hospital,Permanent Nursing,Bupa Care Services  Bridge House,1696.32, 07-Jul-2015
1525,Revenue,CCHD,Bed Purchasing - Southmead Hospital,Permanent Nursing,Cholwell House Nursing Home Ltd,1989.76, 07-Jul-2015
1526,Revenue,CCHD,Bed Purchasing - Southmead Hospital,Permanent Nursing,Churchill Property Services,1698.04, 07-Jul-2015
1527,Revenue,CCHD,Bed Purchasing - Southmead Hospital,Permanent Residential,Cleeve Lodge,1475.8, 07-Jul-2015
1528,Revenue,CCHD,Bed Purchasing - Southmead Hospital,Permanent Residential,Coombs Wood House,968.8, 07-Jul-2015
1529,Revenue,CCHD,Bed Purchasing - Southmead Hospital,Permanent Residential,Edgecumbe Lodge,1270.8, 07-Jul-2015
1530,Revenue,CCHD,Bed Purchasing - Southmead Hospital,Permanent Residential,Edgecumbe Lodge,1617.48, 07-Jul-2015
1531,Revenue,CCHD,Bed Purchasing - Southmead Hospital,Permanent Residential,Edgecumbe Lodge,1546.32, 07-Jul-2015
1532,Revenue,CCHD,Bed Purchasing - Southmead Hospital,Permanent Nursing,Fairview Court,1896.04, 07-Jul-2015
1533,Revenue,CCHD,Bed Purchasing - Southmead Hospital,Permanent Nursing,Fairview Court,1901.48, 07-Jul-2015
1534,Revenue,CCHD,Bed Purchasing - Southmead Hospital,Permanent Nursing,Fairview Court Care Home,1489.67, 14-Jul-2015
1535,Revenue,CCHD,Bed Purchasing - Southmead Hospital,Permanent Residential,Fairview House,1043.16, 07-Jul-2015
1536,Revenue,CCHD,Bed Purchasing - Southmead Hospital,Permanent Residential,Fairview House,1442.8, 07-Jul-2015
1537,Revenue,CCHD,Bed Purchasing - Southmead Hospital,Permanent Residential,Fairview House,927.52, 07-Jul-2015
1538,Revenue,CCHD,Bed Purchasing - Southmead Hospital,Permanent Residential,Fairview House,1270.8, 07-Jul-2015
1539,Revenue,CCHD,Bed Purchasing - Southmead Hospital,Permanent Residential,Fairview House,1084.4, 07-Jul-2015
1540,Revenue,CCHD,Bed Purchasing - Southmead Hospital,Permanent Residential,Fairview House,1407.12, 07-Jul-2015
1541,Revenue,CCHD,Bed Purchasing - Southmead Hospital,Permanent Residential,Faith House,1252.12, 07-Jul-2015
1542,Revenue,CCHD,Bed Purchasing - Southmead Hospital,Permanent Nursing,Field House Care Home,4185.89, 07-Jul-2015
1543,Revenue,CCHD,Bed Purchasing - Southmead Hospital,Permanent Nursing,Frenchay Park Nursing Home,1694.8, 07-Jul-2015
1544,Revenue,CCHD,Bed Purchasing - Southmead Hospital,Permanent Residential,Fshc  1St Floor,896.92, 07-Jul-2015
1545,Revenue,CCHD,Bed Purchasing - Southmead Hospital,Permanent Nursing,Fshc  1St Floor,1308.48, 07-Jul-2015
1546,Revenue,CCHD,Bed Purchasing - Southmead Hospital,Permanent Nursing,Fshc  1St Floor,7649.4, 07-Jul-2015
1547,Revenue,CCHD,Bed Purchasing - Southmead Hospital,Permanent Nursing,Fshc  1St Floor,1362.8, 07-Jul-2015
1548,Revenue,CCHD,Bed Purchasing - Southmead Hospital,Permanent Nursing,Fshc  1St Floor,1398.8, 07-Jul-2015
1549,Revenue,CCHD,Bed Purchasing - Southmead Hospital,Permanent Nursing,Fshc  1St Floor,1398.8, 07-Jul-2015
1550,Revenue,CCHD,Bed Purchasing - Southmead Hospital,Permanent Nursing,Fshc  1St Floor,1064.28, 07-Jul-2015
1551,Revenue,CCHD,Bed Purchasing - Southmead Hospital,Permanent Nursing,Fshc  1St Floor,1210.12, 07-Jul-2015
1552,Revenue,CCHD,Bed Purchasing - Southmead Hospital,Permanent Nursing,Fshc  1St Floor,1143.72, 07-Jul-2015
1553,Revenue,CCHD,Bed Purchasing - Southmead Hospital,Permanent Nursing,Fshc  1St Floor,1398.8, 07-Jul-2015
1554,Revenue,CCHD,Bed Purchasing - Southmead Hospital,Permanent Nursing,Fshc  1St Floor,1382.44, 07-Jul-2015
1555,Revenue,CCHD,Bed Purchasing - Southmead Hospital,Permanent Nursing,Fshc  1St Floor,1398.8, 07-Jul-2015
1556,Revenue,CCHD,Bed Purchasing - Southmead Hospital,Permanent Nursing,Fshc  1St Floor,1207.68, 07-Jul-2015
1557,Revenue,CCHD,Bed Purchasing - Southmead Hospital,Permanent Nursing,Fshc  1St Floor,1398.8, 07-Jul-2015
1558,Revenue,CCHD,Bed Purchasing - Southmead Hospital,Permanent Nursing,Fshc  1St Floor,902.64, 07-Jul-2015
1559,Revenue,CCHD,Bed Purchasing - Southmead Hospital,Permanent Nursing,Fshc  1St Floor,949.6, 07-Jul-2015
1560,Revenue,CCHD,Bed Purchasing - Southmead Hospital,Permanent Nursing,Fshc  1St Floor,1622.04, 07-Jul-2015
1561,Revenue,CCHD,Bed Purchasing - Southmead Hospital,Permanent Nursing,Fshc  1St Floor,1398.8, 07-Jul-2015
1562,Revenue,CCHD,Bed Purchasing - Southmead Hospital,Permanent Residential,Fshc  1St Floor,1158, 07-Jul-2015
1563,Revenue,CCHD,Bed Purchasing - Southmead Hospital,Permanent Nursing,Fshc  1St Floor,1112.44, 07-Jul-2015
1564,Revenue,CCHD,Bed Purchasing - Southmead Hospital,Permanent Nursing,Fshc  1St Floor,1132.12, 07-Jul-2015
1565,Revenue,CCHD,Bed Purchasing - Southmead Hospital,Permanent Nursing,Fshc  1St Floor,1304.24, 07-Jul-2015
1566,Revenue,CCHD,Bed Purchasing - Southmead Hospital,Permanent Nursing,Fshc  1St Floor,1398.8, 07-Jul-2015
1567,Revenue,CCHD,Bed Purchasing - Southmead Hospital,Permanent Nursing,Fshc  1St Floor,1130.76, 07-Jul-2015
1568,Revenue,CCHD,Bed Purchasing - Southmead Hospital,Permanent Nursing,Fshc  1St Floor,1221.08, 07-Jul-2015
1569,Revenue,CCHD,Bed Purchasing - Southmead Hospital,Permanent Nursing,Fshc  1St Floor,2080, 07-Jul-2015
1570,Revenue,CCHD,Bed Purchasing - Southmead Hospital,Permanent Nursing,Fshc  1St Floor,1393.24, 07-Jul-2015
1571,Revenue,CCHD,Bed Purchasing - Southmead Hospital,Permanent Nursing,Fshc  1St Floor,1398.8, 07-Jul-2015
1572,Revenue,CCHD,Bed Purchasing - Southmead Hospital,Permanent Residential,Fshc  1St Floor,619.48, 07-Jul-2015
1573,Revenue,CCHD,Bed Purchasing - Southmead Hospital,Respite Planned - Nursing,Fshc  1St Floor,1337.14, 07-Jul-2015
1574,Revenue,CCHD,Bed Purchasing - Southmead Hospital,Permanent Nursing,Fshc  1St Floor,1314.4, 07-Jul-2015
1575,Revenue,CCHD,Bed Purchasing - Southmead Hospital,Permanent Nursing,Fshc  1St Floor,1197.88, 07-Jul-2015
1576,Revenue,CCHD,Bed Purchasing - Southmead Hospital,Respite Planned - Nursing,Fshc  1St Floor,884, 07-Jul-2015
1577,Revenue,CCHD,Bed Purchasing - Southmead Hospital,Permanent Nursing,Fshc  1St Floor,1398.8, 07-Jul-2015
1578,Revenue,CCHD,Bed Purchasing - Southmead Hospital,Respite Planned - Nursing,Fshc  1St Floor,1904, 07-Jul-2015
1579,Revenue,CCHD,Bed Purchasing - Southmead Hospital,Permanent Nursing,Fshc  1St Floor,1344.04, 07-Jul-2015
1580,Revenue,CCHD,Bed Purchasing - Southmead Hospital,Permanent Nursing,Fshc  1St Floor,1398.8, 07-Jul-2015
1581,Revenue,CCHD,Bed Purchasing - Southmead Hospital,Permanent Nursing,Fshc  1St Floor,582.08, 07-Jul-2015
1582,Revenue,CCHD,Bed Purchasing - Southmead Hospital,Permanent Nursing,Fshc  1St Floor,1398.8, 07-Jul-2015
1583,Revenue,CCHD,Bed Purchasing - Southmead Hospital,Permanent Nursing,Fshc  1St Floor,874, 07-Jul-2015
1584,Revenue,CCHD,Bed Purchasing - Southmead Hospital,Permanent Nursing,Fshc  1St Floor,1329.4, 07-Jul-2015
1585,Revenue,CCHD,Bed Purchasing - Southmead Hospital,Permanent Nursing,Fshc  1St Floor,1271.84, 07-Jul-2015
1586,Revenue,CCHD,Bed Purchasing - Southmead Hospital,Permanent Nursing,Fshc  1St Floor,2085.86, 07-Jul-2015
1587,Revenue,CCHD,Bed Purchasing - Southmead Hospital,Permanent Nursing,Fshc  1St Floor,1848.92, 07-Jul-2015
1588,Revenue,CCHD,Bed Purchasing - Southmead Hospital,Permanent Residential,Fshc  1St Floor,1972, 07-Jul-2015
1589,Revenue,CCHD,Bed Purchasing - Southmead Hospital,Permanent Nursing,Fshc  1St Floor,1335.04, 07-Jul-2015
1590,Revenue,CCHD,Bed Purchasing - Southmead Hospital,Permanent Nursing,Fshc  1St Floor,1398.6, 07-Jul-2015
1591,Revenue,CCHD,Bed Purchasing - Southmead Hospital,Permanent Residential,Fshc  1St Floor,1494.8, 07-Jul-2015
1592,Revenue,CCHD,Bed Purchasing - Southmead Hospital,Permanent Nursing,Fshc  1St Floor,4460.4, 07-Jul-2015
1593,Revenue,CCHD,Bed Purchasing - Southmead Hospital,Permanent Nursing,Fshc  1St Floor,1205.57, 07-Jul-2015
1594,Revenue,CCHD,Bed Purchasing - Southmead Hospital,Permanent Nursing,Fshc  1St Floor,3150.95, 07-Jul-2015
1595,Revenue,CCHD,Bed Purchasing - Southmead Hospital,Permanent Nursing,Fshc  1St Floor,1398.8, 07-Jul-2015
1596,Revenue,CCHD,Bed Purchasing - Southmead Hospital,Permanent Nursing,Fshc  1St Floor,17450.81, 07-Jul-2015
1597,Revenue,CCHD,Bed Purchasing - Southmead Hospital,Respite Planned - Nursing,Fshc  1St Floor,2448, 07-Jul-2015
1598,Revenue,CCHD,Bed Purchasing - Southmead Hospital,Permanent Nursing,Fshc  1St Floor,1398.8, 07-Jul-2015
1599,Revenue,CCHD,Bed Purchasing - Southmead Hospital,Respite Emergency - Residential,Fshc  1St Floor,3276.57, 07-Jul-2015
1600,Revenue,CCHD,Bed Purchasing - Southmead Hospital,Respite Emergency - Residential,Fshc  1St Floor,1972, 07-Jul-2015
1601,Revenue,CCHD,Bed Purchasing - Southmead Hospital,Permanent Nursing,Fshc  1St Floor,1304.64, 07-Jul-2015
1602,Revenue,CCHD,Bed Purchasing - Southmead Hospital,Permanent Residential,Fshc  1St Floor,1466.8, 07-Jul-2015
1603,Revenue,CCHD,Bed Purchasing - Southmead Hospital,Permanent Nursing,Fshc  1St Floor,1398.8, 07-Jul-2015
1604,Revenue,CCHD,Bed Purchasing - Southmead Hospital,Permanent Nursing,Fshc  1St Floor,1398.8, 07-Jul-2015
1605,Revenue,CCHD,Bed Purchasing - Southmead Hospital,Permanent Nursing,Fshc  1St Floor,1324.72, 07-Jul-2015
1606,Revenue,CCHD,Bed Purchasing - Southmead Hospital,Permanent Residential,Fshc  1St Floor,4081.44, 07-Jul-2015
1607,Revenue,CCHD,Bed Purchasing - Southmead Hospital,Permanent Residential,Fshc  1St Floor,1484.16, 07-Jul-2015
1608,Revenue,CCHD,Bed Purchasing - Southmead Hospital,Respite Planned - Residential,Fshc  1St Floor,1776, 07-Jul-2015
1609,Revenue,CCHD,Bed Purchasing - Southmead Hospital,Permanent Nursing,Fshc  1St Floor,1398.8, 07-Jul-2015
1610,Revenue,CCHD,Bed Purchasing - Southmead Hospital,Permanent Residential,Fshc  1St Floor,1131.52, 07-Jul-2015
1611,Revenue,CCHD,Bed Purchasing - Southmead Hospital,Permanent Nursing,Fshc  1St Floor,813.6, 07-Jul-2015
1612,Revenue,CCHD,Bed Purchasing - Southmead Hospital,Permanent Nursing,Fshc  1St Floor,2481.26, 07-Jul-2015
1613,Revenue,CCHD,Bed Purchasing - Southmead Hospital,Permanent Nursing,Fshc  1St Floor,723.7, 07-Jul-2015
1614,Revenue,CCHD,Bed Purchasing - Southmead Hospital,Permanent Nursing,Fshc  1St Floor,1240.64, 07-Jul-2015
1615,Revenue,CCHD,Bed Purchasing - Southmead Hospital,Permanent Nursing,Fshc  1St Floor,956.72, 07-Jul-2015
1616,Revenue,CCHD,Bed Purchasing - Southmead Hospital,Permanent Nursing,Fshc  1St Floor,1566.4, 07-Jul-2015
1617,Revenue,CCHD,Bed Purchasing - Southmead Hospital,Permanent Nursing,Fshc  1St Floor,1382.48, 07-Jul-2015
1618,Revenue,CCHD,Bed Purchasing - Southmead Hospital,Permanent Nursing,Fshc  1St Floor,1398.8, 07-Jul-2015
1619,Revenue,CCHD,Bed Purchasing - Southmead Hospital,Permanent Nursing,Fshc  1St Floor,3183.37, 07-Jul-2015
1620,Revenue,CCHD,Bed Purchasing - Southmead Hospital,Permanent Nursing,Fshc  1St Floor,894.72, 07-Jul-2015
1621,Revenue,CCHD,Bed Purchasing - Southmead Hospital,Permanent Nursing,Fshc  1St Floor,936.48, 07-Jul-2015
1622,Revenue,CCHD,Bed Purchasing - Southmead Hospital,Permanent Nursing,Fshc  1St Floor,1301.32, 07-Jul-2015
1623,Revenue,CCHD,Bed Purchasing - Southmead Hospital,Permanent Nursing,Fshc  1St Floor,1355.76, 07-Jul-2015
1624,Revenue,CCHD,Bed Purchasing - Southmead Hospital,Permanent Nursing,Fshc  1St Floor,1506.8, 07-Jul-2015
1625,Revenue,CCHD,Bed Purchasing - Southmead Hospital,Permanent Nursing,Fshc  1St Floor,1177.28, 07-Jul-2015
1626,Revenue,CCHD,Bed Purchasing - Southmead Hospital,Permanent Nursing,Fshc  1St Floor,1574.8, 07-Jul-2015
1627,Revenue,CCHD,Bed Purchasing - Southmead Hospital,Permanent Residential,Fshc  1St Floor,1250.68, 07-Jul-2015
1628,Revenue,CCHD,Bed Purchasing - Southmead Hospital,Permanent Nursing,Fshc  1St Floor,1289.12, 07-Jul-2015
1629,Revenue,CCHD,Bed Purchasing - Southmead Hospital,Permanent Nursing,Fshc  1St Floor,1242.28, 07-Jul-2015
1630,Revenue,CCHD,Bed Purchasing - Southmead Hospital,Permanent Nursing,Fshc  1St Floor,1398.8, 07-Jul-2015
1631,Revenue,CCHD,Bed Purchasing - Southmead Hospital,Permanent Nursing,Fshc  1St Floor,950.8, 07-Jul-2015
1632,Revenue,CCHD,Bed Purchasing - Southmead Hospital,Permanent Nursing,Fshc  1St Floor,1101.28, 07-Jul-2015
1633,Revenue,CCHD,Bed Purchasing - Southmead Hospital,Permanent Residential,Fshc  1St Floor,808.44, 07-Jul-2015
1634,Revenue,CCHD,Bed Purchasing - Southmead Hospital,Permanent Nursing,Gracefields Nursing Home,1655.96, 07-Jul-2015
1635,Revenue,CCHD,Bed Purchasing - Southmead Hospital,Permanent Nursing,Gracefields Nursing Home,871.28, 07-Jul-2015
1636,Revenue,CCHD,Bed Purchasing - Southmead Hospital,Permanent Nursing,Gracefields Nursing Home,1586.56, 07-Jul-2015
1637,Revenue,CCHD,Bed Purchasing - Southmead Hospital,Permanent Nursing,Gracefields Nursing Home,1539, 07-Jul-2015
1638,Revenue,CCHD,Bed Purchasing - Southmead Hospital,Permanent Residential,Gwendoline House,1634.04, 07-Jul-2015
1639,Revenue,CCHD,Bed Purchasing - Southmead Hospital,Permanent Nursing,Hc-One Ltd,14530.66, 07-Jul-2015
1640,Revenue,CCHD,Bed Purchasing - Southmead Hospital,Permanent Residential,Heathwood Rest Home,1100.32, 07-Jul-2015
1641,Revenue,CCHD,Bed Purchasing - Southmead Hospital,Permanent Residential,High Border Lodge,1442.4, 07-Jul-2015
1642,Revenue,CCHD,Bed Purchasing - Southmead Hospital,Permanent Residential,Highfield House,2092.56, 07-Jul-2015
1643,Revenue,CCHD,Bed Purchasing - Southmead Hospital,Permanent Residential,Highgate Studios,1179.08, 07-Jul-2015
1644,Revenue,CCHD,Bed Purchasing - Southmead Hospital,Permanent Nursing,Horfield Care Limited,1564.16, 08-Jul-2015
1645,Revenue,CCHD,Bed Purchasing - Southmead Hospital,Permanent Nursing,Horfield Care Limited,2697.17, 08-Jul-2015
1646,Revenue,CCHD,Bed Purchasing - Southmead Hospital,Permanent Nursing,Horfield Care Limited,1428.6, 08-Jul-2015
1647,Revenue,CCHD,Bed Purchasing - Southmead Hospital,Permanent Nursing,Horfield Care Limited,1787.96, 08-Jul-2015
1648,Revenue,CCHD,Bed Purchasing - Southmead Hospital,Respite Planned - Nursing,Horfield Care Limited,2217.17, 08-Jul-2015
1649,Revenue,CCHD,Bed Purchasing - Southmead Hospital,Permanent Residential,Kenver House Residential Home,1664.04, 07-Jul-2015
1650,Revenue,CCHD,Bed Purchasing - Southmead Hospital,Permanent Residential,Kenver House Residential Home,1685.08, 07-Jul-2015
1651,Revenue,CCHD,Bed Purchasing - Southmead Hospital,Respite Planned - Residential,Kenver House Residential Home,2190.28, 07-Jul-2015
1652,Revenue,CCHD,Bed Purchasing - Southmead Hospital,Permanent Residential,Kenver House Residential Home,1685, 07-Jul-2015
1653,Revenue,CCHD,Bed Purchasing - Southmead Hospital,Permanent Residential,Kenver House Residential Home,1582.16, 07-Jul-2015
1654,Revenue,CCHD,Bed Purchasing - Southmead Hospital,Permanent Nursing,Leonard Cheshire  National Account Centr,3075.12, 07-Jul-2015
1655,Revenue,CCHD,Bed Purchasing - Southmead Hospital,Permanent Residential,Little Croft,1085.24, 07-Jul-2015
1656,Revenue,CCHD,Bed Purchasing - Southmead Hospital,Permanent Residential,Little Croft,1269.32, 07-Jul-2015
1657,Revenue,CCHD,Bed Purchasing - Southmead Hospital,Permanent Residential,Little Croft,1278.8, 07-Jul-2015
1658,Revenue,CCHD,Bed Purchasing - Southmead Hospital,Permanent Residential,Little Croft,1763.48, 07-Jul-2015
1659,Revenue,CCHD,Bed Purchasing - Southmead Hospital,Permanent Residential,Little Croft,1442.8, 07-Jul-2015
1660,Revenue,CCHD,Bed Purchasing - Southmead Hospital,Permanent Residential,Little Croft,3392.62, 07-Jul-2015
1661,Revenue,CCHD,Bed Purchasing - Southmead Hospital,Permanent Residential,Little Croft,1233.68, 07-Jul-2015
1662,Revenue,CCHD,Bed Purchasing - Southmead Hospital,Permanent Residential,Little Croft,1270.8, 07-Jul-2015
1663,Revenue,CCHD,Bed Purchasing - Southmead Hospital,Permanent Residential,Little Croft,1270.8, 07-Jul-2015
1664,Revenue,CCHD,Bed Purchasing - Southmead Hospital,Permanent Nursing,Majestic 3 Limited,1004.2, 07-Jul-2015
1665,Revenue,CCHD,Bed Purchasing - Southmead Hospital,Permanent Residential,Manor Cottage,1270.8, 07-Jul-2015
1666,Revenue,CCHD,Bed Purchasing - Southmead Hospital,Permanent Residential,Manor Cottage,1041.92, 07-Jul-2015
1667,Revenue,CCHD,Bed Purchasing - Southmead Hospital,Permanent Residential,Maria Mallabank 11 Ltd,11494.97, 07-Jul-2015
1668,Revenue,CCHD,Bed Purchasing - Southmead Hospital,Permanent Nursing,Milestones - Unit 10,1368.08, 07-Jul-2015
1669,Revenue,CCHD,Bed Purchasing - Southmead Hospital,Permanent Residential,Mostyn Lodge Residential Home,1143.2, 07-Jul-2015
1670,Revenue,CCHD,Bed Purchasing - Southmead Hospital,Permanent Residential,Nashley House Retirement Home,1270.79, 07-Jul-2015
1671,Revenue,CCHD,Bed Purchasing - Southmead Hospital,Permanent Residential,Notaro Homes Ltd  Queensmead Court,3032.4, 07-Jul-2015
1672,Revenue,CCHD,Bed Purchasing - Southmead Hospital,Respite Emergency - Residential,Notaro Homes Ltd  Queensmead Court,3080, 07-Jul-2015
1673,Revenue,CCHD,Bed Purchasing - Southmead Hospital,Respite Emergency - Residential,Notaro Homes Ltd  Queensmead Court,1870, 07-Jul-2015
1674,Revenue,CCHD,Bed Purchasing - Southmead Hospital,Permanent Residential,Notaro Homes Ltd  Queensmead Court,1399.96, 07-Jul-2015
1675,Revenue,CCHD,Bed Purchasing - Southmead Hospital,Permanent Residential,Osbourne Court,973.08, 07-Jul-2015
1676,Revenue,CCHD,Bed Purchasing - Southmead Hospital,Permanent Residential,Osbourne Court,1612.84, 07-Jul-2015
1677,Revenue,CCHD,Bed Purchasing - Southmead Hospital,Permanent Nursing,Palm Court Nursing Home,1617.72, 07-Jul-2015
1678,Revenue,CCHD,Bed Purchasing - Southmead Hospital,Permanent Residential,Park Farm House,2600, 07-Jul-2015
1679,Revenue,CCHD,Bed Purchasing - Southmead Hospital,Permanent Residential,Park Farm House,829.97, 07-Jul-2015
1680,Revenue,CCHD,Bed Purchasing - Southmead Hospital,Permanent Nursing,Regent House,2007.4, 07-Jul-2015
1681,Revenue,CCHD,Bed Purchasing - Southmead Hospital,Permanent Nursing,Regent House,1036.76, 07-Jul-2015
1682,Revenue,CCHD,Bed Purchasing - Southmead Hospital,Permanent Nursing,Riversway Nursing Home,896, 07-Jul-2015
1683,Revenue,CCHD,Bed Purchasing - Southmead Hospital,Permanent Nursing,Riversway Nursing Home,2715.32, 07-Jul-2015
1684,Revenue,CCHD,Bed Purchasing - Southmead Hospital,Permanent Nursing,Riversway Nursing Home,2244.28, 07-Jul-2015
1685,Revenue,CCHD,Bed Purchasing - Southmead Hospital,Permanent Residential,Sanctuary Care Ltd,1770.66, 07-Jul-2015
1686,Revenue,CCHD,Bed Purchasing - Southmead Hospital,Permanent Residential,Shaw Healthcare Ltd,1139.24, 07-Jul-2015
1687,Revenue,CCHD,Bed Purchasing - Southmead Hospital,Permanent Nursing,St George Nursing Home,1330.8, 07-Jul-2015
1688,Revenue,CCHD,Bed Purchasing - Southmead Hospital,Permanent Nursing,St George Nursing Home,1330.8, 07-Jul-2015
1689,Revenue,CCHD,Bed Purchasing - Southmead Hospital,Permanent Nursing,St George Nursing Home,1311.36, 07-Jul-2015
1690,Revenue,CCHD,Bed Purchasing - Southmead Hospital,Permanent Nursing,St George Nursing Home,1506.8, 07-Jul-2015
1691,Revenue,CCHD,Bed Purchasing - Southmead Hospital,Permanent Nursing,St George Nursing Home,538.14, 07-Jul-2015
1692,Revenue,CCHD,Bed Purchasing - Southmead Hospital,Permanent Nursing,St George Nursing Home,1330.8, 07-Jul-2015
1693,Revenue,CCHD,Bed Purchasing - Southmead Hospital,Permanent Nursing,St George Nursing Home,1194.08, 07-Jul-2015
1694,Revenue,CCHD,Bed Purchasing - Southmead Hospital,Permanent Nursing,St Teresa`S Nursing Home,6770.49, 07-Jul-2015
1695,Revenue,CCHD,Bed Purchasing - Southmead Hospital,Permanent Nursing,St Teresa`S Nursing Home,1105.24, 07-Jul-2015
1696,Revenue,CCHD,Bed Purchasing - Southmead Hospital,Permanent Nursing,St Teresa`S Nursing Home,710.51, 07-Jul-2015
1697,Revenue,CCHD,Bed Purchasing - Southmead Hospital,Permanent Nursing,St Teresa`S Nursing Home,854.08, 07-Jul-2015
1698,Revenue,CCHD,Bed Purchasing - Southmead Hospital,Respite Emergency - Residential,The Beeches,1800, 07-Jul-2015
1699,Revenue,CCHD,Bed Purchasing - Southmead Hospital,Permanent Residential,The Beeches,1563.64, 07-Jul-2015
1700,Revenue,CCHD,Bed Purchasing - Southmead Hospital,Permanent Residential,The Beeches,1656.36, 07-Jul-2015
1701,Revenue,CCHD,Bed Purchasing - Southmead Hospital,Permanent Residential,The Cidermill,978.04, 07-Jul-2015
1702,Revenue,CCHD,Bed Purchasing - Southmead Hospital,Permanent Residential,The Gables Residential Home,1385.2, 07-Jul-2015
1703,Revenue,CCHD,Bed Purchasing - Southmead Hospital,Respite Planned - Residential,The Gables Residential Home,2400, 07-Jul-2015
1704,Revenue,CCHD,Bed Purchasing - Southmead Hospital,Respite Planned - Residential,The Gables Residential Home,1114.29, 07-Jul-2015
1705,Revenue,CCHD,Bed Purchasing - Southmead Hospital,Permanent Residential,The Gables Residential Home,982.8, 07-Jul-2015
1706,Revenue,CCHD,Bed Purchasing - Southmead Hospital,Permanent Residential,The Grove,1997.68, 07-Jul-2015
1707,Revenue,CCHD,Bed Purchasing - Southmead Hospital,Permanent Nursing,The Heathers,1346.8, 07-Jul-2015
1708,Revenue,CCHD,Bed Purchasing - Southmead Hospital,Permanent Nursing,The Heathers,1230.72, 07-Jul-2015
1709,Revenue,CCHD,Bed Purchasing - Southmead Hospital,Permanent Nursing,The Heathers,1330.8, 07-Jul-2015
1710,Revenue,CCHD,Bed Purchasing - Southmead Hospital,Permanent Nursing,The Heathers,1330.8, 07-Jul-2015
1711,Revenue,CCHD,Bed Purchasing - Southmead Hospital,Permanent Nursing,The Heathers,1894.8, 07-Jul-2015
1712,Revenue,CCHD,Bed Purchasing - Southmead Hospital,Permanent Residential,The Worthies,1694.8, 07-Jul-2015
1713,Revenue,CCHD,Bed Purchasing - Southmead Hospital,Permanent Residential,The Worthies,1159, 07-Jul-2015
1714,Revenue,CCHD,Bed Purchasing - Southmead Hospital,Permanent Residential,The Worthies,1460.48, 07-Jul-2015
1715,Revenue,CCHD,Bed Purchasing - Southmead Hospital,Permanent Residential,Warley House,924.72, 07-Jul-2015
1716,Revenue,CCHD,Bed Purchasing - Southmead Hospital,Permanent Residential,Wayside Residential Care Home,1442.8, 07-Jul-2015
1717,Revenue,CCHD,Bed Purchasing - Southmead Hospital,Permanent Nursing,Wickwar Nursing Home  Castle House,1323.88, 07-Jul-2015
1718,Revenue,CCHD,Bed Purchasing - Southmead Hospital,Permanent Nursing,Wickwar Nursing Home  Castle House,1459.4, 07-Jul-2015
1719,Revenue,CCHD,Bed Purchasing - Southmead Hospital,Permanent Nursing,Wickwar Nursing Home  Castle House,4476.56, 07-Jul-2015
1720,Revenue,CCHD,Bed Purchasing - Southmead Hospital,Permanent Nursing,Wickwar Nursing Home  Castle House,1627.84, 07-Jul-2015
1721,Revenue,CCHD,Bed Purchasing - Southmead Hospital,Permanent Nursing,Wickwar Nursing Home  Castle House,1218.16, 07-Jul-2015
1722,Revenue,CCHD,Bed Purchasing - Southmead Hospital,Permanent Residential,Wickwar Nursing Home  Castle House,1718.56, 07-Jul-2015
1723,Revenue,CCHD,Bed Purchasing - Southmead Hospital,Permanent Nursing,Wickwar Nursing Home  Castle House,1010.84, 07-Jul-2015
1724,Revenue,CCHD,Bed Purchasing - Southmead Hospital,Permanent Nursing,Wickwar Nursing Home  Castle House,1052.72, 07-Jul-2015
1725,Revenue,CCHD,Bed Purchasing - Southmead Hospital,Permanent Residential,Wickwar Nursing Home  Castle House,1680.88, 07-Jul-2015
1726,Revenue,CCHD,Bed Purchasing - Southmead Hospital,Permanent Nursing,Wickwar Nursing Home  Castle House,832.72, 07-Jul-2015
1727,Revenue,CCHD,Bed Purchasing - Southmead Hospital,Permanent Nursing,Willow Cottage,1776.64, 07-Jul-2015
1728,Revenue,CCHD,Bed Purchasing - Southmead Hospital,Permanent Nursing,Willow Cottage,2361.68, 07-Jul-2015
1729,Revenue,CCHD,Bed Purchasing - Southmead Hospital,Permanent Nursing,Willow Cottage,2401.12, 07-Jul-2015
1730,Revenue,CCHD,Bed Purchasing - Southmead Hospital,Permanent Nursing,Willow Cottage,1202.72, 07-Jul-2015
1731,Revenue,CCHD,Bed Purchasing - Southmead Hospital,Permanent Nursing,Willow Cottage,1330.4, 07-Jul-2015
1732,Revenue,CCHD,Bed Purchasing - Southmead Hospital,Respite Emergency - Residential,Willows,5828.57, 07-Jul-2015
1733,Revenue,CCHD,Bed Purchasing - Southmead Hospital,Permanent Residential,Willows,1894.8, 07-Jul-2015
1734,Revenue,CCHD,Bed Purchasing - Southmead Hospital,Permanent Residential,Willows,1570, 07-Jul-2015
1735,Revenue,CCHD,Bed Purchasing - Southmead Hospital,Permanent Residential,Willows,1449.6, 07-Jul-2015
1736,Revenue,CCHD,Bed Purchasing - Southmead Hospital,Permanent Residential,Windmill House,1270.8, 07-Jul-2015
1737,Revenue,CCHD,Bed Purchasing - Southmead Hospital,Permanent Residential,Windmill House,778.68, 07-Jul-2015
1738,Revenue,CCHD,Bed Purchasing - Southmead Hospital,Permanent Nursing,Woodland Health Care  Pinetree Court,1330.8, 07-Jul-2015
1739,Revenue,CCHD,Bed Purchasing - Southmead Hospital,Permanent Nursing,Woodlands Manor,2964.06, 07-Jul-2015
1740,Revenue,CCHD,Bed Purchasing - Southmead Hospital,Permanent Nursing,Woodlands Manor,1077.84, 07-Jul-2015
1741,Revenue,CCHD,Bed Purchasing - Frenchay Hospital,Permanent Nursing,Horfield Care Limited,1675.89, 08-Jul-2015
1742,Revenue,CCHD,Bed Purchasing - North,Permanent Residential,5Th Floor Harlech Court,1341.82, 07-Jul-2015
1743,Revenue,CCHD,Bed Purchasing - North,Permanent Residential,5Th Floor Harlech Court,16769.2, 07-Jul-2015
1744,Revenue,CCHD,Bed Purchasing - North,Permanent Nursing,ABI Development Limited,7046.44, 07-Jul-2015
1745,Revenue,CCHD,Bed Purchasing - North,Permanent Residential,Ark Care Homes Ltd,10348.28, 07-Jul-2015
1746,Revenue,CCHD,Bed Purchasing - North,Permanent Residential,Aspects 2 Limited,6428.16, 07-Jul-2015
1747,Revenue,CCHD,Bed Purchasing - North,Permanent Residential,Beaufort House,1686.44, 07-Jul-2015
1748,Revenue,CCHD,Bed Purchasing - North,Permanent Residential,Beaufort House,1839.84, 07-Jul-2015
1749,Revenue,CCHD,Bed Purchasing - North,Permanent Residential,Beaufort House,2526.77, 07-Jul-2015
1750,Revenue,CCHD,Bed Purchasing - North,Permanent Residential,Beaufort House,2425.92, 07-Jul-2015
1751,Revenue,CCHD,Bed Purchasing - North,Permanent Residential,Beaufort House,1395.68, 07-Jul-2015
1752,Revenue,CCHD,Bed Purchasing - North,Permanent Residential,Beaufort House,1822.84, 07-Jul-2015
1753,Revenue,CCHD,Bed Purchasing - North,Permanent Residential,Beaufort House,1365.16, 07-Jul-2015
1754,Revenue,CCHD,Bed Purchasing - North,Permanent Residential,Beaufort House,1876.68, 07-Jul-2015
1755,Revenue,CCHD,Bed Purchasing - North,Permanent Residential,Beaufort House,1720.8, 07-Jul-2015
1756,Revenue,CCHD,Bed Purchasing - North,Permanent Nursing,Beech House,2399.76, 07-Jul-2015
1757,Revenue,CCHD,Bed Purchasing - North,Permanent Nursing,Beech House,1330.8, 07-Jul-2015
1758,Revenue,CCHD,Bed Purchasing - North,Permanent Nursing,Beech House,1663.92, 07-Jul-2015
1759,Revenue,CCHD,Bed Purchasing - North,Permanent Nursing,Beech House,2446.8, 07-Jul-2015
1760,Revenue,CCHD,Bed Purchasing - North,Permanent Nursing,Beech House,2272.03, 07-Jul-2015
1761,Revenue,CCHD,Bed Purchasing - North,Permanent Residential,Beech House,1442.8, 07-Jul-2015
1762,Revenue,CCHD,Bed Purchasing - North,Permanent Nursing,Beech House,1958.72, 07-Jul-2015
1763,Revenue,CCHD,Bed Purchasing - North,Permanent Residential,Beech House,1924.72, 07-Jul-2015
1764,Revenue,CCHD,Bed Purchasing - North,Permanent Residential,Beech House,1413.56, 07-Jul-2015
1765,Revenue,CCHD,Bed Purchasing - North,Permanent Nursing,Blossom Field,2747.96, 07-Jul-2015
1766,Revenue,CCHD,Bed Purchasing - North,Permanent Nursing,Blossom Field,2060.97, 07-Jul-2015
1767,Revenue,CCHD,Bed Purchasing - North,Permanent Nursing,Blossom Field,1835, 07-Jul-2015
1768,Revenue,CCHD,Bed Purchasing - North,Permanent Nursing,Blossom Field,1393.52, 07-Jul-2015
1769,Revenue,CCHD,Bed Purchasing - North,Permanent Nursing,Blossom Field,2457.4, 07-Jul-2015
1770,Revenue,CCHD,Bed Purchasing - North,Permanent Nursing,Blossom Field,10691.1, 07-Jul-2015
1771,Revenue,CCHD,Bed Purchasing - North,Permanent Nursing,Blossom Field,2729.24, 07-Jul-2015
1772,Revenue,CCHD,Bed Purchasing - North,Permanent Nursing,Blossom Fields,1874.48, 31-Jul-2015
1773,Revenue,CCHD,Bed Purchasing - North,Permanent Nursing,Blossom Fields,2616.92, 31-Jul-2015
1774,Revenue,CCHD,Bed Purchasing - North,Permanent Nursing,Blossom Fields,1874.48, 03-Jul-2015
1775,Revenue,CCHD,Bed Purchasing - North,Permanent Nursing,Blossom Fields,2616.92, 03-Jul-2015
1776,Revenue,CCHD,Bed Purchasing - North,Permanent Residential,Bradley House,1546.32, 07-Jul-2015
1777,Revenue,CCHD,Bed Purchasing - North,Permanent Residential,Bridge House Care Home,1533.6, 07-Jul-2015
1778,Revenue,CCHD,Bed Purchasing - North,Permanent Residential,Bridge House Care Home,1079.2, 07-Jul-2015
1779,Revenue,CCHD,Bed Purchasing - North,Permanent Residential,Bridge House Care Home,1531.48, 07-Jul-2015
1780,Revenue,CCHD,Bed Purchasing - North,Permanent Residential,Bridge House Care Home,1544.6, 07-Jul-2015
1781,Revenue,CCHD,Bed Purchasing - North,Permanent Nursing,Brunelcare,1607.27, 21-Jul-2015
1782,Revenue,CCHD,Bed Purchasing - North,Permanent Nursing,Brunelcare,1915.46, 21-Jul-2015
1783,Revenue,CCHD,Bed Purchasing - North,Permanent Nursing,Brunelcare,1929.69, 21-Jul-2015
1784,Revenue,CCHD,Bed Purchasing - North,Permanent Nursing,Brunelcare,1766.31, 21-Jul-2015
1785,Revenue,CCHD,Bed Purchasing - North,Permanent Nursing,Bupa Care Services  Bridge House,6002.4, 07-Jul-2015
1786,Revenue,CCHD,Bed Purchasing - North,Permanent Residential,Bupa Care Services  Bridge House,2008.72, 07-Jul-2015
